Workbook

Sheet LDC Info
Z3: 1 | AA3: Alectra Utilities Corporation
Z4: 2 | AA4: Alectra Utilities Corporation - Brampton service territory
Z5: 3 | AA5: Alectra Utilities Corporation - Horizon Utilities service territory
Z6: 4 | AA6: Alectra Utilities Corporation - Mississauga service territory
Z7: 5 | AA7: Alectra Utilities Corporation - PowerStream service territory
Z8: 6 | AA8: Algoma Power Inc.
Z9: 7 | AA9: Atikokan Hydro Inc.
Z10: 8 | AA10: Attawapiskat Power Corporation
Z11: 9 | AA11: Bluewater Power Distribution Corporation
Z12: 10 | AA12: Brantford Power Inc.
Z13: 11 | AA13: Burlington Hydro Inc.
D14: Utility Name | E14: Lakeland Power Distribution Ltd. | Z14: 12 | AA14: Canadian Niagara Power Inc. (Eastern Ontario Power/Fort Erie/Port Colborne)
Z15: 13 | AA15: Centre Wellington Hydro Ltd.
D16: Assigned EB Number | E16: EB-2018-0050 | Z16: 14 | AA16: Chapleau Public Utilities Corporation
Z17: 15 | AA17: COLLUS PowerStream Corp.
D18: Name of Contact and Title | E18: Margaret Maw, CFO | Z18: 16 | AA18: Cooperative Hydro Embrun Inc.
Z19: 17 | AA19: E.L.K. Energy Inc.
D20: Phone Number | E20: 705-789-5442 | Z20: 18 | AA20: Energy + Inc.
Z21: 19 | AA21: Enersource Hydro Mississauga Inc.
D22: Email Address | E22: mmaw@lakelandholding.com | Z22: 20 | AA22: Entegrus Powerlines Inc.
Z23: 21 | AA23: ENWIN Utilities Ltd.
D24: Test Year | E24: 2019 | Z24: 22 | AA24: Erie Thames Powerlines Corporation
Z25: 23 | AA25: Espanola Regional Hydro Distribution Corporation
D26: Bridge Year | E26: =IF(ISBLANK(E24), "", E24-1) -> 2018 | Z26: 24 | AA26: Essex Powerlines Corporation
Z27: 25 | AA27: Festival Hydro Inc.
D28: Last Rebasing Year | E28: 2013 | Z28: 26 | AA28: Fort Albany Power Corporation
Z29: 27 | AA29: Fort Frances Power Corporation
A30: Identify the accounting standard used for the test year | Z30: 28 | AA30: Greater Sudbury Hydro Inc.
E31: MIFRS | Z31: 29 | AA31: Grimsby Power Inc.
Z32: 30 | AA32: Guelph Hydro Electric Systems Inc.
A33: Did you update your depreciation and capitalization policies and reflect the changes in policies in a prior rebasing application? | Z33: 31 | AA33: Halton Hills Hydro Inc.
E34: Yes | Z34: 32 | AA34: Hearst Power Distribution Company Limited
Z35: 33 | AA35: Hydro 2000 Inc.
A36: When did you update your actual depreciation and capitalization policies? | Z36: 34 | AA36: Hydro Hawkesbury Inc.
E37: 2001-01-01 | F37: 2012 | Z37: 35 | AA37: Hydro One Networks Inc.
Z38: 36 | AA38: Hydro One Networks Inc. - Norfolk, Haldimand, Woodstock
A39: Identify the year the applicant adopted IFRS for financial reporting purposes | Z39: 37 | AA39: Hydro One Remote Communities Inc.
E40: 2015 | Z40: 38 | AA40: Hydro Ottawa Limited
Z41: 39 | AA41: Innpower Corporation
Z42: 40 | AA42: Kashechewan Power Corporation
A43: Are you applying for cost recovery for the test and/or future year(s) for Green Energy initiatives? | Z43: 41 | AA43: Kenora Hydro Electric Corporation Ltd.
E44: Yes | Z44: 42 | AA44: Kingston Hydro Corporation
Z45: 43 | AA45: Kitchener-Wilmot Hydro Inc.
A46: ="Is " & E14 & " an embedded distributor?" -> Is Lakeland Power Distribution Ltd. an embedded distributor? | E46: Yes | Z46: 44 | AA46: Lakefront Utilities Inc.
Z47: 45 | AA47: Lakeland Power Distribution Ltd.
Z48: 46 | AA48: London Hydro Inc.
B49: Notes | Z49: 47 | AA49: Midland Power Utility Corporation
Z50: 48 | AA50: Milton Hydro Distribution Inc.
C51: Pale green cells represent input cells. | Z51: 49 | AA51: Newmarket-Tay Power Distribution Ltd.
Z52: 50 | AA52: Niagara Peninsula Energy Inc.
C53: Pale blue cells represent drop-down lists. The applicant should select the appropriate item from the drop-down list. | Z53: 51 | AA53: Niagara-on-the-Lake Hydro Inc.
Z54: 52 | AA54: North Bay Hydro Distribution Limited
C55: White cells contain fixed values, automatically generated values or formulae. | N55: =IF(LEN($G55)>1, (SUMPRODUCT(--($C$78:$C$1000=$C55),--($A$78:$A$1000=$D55), --($B$78:$B$1000=$B55&"_TOTAL"), $L$78:$L$1000)), "") ->  | O55: =IF(LEN($G55)>1, (SUMPRODUCT(--($C$78:$C$1000=$C55),--($A$78:$A$1000=$D55), --($B$78:$B$1000=$B55&"_TOTAL"), $M$78:$M$1000)), "") ->  | Z55: 53 | AA55: Northern Ontario Wires Inc.
N56: =IF(LEN($G56)>1, (SUMPRODUCT(--($C$78:$C$1000=$C56),--($A$78:$A$1000=$D56), --($B$78:$B$1000=$B56&"_TOTAL"), $L$78:$L$1000)), "") ->  | O56: =IF(LEN($G56)>1, (SUMPRODUCT(--($C$78:$C$1000=$C56),--($A$78:$A$1000=$D56), --($B$78:$B$1000=$B56&"_TOTAL"), $M$78:$M$1000)), "") ->  | Z56: 54 | AA56: Oakville Hydro Electricity Distribution Inc.
Z57: 55 | AA57: Orangeville Hydro Limited
Z58: 56 | AA58: Orillia Power Distribution Corporation
Z59: 57 | AA59: Oshawa PUC Networks Inc.
Z60: 58 | AA60: Ottawa River Power Corporation
Z61: 59 | AA61: Peterborough Distribution Inc.
Z62: 60 | AA62: PUC Distribution Inc.
Z63: 61 | AA63: Renfrew Hydro Inc.
Z64: 62 | AA64: Rideau St. Lawrence Distribution Inc.
Z65: 63 | AA65: Sioux Lookout Hydro Inc.
Z66: 64 | AA66: St. Thomas Energy Inc.
Z67: 65 | AA67: Thunder Bay Hydro Electricity Distribution Inc.
Z68: 66 | AA68: Tillsonburg Hydro Inc.
Z69: 67 | AA69: Toronto Hydro-Electric System Limited
Z70: 68 | AA70: Veridian Connections Inc.
Z71: 69 | AA71: Wasaga Distribution Inc.
Z72: 70 | AA72: Waterloo North Hydro Inc.
Z73: 71 | AA73: Welland Hydro-Electric System Corp.
Z74: 72 | AA74: Wellington North Power Inc.
Z75: 73 | AA75: West Coast Huron Energy Inc.
Z76: 74 | AA76: Westario Power Inc.
Z77: 75 | AA77: Whitby Hydro Electric Corporation

Sheet Index
A15: 1 | B15: LDC Information Sheet | E15: 20 | F15: App.2-G: Service Reliability Indicators
A16: 2 | B16: Index | E16: 21 | F16: App.2-H: Other Operating Revenue (TO BE UPDATED AT THE DRAFT RATE ORDER STAGE)
A17: 3 | B17: Cost of Service Application Flowchart | E17: 22 | F17: App.2-I: Load Forecast CDM Adjustment Workform
A18: 4 | B18: List of Key References | E18: 23 | F18: App.2-IA: Load Forecast Data Instructions
A19: 5 | B19: App.2-A: List of Requested Approvals | E19: 24 | F19: App.2-IB: Actual and Forecast Load and Customer Data
A20: 6 | B20: App.2-AA: Capital Projects Table | E20: 25 | F20: App.2-JA: OM&A Summary Analysis (TO BE UPDATED AT THE DRAFT RATE ORDER STAGE)
A21: 7 | B21: App.2-AB: Capital Expenditures (TO BE UPDATED AT THE DRAFT RATE ORDER STAGE) | E21: 26 | F21: App.2-JB: Recoverable OM&A Cost Driver Table
A22: 8 | B22: App. 2-AC: Customer Engagement Worksheet | E22: 27 | F22: App.2-JC: OM&A Programs Table
A23: 9 | B23: App.2-B: General Accounting Instructions | E23: 28 | F23: App.2-K: Employee Costs (TO BE UPDATED AT THE DRAFT RATE ORDER STAGE)
A24: 10 | B24: App.2-BA: Fixed Asset Continuity Schedule | E24: 29 | F24: App.2-L: Recoverable OM&A Cost per Customer and per FTE
A25: 11 | B25: Appendix 2-BB: Service Life Comparison | E25: 30 | F25: App.2-M: Regulatory Costs Schedule (TO BE UPDATED AT THE DRAFT RATE ORDER STAGE)
A26: 12 | B26: App.2-C_DepExp: Depreciation and Amortization Expense | E26: 31 | F26: App.2-N: Shared Services and Corporate Cost Allocation
A27: 13 | B27: App.2-D: Overhead Expenses | E27: 32 | F27: App.2-OA: Capital Structure and Cost of Capital
A28: 14 | B28: App.2-EA: Account 1575 PP&E Deferral Account (2015 IFRS Adopters) - CONTACT OEB STAFF IF TAB REQUIRED | E28: 33 | F28: App.2-OB: Debt Instruments
A29: 15 | B29: App.2-EB: Account 1576 - Accounting Changes Under CGAAP (2012 Changes) - CONTACT OEB STAFF IF TAB REQUIRED | E29: 34 | F29: App.2-Q: Cost of Serving Embedded Distributor(s)
A30: 16 | B30: App.2-EC: Account 1576 - Accounting Changes Under CGAAP (2013 Changes) - CONTACT OEB STAFF IF TAB REQUIRED | E30: 35 | F30: App.2-R: Loss Factors
A31: 17 | B31: App.2-FA: Renewable Generation Connection Investment Summary (TO BE UPDATED AT THE DRAFT RATE ORDER STAGE) | E31: 36 | F31: App.2-S: Stranded Meter Treatment
A32: 18 | B32: App.2-FB: Calculation of Renewable Generation Connection Direct Benefits/Provincial Amount: Renewable Enabling Improvement Investments (TO BE UPDATED AT THE DRAFT RATE ORDER STAGE) | E32: 37 | F32: App.2-Y: Transition to MIFRS Summary Impact - CONTACT OEB STAFF IF TAB REQUIRED
A33: 19 | B33: App.2-FC: Calculation of Renewable Generation Connection Direct Benefits/Provincial Amount: Renewable Expansion Investments (TO BE UPDATED AT THE DRAFT RATE ORDER STAGE) | E33: 38 | F33: App.2-YA: One-Time Incremental IFRS Transition Costs - CONTACT OEB STAFF IF TAB REQUIRED
E34: 39 | F34: App.2-Z: Commodity Expense
A42: Note: | B42: Appendices for the Tariff of Rates and Charges at Current and Proposed Rates, and for the Bill Impacts are now in a separate spreadsheet model. These appendices were formerly 2-Z and 2-W.

Sheet COS Flowchart
B4: Cost of Service Rate Application Schematic
B6: The Cost of Service Rate Application Schematic is a flowchart that is included as a guide for the components of an application. The schematic demonstrates how demand and costs interrelate to derive the revenue requirement and how the revenue requirement is allocated between classes and through fixed/variable splits to derive rates that will be compensatory for the annual revenue requirement, based on the the forecasted demand. There is no form to be filled out; therefore, this Schedule is not required to be filed.

Sheet List of Key References
B2: List of Key References
A4: A list of key references for understanding the Filing Requirements has been embedded in the document below. To access the list of references and associated hyperlinks double-click the icon below.

Sheet App.2-AA_Capital Projects
G1: File Number: | H1: =EBNUMBER -> EB-2018-0050
G2: Exhibit: | H2: 2
G3: Tab: | H3: Table 33
G4: Schedule:
G5: Page: | H5: 51
G7: Date: | H7: 2019-03-21
A9: Appendix 2-AA
A10: Capital Projects Table
A13: Projects | B13: =C13-1 -> 2014 | C13: =D13-1 -> 2015 | D13: =E13-1 -> 2016 | E13: =BridgeYear - 1 -> 2017 | F13: =BridgeYear & " Bridge Year" -> 2018 Bridge Year | G13: =TestYear & " Test Year" -> 2019 Test Year
A14: Reporting Basis | B14: CGAAP | C14: MIFRS | D14: MIFRS | E14: MIFRS | F14: MIFRS | G14: MIFRS
A15: System Access
A16: New Services - Forecasted customer new service requests | F16: 269728 | G16: 250000
A17: Meter changes, single phase/ three phase, gate keeper upgrades | F17: 246896 | G17: 130000
A18: General Service Work | F18: 169317
A19: Asset Replacements Bracebridge Capital | B19: 70240.09 | C19: 92808.69 | D19: 150291.51 | E19: 101355.11
A20: Conversion Robert Dollar Upgrade to 27.6 kv | B20: 0 | C20: 0 | D20: 134136.21 | E20: 61650.4
A21: Asset Replacements Parry Sound Capital | B21: 28547.21 | C21: 34016.27 | D21: 64516.3 | E21: 47476.09
A22: MS1 Huntsville | B22: 168347.48 | C22: 0 | D22: 0 | E22: 0
A23: Conversion Hwy 118 W Ecclestone to E.P. Lee DrBracebridge | B23: 0 | C23: 0 | D23: 137271.75 | E23: 0
A24: Lofthouse Manufacturing – Burks Falls | B24: 0 | C24: 25665.96 | D24: 109261.82 | E24: 0
A25: New Service 2017 | B25: 0 | C25: 0 | D25: 0 | E25: 112270.95
A26: Joint Use Projects on LPDL Assets | B26: 2654 | C26: 33534.74 | D26: 6140.94 | E26: 63200.79
A27: Asset Replacements Huntsville Capital | B27: 10092.09 | C27: 38758.23 | D27: 31783.34 | E27: 20099.43
A28: Bowes St- Parry Sound | B28: 0 | C28: 53768.28 | D28: 43940.78 | E28: 0
A29: Centennial Substation reclosers- Bracebridge | B29: 83069.84 | C29: 11170.67 | D29: 0 | E29: 0
A30: Albert St, High St. and Park Hill Rd – Sundridge | B30: 0 | C30: 84553.35 | D30: 0 | E30: 0
A31: New Service Parry Sound Connect Service's | B31: 56792.67 | C31: 0 | D31: 0 | E31: 0
A32: New Service -King William St. – Huntsville | B32: 0 | C32: 0 | D32: 52134.2 | E32: 0
A33: Miscellaneous - all system access individual Projects < $50,000 | B33: 99511.67 | C33: 4631.39 | D33: 7478.68 | E33: 17064.77 | F33: 28327
A37: Sub-Total | B37: =SUM(B19:B36) -> 519255.05 | C37: =SUM(C19:C36) -> 378907.58 | D37: =SUM(D19:D36) -> 736955.53 | E37: =SUM(E19:E36) -> 423117.54 | F37: =SUM(F16:F36) -> 714268 | G37: =SUM(G16:G36) -> 380000
A38: System Renewal
A39: UpGrade MS3 – Parry Sound | B39: 74550.1 | C39: 618247.77 | D39: 84418.85 | E39: 102063.72
A40: Transformer Stock purchased for projects | B40: 150608.212 | C40: 100655.76 | D40: 157626.56 | E40: 297483.38 | F40: 196769
A41: Brofoco Dr- Bracebridge | F41: 184653 | G41: 180000
A42: Aging Asset Replacements Due To Inspections | F42: 132142
A43: MS2 Huntsville Primary Feeder Replacement | F43: 110800
A44: Capital Storm Damage / Trouble Call | F44: 76960
A45: Conversion Wilshire Blvd. - Bracebridge | B45: 307497.23 | C45: 186502.41 | D45: 0 | E45: 0
A46: Great North Rd Parry Sound | B46: 0 | C46: 0 | D46: 0 | E46: 426544.04
A47: Meter materials held in inventory | B47: 69347.138 | C47: 74316.96 | D47: 126923.7 | E47: 135995.26
A48: Conversion Hillcrest Ave. and William St. – Parry Sound | B48: 0 | C48: 0 | D48: 341286.13 | E48: 1959.85
A49: Cedar Lane New 27kv | B49: 0 | C49: 226635.13 | D49: 88341.18 | E49: 0
A50: Upgrade Replacements due to inspections - Parrr Sound | B50: 0 | C50: 1885.05 | D50: 275246.21 | E50: 4968.05
A51: Forest St. Parry Sound- Parry Sound Rd to Bowes St. - replace poles/wire/transformers | G51: 265000
A52: Parry Sound Rd Conversion | B52: 0 | C52: 0 | D52: 0 | E52: 1766.42 | F52: 130094
A53: York St/Bird Lane/Toronto St./ Richard St - Bracebridge | G53: 225000
A54: Sundridge, Burks Falls, Magnetawan, Parry Sound, Bracebridge, Huntsville | G54: 195000
A55: Young St and Milton St. - Bracebridge voltage conversion replace poles, wires and transformers | G55: 181000
A56: Asset Replacement Bracebridge Capital | B56: 108419.49 | C56: 8646.52 | D56: 1136.33 | E56: 4747.31
A57: Conversion Addie St. – Parry Sound (PSP2B) | B57: 132107.64 | C57: 40402.07 | D57: 0 | E57: 0
A58: Conversion Sadler Dr/ Palmer Dr/ Maple Dr in Bracebridge | B58: 0 | C58: 16649.19 | D58: 36633.6 | E58: 100972.61
A59: Asset Replacement From Inspections | B59: 0 | C59: 151891.78 | D59: 0 | E59: 0
A60: Main St. Sundridge | F60: 169329
A61: Conversion Wellington Court | B61: 92016.69 | C61: 53934.66 | D61: 0 | E61: 0
A62: Upgrade Paget St – Sundridge | B62: 44328.86 | C62: 101560.71 | D62: 0 | E62: 0
A63: Asset Replacement Centre Street in Huntsville | B63: 0 | C63: 0 | D63: 0 | E63: 43078 | F63: 62300
A64: Conversion Pinewood Dr and Sherwood Dr.- Bracebridge | B64: 0 | C64: 1824.15 | D64: 127546.24 | E64: 2757.72
A65: Conversion Dawsonwood Rd in Bracebridge | B65: 0 | C65: 0 | D65: 0 | E65: 102937.66
A66: Upgrade Birchwood Dr/Edgar St. – Sundridge | B66: 0 | C66: 0 | D66: 100712.46 | E66: 0
A67: Pole Replacement - Parry Sound | B67: 0 | C67: 0 | D67: 0 | E67: 98377.38
A68: Asset Replacements Pole Inspection 2014 | B68: 86845.49 | C68: 6254.43 | D68: 0 | E68: 0
A69: Conversion Granite Bluffs – Bracebridge | B69: 0 | C69: 0 | D69: 89347.51 | E69: 0
A70: Pole Replacement - Bracebridge | B70: 0 | C70: 0 | D70: 0 | E70: 87305.45
A71: Sadler Dr Palmer Dr. Maple Dr Bracebridge | F71: 108374
A72: Asset Replacement Parry Sound Capital | B72: 0 | C72: 2614.15 | D72: 2996.43 | E72: 0
A73: Veteran's Way - Huntsville | F73: 101405
A74: Menominee St - Huntsville Primary underground / pole/ transformer | G74: 64000
A75: Asset Replacement Walpole & Mary St Huntsville | B75: 0 | C75: 0 | D75: 1388.29 | E75: 57784.82
A76: Bracebridge - Kirk Line East
A77: Isabella st - Parry Sound | F77: 66117
A78: Miscellaneous - all system renewal individual Projects < $50,000 | B78: =67141.86+67.55 -> 67209.41 | C78: 26470.59 | D78: 46399.35 | E78: =127059.08+222.32 -> 127281.4
A79: Sub-Total | B79: =SUM(B39:B78) -> 1132930.26 | C79: 1618491.33 | D79: 1480002.84 | E79: 1596023.07 | F79: 1338943 | G79: 1110000
A80: System Service
A81: WoodwardSt./Front St/ Alice St. Bracebridge. | F81: 6940
A82: Voltage Conversion James St, BB Move line edge of property | B82: 0 | C82: 0 | D82: 0 | E82: 51340.2 | F82: 110160
A83: Ecclestone Dr - Bracebridge | B83: 0 | C83: 130777.28 | D83: 47029.68 | E83: 5515.78 | F83: 135169
A84: Lakeland SCADA System | B84: 79675.94 | C84: 35362.49 | D84: 86365.97 | E84: 8938.21 | G84: 75000
A85: Muskoka Rd - Bracebridge Manitoba St. to Shire St | G85: 290000
A86: New Generation Cascade St | B86: 0 | C86: 220877.7 | D86: 41148.32 | E86: 12842.62
A87: Robert Boyer Ln – Bracebridge | B87: 71314.96 | C87: 0 | D87: 0 | E87: 0
A88: Holditch St. - Bracebridge | B88: 81430.19 | C88: 67644.23 | D88: 0 | E88: 0
A89: River Rd. – Bracebridge | B89: 121176.41 | C89: 15478.68 | D89: 0 | E89: 0
A90: Hydro One Primary meter point conversion to IESO | G90: 120000
A91: Asset Replacement Bracebridge Capital | B91: 9576.57 | C91: 22609.9 | D91: 13380.67 | E91: 13869.34
A92: Voltage Conversion River St at Seguin river Parry Sound | B92: 0 | C92: 0 | D92: 58739.34 | E92: 0
A93: Miscellaneous - all system service individual Projects < $50,000 | B93: 7356.69 | C93: 854.07 | D93: 9156.26 | E93: 49057
A94: Sub-Total | B94: =SUM(B81:B93) -> 370530.76 | C94: 493604.35 | D94: 255820.24 | E94: 141563.15 | F94: 252269 | G94: 485000
A95: Project Name #4
A96: General Plant
A97: Computer Software | B97: 139786.1 | C97: 22771.38 | D97: 4625 | E97: 45266 | F97: 5006 | G97: 325000
A98: Land Rights | B98: 2227 | C98: 18121.02 | D98: -7500 | E98: 0
A99: Buildings - Distribution | B99: 4534 | C99: 341650 | D99: 0 | E99: -10000 | F99: -14153 | G99: 50000
A100: Land | B100: 0 | C100: 25346 | D100: 0 | E100: 0
A101: Buildings & Fixtures - General | B101: 21045 | C101: 22119 | D101: 0 | E101: 81697 | F101: -7229
A102: Leasehold Improvements to Parry Sound Office | B102: 24941.82 | C102: -141540 | D102: 0 | E102: 0
A103: Office Furniture & Equipment | B103: 3558 | C103: 21524 | D103: 0 | E103: 0 | F103: 11528
A104: Computer Equipment - Hardware | B104: 25724.26 | C104: 4409 | D104: 6104.71 | E104: 3421 | F104: 20216 | G104: 50000
A105: Transportation Equipment | B105: 243123.82 | C105: 267746 | D105: 26237.8 | E105: 127913 | F105: 94046 | G105: 200000
A106: Tools, Shop & Garage Equipment | B106: 20060 | C106: 15770 | D106: 0 | E106: 0 | F106: 25244 | G106: 25000
A107: Communications Equipment | B107: 296 | C107: 0 | D107: 0 | E107: 0
A109: Sub-Total | B109: =SUM(B96:B108) -> 485296 | C109: 597916.4 | D109: 29467.51 | E109: 248297 | F109: 134658 | G109: 650000
A110: Miscellaneous
A111: Total | B111: =SUMPRODUCT(--($A15:$A110="Sub-Total"), B$15:B$110)+B110 -> 2508012.07 | C111: 3088919.66 | D111: 2502246.12 | E111: 2409000.76 | F111: 2440138 | G111: 2625000
A112: Less Renewable Generation Facility Assets and Other Non-Rate-Regulated Utility Assets (input as negative)
A113: Total | B113: =B111+B112 -> 2508012.07 | C113: 3088919.66 | D113: 2502246.12 | E113: 2409000.76 | F113: 2440138 | G113: 2625000
A115: Notes:
A117: 1 Please provide a breakdown of the major components of each capital project undertaken in each year. Please ensure that all projects below the materiality threshold are included in the miscellaneous line. Add more projects as required.
A118: 2 The applicant should group projects appropriately and avoid presentations that result in classification of significant components of the capital budget in the miscellaneous category.

Sheet App.2-A_Requested_Approvals
G1: File Number: | H1: =EBNUMBER -> EB-2018-0050
G2: Exhibit:
G3: Tab:
G4: Schedule:
G5: Page:
G7: Date: | H7: 2019-03-21
B9: Appendix 2-A
B10: List of Requested Approvals
B12: The distributor must fill out the following sheet with the complete list of specific approvals requested and relevant section(s) of the legislation must be provided. All approvals, including accounting orders (deferral and variance accounts) new rate classes, revised specific service charges or retail service charges which the applicant is seeking, must be separately identified, as well being clearly documented in the appropriate sections of the application.
B14: Additional requests may be added by copying and pasting blank input rows, as needed.
B16: If additional requests arise, or requested approvals are removed, during the processing of the application, the distributor should update this list.
B18: =CONCATENATE('LDC Info'!E14," is seeking the following approvals in this application:") -> Lakeland Power Distribution Ltd. is seeking the following approvals in this application:
B20: 1 | F20: Approval to charge distribution rates effective May 1, 2019 to recover a service revenue requirement of $8,174,151 which includes a revenue sufficiency of $593,522 as detailed in RRWF. The schedule of proposed rates is set out in the settlement agreement.
B22: 2 | F22: Approval to continue to charge the currently approved rates for former Parry Sound Service Area (“PSP”)from EB-2017-0058 that commenced January 1, 2018 until April 30, 2019 in order to facilitate rate harmonization on the same rate year (May 1)
B24: 3 | F24: Approval to harmonize distribution rates and Specific Service Charges for the former LPDL and former PSP service areas as set out in Exhibit 8 and simplified in settlement agreement
B26: 4 | F26: Approval to adjust the Retail Transmission Rates – Network and Connection as detailed in Exhibit 8
B28: 5 | F28: Approval of the proposed loss factors as detailed in Exhibit 8
B30: 6 | F30: Approval of the Specific Service Charges, a merging of the currently approved charges into one schedule, as outlined in Exhibit 8
B32: 7 | F32: Approval to charge the Board’s updated Pole Attachment Charge, effective January 1, 2019
B34: 8 | F34: Approval of the rate riders for disposition of the Group 1 and Group 2 and Other Deferral and Variance Accounts as detailed in Exhibit 9 and updated in settlement agreement
B36: 9 | F36: Approval of the rate rider for a one year disposition of the Lost Revenue Adjustment Mechanism Variance Account (“LRAMVA”) for lost revenue as set out in Exhibits 4 and 9 - REMOVED
B38: 10 | F38: Approval of Distribution System Plan as outlined in Exhibit 2
B40: 11 | F40: Approval of a revised MicroFit monthly service charge as outlined in Exhibit 3 and 8

Sheet App.2-AB_Capital Expenditures
AE1: File Number: | AG1: =EBNUMBER -> EB-2018-0050
AE2: Exhibit: | AG2: 2
AE3: Tab: | AG3: Table 32
AE4: Schedule:
A5: TO BE UPDATED AT THE DRAFT RATE ORDER STAGE | AE5: Page: | AG5: 51
AE7: Date: | AG7: 2019-03-21
A9: Appendix 2-AB
A10: Table 2 - Capital Expenditure Summary from Chapter 5 Consolidated Distribution System Plan Filing Requirements
A11: First year of Forecast Period:
A12: =TestYear -> 2019
A13: CATEGORY | B13: Historical Period (previous plan1 & actual) | AC13: Forecast Period (planned)
B14: =E14-1 -> 2010 | E14: =H14-1 -> 2011 | H14: =K14-1 -> 2012 | K14: =N14-1 -> 2013 | N14: =Q14-1 -> 2014 | Q14: =T14-1 -> 2015 | T14: =W14-1 -> 2016 | W14: =Z14-1 -> 2017 | Z14: =AC14-1 -> 2018 | AC14: =A12 -> 2019 | AD14: =AC14+1 -> 2020 | AE14: =AD14+1 -> 2021 | AF14: =AE14+1 -> 2022 | AG14: =AF14+1 -> 2023
B15: Plan | C15: Actual | D15: Var | E15: Plan | F15: Actual | G15: Var | H15: Plan | I15: Actual | J15: Var | K15: Plan | L15: Actual | M15: Var | N15: Plan | O15: Actual | P15: Var | Q15: Plan | R15: Actual | S15: Var | T15: Plan | U15: Actual | V15: Var | W15: Plan | X15: Actual | Y15: Var | Z15: Plan | AA15: Actual2 | AB15: Var
B16: $ '000 | D16: % | E16: $ '000 | G16: % | H16: $ '000 | J16: % | K16: $ '000 | M16: % | N16: $ '000 | P16: % | Q16: $ '000 | S16: % | T16: $ '000 | V16: % | W16: $ '000 | Y16: % | Z16: $ '000 | AB16: % | AC16: $ '000
A17: System Access | D17: =IF(ISERROR((C17-B17)/B17),"--",(C17-B17)/B17) -> -- | G17: =IF(ISERROR((F17-E17)/E17),"--",(F17-E17)/E17) -> -- | J17: =IF(ISERROR((I17-H17)/H17),"--",(I17-H17)/H17) -> -- | L17: 264 | M17: =IF(ISERROR((L17-K17)/K17),"--",(L17-K17)/K17) -> -- | O17: 519 | P17: =IF(ISERROR((O17-N17)/N17),"--",(O17-N17)/N17) -> -- | R17: 379 | S17: =IF(ISERROR((R17-Q17)/Q17),"--",(R17-Q17)/Q17) -> -- | U17: 737 | V17: =IF(ISERROR((U17-T17)/T17),"--",(U17-T17)/T17) -> -- | X17: 423 | Y17: =IF(ISERROR((X17-W17)/W17),"--",(X17-W17)/W17) -> -- | Z17: 400 | AA17: =714268/1000 -> 714.268 | AB17: =IF(ISERROR((AA17-Z17)/Z17),"--",(AA17-Z17)/Z17) -> 0.78567 | AC17: 380 | AD17: 350 | AE17: 350 | AF17: 350 | AG17: 350
A18: System Renewal | D18: =IF(ISERROR((C18-B18)/B18),"--",(C18-B18)/B18) -> -- | G18: =IF(ISERROR((F18-E18)/E18),"--",(F18-E18)/E18) -> -- | J18: =IF(ISERROR((I18-H18)/H18),"--",(I18-H18)/H18) -> -- | L18: 1110 | M18: =IF(ISERROR((L18-K18)/K18),"--",(L18-K18)/K18) -> -- | O18: 1133 | P18: =IF(ISERROR((O18-N18)/N18),"--",(O18-N18)/N18) -> -- | R18: 1618 | S18: =IF(ISERROR((R18-Q18)/Q18),"--",(R18-Q18)/Q18) -> -- | U18: 1480 | V18: =IF(ISERROR((U18-T18)/T18),"--",(U18-T18)/T18) -> -- | X18: 1596 | Y18: =IF(ISERROR((X18-W18)/W18),"--",(X18-W18)/W18) -> -- | Z18: 1246 | AA18: =1338943/1000 -> 1338.943 | AB18: =IF(ISERROR((AA18-Z18)/Z18),"--",(AA18-Z18)/Z18) -> 0.07459309791 | AC18: 1110 | AD18: 830 | AE18: 1570 | AF18: 1200 | AG18: 1125
A19: System Service | D19: -- | G19: -- | J19: -- | L19: 481 | M19: -- | O19: 371 | P19: -- | R19: 494 | S19: -- | U19: 256 | V19: -- | X19: 142 | Y19: -- | Z19: 713 | AA19: =252269/1000 -> 252.269 | AB19: -0.6461865358 | AC19: 485 | AD19: 1265 | AE19: 560 | AF19: 1000 | AG19: 1360
A20: General Plant | D20: -- | G20: -- | J20: -- | K20: 3230 | L20: 564 | M20: -0.8253869969 | N20: 2816 | O20: 485 | P20: -0.8277698864 | Q20: 1959 | R20: 598 | S20: -0.6947422154 | T20: 1800 | U20: 29 | V20: -0.9838888889 | W20: 1950 | X20: 248 | Y20: -0.8728205128 | Z20: 301 | AA20: =134658/1000 -> 134.658 | AB20: -0.5526312292 | AC20: 650 | AD20: 375 | AE20: 425 | AF20: 515 | AG20: 504
A21: TOTAL EXPENDITURE | B21: =SUM(B17:B20) -> 0 | C21: =SUM(C17:C20) -> 0 | D21: -- | E21: =SUM(E17:E20) -> 0 | F21: =SUM(F17:F20) -> 0 | G21: -- | H21: =SUM(H17:H20) -> 0 | I21: =SUM(I17:I20) -> 0 | J21: -- | K21: =SUM(K17:K20) -> 3230 | L21: =SUM(L17:L20) -> 2419 | M21: -0.2510835913 | N21: =SUM(N17:N20) -> 2816 | O21: =SUM(O17:O20) -> 2508 | P21: -0.109375 | Q21: 1959 | R21: 3089 | S21: 0.5768249107 | T21: 1800 | U21: 2502 | V21: 0.39 | W21: 1950 | X21: 2409 | Y21: 0.2353846154 | Z21: 2660 | AA21: 2440.138 | AB21: -0.08265488722 | AC21: 2625 | AD21: 2820 | AE21: 2905 | AF21: 3065 | AG21: =SUM(AG17:AG20) -> 3339
A22: Capital Contributions | D22: -- | G22: -- | J22: -- | K22: -40 | L22: -210 | M22: 4.25 | O22: -281 | P22: -- | R22: -194 | S22: -- | U22: -552 | V22: -- | X22: -366 | Y22: -- | Z22: -250 | AA22: =-347817/1000 -> -347.817 | AB22: 0.391268 | AC22: -250 | AD22: -250 | AE22: -250 | AF22: -250 | AG22: -250
A23: Net Capital Expenditures | D23: -- | G23: -- | J23: -- | K23: 3190 | L23: 2210 | M23: -0.3072100313 | N23: 2816 | O23: 2227 | P23: -0.2091619318 | Q23: 2959 | R23: 2895 | S23: -0.02162892869 | T23: 1800 | U23: 1951 | V23: 0.08388888889 | W23: 1950 | X23: 2043 | Y23: 0.04769230769 | Z23: 2410 | AA23: =2092321/1000 -> 2092.321 | AB23: -0.1318170124 | AC23: 2375 | AD23: 2570 | AE23: 2655 | AF23: 2815 | AG23: 3089
A24: System O&M | D24: -- | G24: -- | J24: -- | K24: 1519 | L24: 1532 | M24: 0.008558262014 | N24: 1677 | O24: 1689 | P24: 0.007155635063 | Q24: 1705 | R24: 1656 | S24: -0.02873900293 | T24: 1577 | U24: 1633 | V24: 0.0355104629 | W24: 1681 | X24: 1671 | Y24: -0.005948839976 | Z24: 1784 | AA24: =1878921/1000 -> 1878.921 | AB24: 0.05320683857 | AC24: 1834 | AD24: 1895 | AE24: 1965 | AF24: 2035 | AG24: 2105
A26: Notes to the Table:
A27: 1. Historical “previous plan” data is not required unless a plan has previously been filed. However, use the last Board-approved, at least on a Total (Capital) Expenditure basis for the last cost of service rebasing year, and the applicant should include their planned budget in each subsequent historical year up to and including the Bridge Year.
A28: 2. Indicate the number of months of 'actual' data included in the last year of the Historical Period (normally a 'bridge' year):
A30: Explanatory Notes on Variances (complete only if applicable)
A31: Notes on shifts in forecast vs. historical budgets by category
A34: Notes on year over year Plan vs. Actual variances for Total Expenditures
A35: Total Expenditure "Plan" is locked for editing. LPDL has not filed a previous plan, therefore the last Board-approved plan and LPDL annual budget has been entered in full under General Plant.
A37: Notes on Plan vs. Actual variance trends for individual expenditure categories

Sheet Hidden_CAPEX (hidden)
A1: Utility Name | B1: EB Number | C1: Test Year | D1: Bridge Year | E1: Last Rebasing Year | F1: Category | G1: Year | H1: Plan | I1: Actual
A2: ='LDC Info'!$E$14 -> Lakeland Power Distribution Ltd. | B2: =EBNUMBER -> EB-2018-0050 | C2: =TestYear -> 2019 | D2: =BridgeYear -> 2018 | E2: =RebaseYear -> 2013 | F2: System Access | G2: 2010 | H2: ='App.2-AB_Capital Expenditures'!B17 -> 0 | I2: ='App.2-AB_Capital Expenditures'!C17 -> 0
A3: ='LDC Info'!$E$14 -> Lakeland Power Distribution Ltd. | B3: EB-2018-0050 | C3: 2019 | D3: 2018 | E3: 2013 | F3: System Renewal | G3: 2010 | H3: ='App.2-AB_Capital Expenditures'!B18 -> 0 | I3: ='App.2-AB_Capital Expenditures'!C18 -> 0
A4: ='LDC Info'!$E$14 -> Lakeland Power Distribution Ltd. | B4: EB-2018-0050 | C4: 2019 | D4: 2018 | E4: 2013 | F4: System Service | G4: 2010 | H4: ='App.2-AB_Capital Expenditures'!B19 -> 0 | I4: ='App.2-AB_Capital Expenditures'!C19 -> 0
A5: ='LDC Info'!$E$14 -> Lakeland Power Distribution Ltd. | B5: EB-2018-0050 | C5: 2019 | D5: 2018 | E5: 2013 | F5: General Plant | G5: 2010 | H5: ='App.2-AB_Capital Expenditures'!B20 -> 0 | I5: ='App.2-AB_Capital Expenditures'!C20 -> 0
A6: ='LDC Info'!$E$14 -> Lakeland Power Distribution Ltd. | B6: EB-2018-0050 | C6: 2019 | D6: 2018 | E6: 2013 | F6: Total Expenditure | G6: 2010 | H6: ='App.2-AB_Capital Expenditures'!B21 -> 0 | I6: ='App.2-AB_Capital Expenditures'!C21 -> 0
A7: ='LDC Info'!$E$14 -> Lakeland Power Distribution Ltd. | B7: EB-2018-0050 | C7: 2019 | D7: 2018 | E7: 2013 | F7: Capital Contributions | G7: 2010 | H7: ='App.2-AB_Capital Expenditures'!B22 -> 0 | I7: ='App.2-AB_Capital Expenditures'!C22 -> 0
A8: ='LDC Info'!$E$14 -> Lakeland Power Distribution Ltd. | B8: EB-2018-0050 | C8: 2019 | D8: 2018 | E8: 2013 | F8: Net Capital Expenditures | G8: 2010 | H8: ='App.2-AB_Capital Expenditures'!B23 -> 0 | I8: ='App.2-AB_Capital Expenditures'!C23 -> 0
A9: ='LDC Info'!$E$14 -> Lakeland Power Distribution Ltd. | B9: EB-2018-0050 | C9: 2019 | D9: 2018 | E9: 2013 | F9: System O&M | G9: 2010 | H9: ='App.2-AB_Capital Expenditures'!B24 -> 0 | I9: ='App.2-AB_Capital Expenditures'!C24 -> 0
A10: ='LDC Info'!$E$14 -> Lakeland Power Distribution Ltd. | B10: EB-2018-0050 | C10: 2019 | D10: 2018 | E10: 2013 | F10: System Access | G10: 2011 | H10: ='App.2-AB_Capital Expenditures'!E17 -> 0 | I10: ='App.2-AB_Capital Expenditures'!F17 -> 0
A11: ='LDC Info'!$E$14 -> Lakeland Power Distribution Ltd. | B11: EB-2018-0050 | C11: 2019 | D11: 2018 | E11: 2013 | F11: System Renewal | G11: 2011 | H11: ='App.2-AB_Capital Expenditures'!E18 -> 0 | I11: ='App.2-AB_Capital Expenditures'!F18 -> 0
A12: ='LDC Info'!$E$14 -> Lakeland Power Distribution Ltd. | B12: EB-2018-0050 | C12: 2019 | D12: 2018 | E12: 2013 | F12: System Service | G12: 2011 | H12: ='App.2-AB_Capital Expenditures'!E19 -> 0 | I12: ='App.2-AB_Capital Expenditures'!F19 -> 0
A13: ='LDC Info'!$E$14 -> Lakeland Power Distribution Ltd. | B13: EB-2018-0050 | C13: 2019 | D13: 2018 | E13: 2013 | F13: General Plant | G13: 2011 | H13: ='App.2-AB_Capital Expenditures'!E20 -> 0 | I13: ='App.2-AB_Capital Expenditures'!F20 -> 0
A14: ='LDC Info'!$E$14 -> Lakeland Power Distribution Ltd. | B14: EB-2018-0050 | C14: 2019 | D14: 2018 | E14: 2013 | F14: Total Expenditure | G14: 2011 | H14: ='App.2-AB_Capital Expenditures'!E21 -> 0 | I14: ='App.2-AB_Capital Expenditures'!F21 -> 0
A15: ='LDC Info'!$E$14 -> Lakeland Power Distribution Ltd. | B15: EB-2018-0050 | C15: 2019 | D15: 2018 | E15: 2013 | F15: Capital Contributions | G15: 2011 | H15: ='App.2-AB_Capital Expenditures'!E22 -> 0 | I15: ='App.2-AB_Capital Expenditures'!F22 -> 0
A16: ='LDC Info'!$E$14 -> Lakeland Power Distribution Ltd. | B16: EB-2018-0050 | C16: 2019 | D16: 2018 | E16: 2013 | F16: Net Capital Expenditures | G16: 2011 | H16: ='App.2-AB_Capital Expenditures'!E23 -> 0 | I16: ='App.2-AB_Capital Expenditures'!F23 -> 0
A17: ='LDC Info'!$E$14 -> Lakeland Power Distribution Ltd. | B17: EB-2018-0050 | C17: 2019 | D17: 2018 | E17: 2013 | F17: System O&M | G17: 2011 | H17: ='App.2-AB_Capital Expenditures'!E24 -> 0 | I17: ='App.2-AB_Capital Expenditures'!F24 -> 0
A18: ='LDC Info'!$E$14 -> Lakeland Power Distribution Ltd. | B18: EB-2018-0050 | C18: 2019 | D18: 2018 | E18: 2013 | F18: System Access | G18: 2012 | H18: ='App.2-AB_Capital Expenditures'!H17 -> 0 | I18: ='App.2-AB_Capital Expenditures'!I17 -> 0
A19: ='LDC Info'!$E$14 -> Lakeland Power Distribution Ltd. | B19: EB-2018-0050 | C19: 2019 | D19: 2018 | E19: 2013 | F19: System Renewal | G19: 2012 | H19: ='App.2-AB_Capital Expenditures'!H18 -> 0 | I19: ='App.2-AB_Capital Expenditures'!I18 -> 0
A20: ='LDC Info'!$E$14 -> Lakeland Power Distribution Ltd. | B20: EB-2018-0050 | C20: 2019 | D20: 2018 | E20: 2013 | F20: System Service | G20: 2012 | H20: ='App.2-AB_Capital Expenditures'!H19 -> 0 | I20: ='App.2-AB_Capital Expenditures'!I19 -> 0
A21: ='LDC Info'!$E$14 -> Lakeland Power Distribution Ltd. | B21: EB-2018-0050 | C21: 2019 | D21: 2018 | E21: 2013 | F21: General Plant | G21: 2012 | H21: ='App.2-AB_Capital Expenditures'!H20 -> 0 | I21: ='App.2-AB_Capital Expenditures'!I20 -> 0
A22: ='LDC Info'!$E$14 -> Lakeland Power Distribution Ltd. | B22: EB-2018-0050 | C22: 2019 | D22: 2018 | E22: 2013 | F22: Total Expenditure | G22: 2012 | H22: ='App.2-AB_Capital Expenditures'!H21 -> 0 | I22: ='App.2-AB_Capital Expenditures'!I21 -> 0
A23: ='LDC Info'!$E$14 -> Lakeland Power Distribution Ltd. | B23: EB-2018-0050 | C23: 2019 | D23: 2018 | E23: 2013 | F23: Capital Contributions | G23: 2012 | H23: ='App.2-AB_Capital Expenditures'!H22 -> 0 | I23: ='App.2-AB_Capital Expenditures'!I22 -> 0
A24: ='LDC Info'!$E$14 -> Lakeland Power Distribution Ltd. | B24: EB-2018-0050 | C24: 2019 | D24: 2018 | E24: 2013 | F24: Net Capital Expenditures | G24: 2012 | H24: ='App.2-AB_Capital Expenditures'!H23 -> 0 | I24: ='App.2-AB_Capital Expenditures'!I23 -> 0
A25: ='LDC Info'!$E$14 -> Lakeland Power Distribution Ltd. | B25: EB-2018-0050 | C25: 2019 | D25: 2018 | E25: 2013 | F25: System O&M | G25: 2012 | H25: ='App.2-AB_Capital Expenditures'!H24 -> 0 | I25: ='App.2-AB_Capital Expenditures'!I24 -> 0
A26: ='LDC Info'!$E$14 -> Lakeland Power Distribution Ltd. | B26: EB-2018-0050 | C26: 2019 | D26: 2018 | E26: 2013 | F26: System Access | G26: 2013 | H26: ='App.2-AB_Capital Expenditures'!K17 -> 0 | I26: ='App.2-AB_Capital Expenditures'!L17 -> 264
A27: ='LDC Info'!$E$14 -> Lakeland Power Distribution Ltd. | B27: EB-2018-0050 | C27: 2019 | D27: 2018 | E27: 2013 | F27: System Renewal | G27: 2013 | H27: ='App.2-AB_Capital Expenditures'!K18 -> 0 | I27: ='App.2-AB_Capital Expenditures'!L18 -> 1110
A28: ='LDC Info'!$E$14 -> Lakeland Power Distribution Ltd. | B28: EB-2018-0050 | C28: 2019 | D28: 2018 | E28: 2013 | F28: System Service | G28: 2013 | H28: ='App.2-AB_Capital Expenditures'!K19 -> 0 | I28: ='App.2-AB_Capital Expenditures'!L19 -> 481
A29: ='LDC Info'!$E$14 -> Lakeland Power Distribution Ltd. | B29: EB-2018-0050 | C29: 2019 | D29: 2018 | E29: 2013 | F29: General Plant | G29: 2013 | H29: ='App.2-AB_Capital Expenditures'!K20 -> 3230 | I29: ='App.2-AB_Capital Expenditures'!L20 -> 564
A30: ='LDC Info'!$E$14 -> Lakeland Power Distribution Ltd. | B30: EB-2018-0050 | C30: 2019 | D30: 2018 | E30: 2013 | F30: Total Expenditure | G30: 2013 | H30: ='App.2-AB_Capital Expenditures'!K21 -> 3230 | I30: ='App.2-AB_Capital Expenditures'!L21 -> 2419
A31: ='LDC Info'!$E$14 -> Lakeland Power Distribution Ltd. | B31: EB-2018-0050 | C31: 2019 | D31: 2018 | E31: 2013 | F31: Capital Contributions | G31: 2013 | H31: ='App.2-AB_Capital Expenditures'!K22 -> -40 | I31: ='App.2-AB_Capital Expenditures'!L22 -> -210
A32: ='LDC Info'!$E$14 -> Lakeland Power Distribution Ltd. | B32: EB-2018-0050 | C32: 2019 | D32: 2018 | E32: 2013 | F32: Net Capital Expenditures | G32: 2013 | H32: ='App.2-AB_Capital Expenditures'!K23 -> 3190 | I32: ='App.2-AB_Capital Expenditures'!L23 -> 2210
A33: ='LDC Info'!$E$14 -> Lakeland Power Distribution Ltd. | B33: EB-2018-0050 | C33: 2019 | D33: 2018 | E33: 2013 | F33: System O&M | G33: 2013 | H33: ='App.2-AB_Capital Expenditures'!K24 -> 1519 | I33: ='App.2-AB_Capital Expenditures'!L24 -> 1532
A34: ='LDC Info'!$E$14 -> Lakeland Power Distribution Ltd. | B34: =EBNUMBER -> EB-2018-0050 | C34: =TestYear -> 2019 | D34: =BridgeYear -> 2018 | E34: =RebaseYear -> 2013 | F34: System Access | G34: 2014 | H34: ='App.2-AB_Capital Expenditures'!N17 -> 0 | I34: ='App.2-AB_Capital Expenditures'!O17 -> 519
A35: ='LDC Info'!$E$14 -> Lakeland Power Distribution Ltd. | B35: EB-2018-0050 | C35: 2019 | D35: 2018 | E35: 2013 | F35: System Renewal | G35: 2014 | H35: ='App.2-AB_Capital Expenditures'!N18 -> 0 | I35: ='App.2-AB_Capital Expenditures'!O18 -> 1133
A36: ='LDC Info'!$E$14 -> Lakeland Power Distribution Ltd. | B36: EB-2018-0050 | C36: 2019 | D36: 2018 | E36: 2013 | F36: System Service | G36: 2014 | H36: ='App.2-AB_Capital Expenditures'!N19 -> 0 | I36: ='App.2-AB_Capital Expenditures'!O19 -> 371
A37: ='LDC Info'!$E$14 -> Lakeland Power Distribution Ltd. | B37: EB-2018-0050 | C37: 2019 | D37: 2018 | E37: 2013 | F37: General Plant | G37: 2014 | H37: ='App.2-AB_Capital Expenditures'!N20 -> 2816 | I37: ='App.2-AB_Capital Expenditures'!O20 -> 485
A38: ='LDC Info'!$E$14 -> Lakeland Power Distribution Ltd. | B38: EB-2018-0050 | C38: 2019 | D38: 2018 | E38: 2013 | F38: Total Expenditure | G38: 2014 | H38: ='App.2-AB_Capital Expenditures'!N21 -> 2816 | I38: ='App.2-AB_Capital Expenditures'!O21 -> 2508
A39: ='LDC Info'!$E$14 -> Lakeland Power Distribution Ltd. | B39: EB-2018-0050 | C39: 2019 | D39: 2018 | E39: 2013 | F39: Capital Contributions | G39: 2014 | H39: ='App.2-AB_Capital Expenditures'!N22 -> 0 | I39: ='App.2-AB_Capital Expenditures'!O22 -> -281
A40: ='LDC Info'!$E$14 -> Lakeland Power Distribution Ltd. | B40: EB-2018-0050 | C40: 2019 | D40: 2018 | E40: 2013 | F40: Net Capital Expenditures | G40: 2014 | H40: ='App.2-AB_Capital Expenditures'!N23 -> 2816 | I40: ='App.2-AB_Capital Expenditures'!O23 -> 2227
A41: ='LDC Info'!$E$14 -> Lakeland Power Distribution Ltd. | B41: EB-2018-0050 | C41: 2019 | D41: 2018 | E41: 2013 | F41: System O&M | G41: 2014 | H41: ='App.2-AB_Capital Expenditures'!N24 -> 1677 | I41: ='App.2-AB_Capital Expenditures'!O24 -> 1689
A42: ='LDC Info'!$E$14 -> Lakeland Power Distribution Ltd. | B42: EB-2018-0050 | C42: 2019 | D42: 2018 | E42: 2013 | F42: System Access | G42: 2015 | H42: ='App.2-AB_Capital Expenditures'!Q17 -> 0 | I42: ='App.2-AB_Capital Expenditures'!R17 -> 379
A43: ='LDC Info'!$E$14 -> Lakeland Power Distribution Ltd. | B43: EB-2018-0050 | C43: 2019 | D43: 2018 | E43: 2013 | F43: System Renewal | G43: 2015 | H43: ='App.2-AB_Capital Expenditures'!Q18 -> 0 | I43: ='App.2-AB_Capital Expenditures'!R18 -> 1618
A44: ='LDC Info'!$E$14 -> Lakeland Power Distribution Ltd. | B44: EB-2018-0050 | C44: 2019 | D44: 2018 | E44: 2013 | F44: System Service | G44: 2015 | H44: ='App.2-AB_Capital Expenditures'!Q19 -> 0 | I44: ='App.2-AB_Capital Expenditures'!R19 -> 494
A45: ='LDC Info'!$E$14 -> Lakeland Power Distribution Ltd. | B45: EB-2018-0050 | C45: 2019 | D45: 2018 | E45: 2013 | F45: General Plant | G45: 2015 | H45: ='App.2-AB_Capital Expenditures'!Q20 -> 1959 | I45: ='App.2-AB_Capital Expenditures'!R20 -> 598
A46: ='LDC Info'!$E$14 -> Lakeland Power Distribution Ltd. | B46: EB-2018-0050 | C46: 2019 | D46: 2018 | E46: 2013 | F46: Total Expenditure | G46: 2015 | H46: ='App.2-AB_Capital Expenditures'!Q21 -> 1959 | I46: ='App.2-AB_Capital Expenditures'!R21 -> 3089
A47: ='LDC Info'!$E$14 -> Lakeland Power Distribution Ltd. | B47: EB-2018-0050 | C47: 2019 | D47: 2018 | E47: 2013 | F47: Capital Contributions | G47: 2015 | H47: ='App.2-AB_Capital Expenditures'!Q22 -> 0 | I47: ='App.2-AB_Capital Expenditures'!R22 -> -194
A48: ='LDC Info'!$E$14 -> Lakeland Power Distribution Ltd. | B48: EB-2018-0050 | C48: 2019 | D48: 2018 | E48: 2013 | F48: Net Capital Expenditures | G48: 2015 | H48: ='App.2-AB_Capital Expenditures'!Q23 -> 2959 | I48: ='App.2-AB_Capital Expenditures'!R23 -> 2895
A49: ='LDC Info'!$E$14 -> Lakeland Power Distribution Ltd. | B49: EB-2018-0050 | C49: 2019 | D49: 2018 | E49: 2013 | F49: System O&M | G49: 2015 | H49: ='App.2-AB_Capital Expenditures'!Q24 -> 1705 | I49: ='App.2-AB_Capital Expenditures'!R24 -> 1656
A50: ='LDC Info'!$E$14 -> Lakeland Power Distribution Ltd. | B50: EB-2018-0050 | C50: 2019 | D50: 2018 | E50: 2013 | F50: System Access | G50: 2016 | H50: ='App.2-AB_Capital Expenditures'!T17 -> 0 | I50: ='App.2-AB_Capital Expenditures'!U17 -> 737
A51: ='LDC Info'!$E$14 -> Lakeland Power Distribution Ltd. | B51: EB-2018-0050 | C51: 2019 | D51: 2018 | E51: 2013 | F51: System Renewal | G51: 2016 | H51: ='App.2-AB_Capital Expenditures'!T18 -> 0 | I51: ='App.2-AB_Capital Expenditures'!U18 -> 1480
A52: ='LDC Info'!$E$14 -> Lakeland Power Distribution Ltd. | B52: EB-2018-0050 | C52: 2019 | D52: 2018 | E52: 2013 | F52: System Service | G52: 2016 | H52: ='App.2-AB_Capital Expenditures'!T19 -> 0 | I52: ='App.2-AB_Capital Expenditures'!U19 -> 256
A53: ='LDC Info'!$E$14 -> Lakeland Power Distribution Ltd. | B53: EB-2018-0050 | C53: 2019 | D53: 2018 | E53: 2013 | F53: General Plant | G53: 2016 | H53: ='App.2-AB_Capital Expenditures'!T20 -> 1800 | I53: ='App.2-AB_Capital Expenditures'!U20 -> 29
A54: ='LDC Info'!$E$14 -> Lakeland Power Distribution Ltd. | B54: EB-2018-0050 | C54: 2019 | D54: 2018 | E54: 2013 | F54: Total Expenditure | G54: 2016 | H54: ='App.2-AB_Capital Expenditures'!T21 -> 1800 | I54: ='App.2-AB_Capital Expenditures'!U21 -> 2502
A55: ='LDC Info'!$E$14 -> Lakeland Power Distribution Ltd. | B55: EB-2018-0050 | C55: 2019 | D55: 2018 | E55: 2013 | F55: Capital Contributions | G55: 2016 | H55: ='App.2-AB_Capital Expenditures'!T22 -> 0 | I55: ='App.2-AB_Capital Expenditures'!U22 -> -552
A56: ='LDC Info'!$E$14 -> Lakeland Power Distribution Ltd. | B56: EB-2018-0050 | C56: 2019 | D56: 2018 | E56: 2013 | F56: Net Capital Expenditures | G56: 2016 | H56: ='App.2-AB_Capital Expenditures'!T23 -> 1800 | I56: ='App.2-AB_Capital Expenditures'!U23 -> 1951
A57: ='LDC Info'!$E$14 -> Lakeland Power Distribution Ltd. | B57: EB-2018-0050 | C57: 2019 | D57: 2018 | E57: 2013 | F57: System O&M | G57: 2016 | H57: ='App.2-AB_Capital Expenditures'!T24 -> 1577 | I57: ='App.2-AB_Capital Expenditures'!U24 -> 1633
A58: ='LDC Info'!$E$14 -> Lakeland Power Distribution Ltd. | B58: EB-2018-0050 | C58: 2019 | D58: 2018 | E58: 2013 | F58: System Access | G58: 2017 | H58: ='App.2-AB_Capital Expenditures'!W17 -> 0 | I58: ='App.2-AB_Capital Expenditures'!X17 -> 423
A59: ='LDC Info'!$E$14 -> Lakeland Power Distribution Ltd. | B59: EB-2018-0050 | C59: 2019 | D59: 2018 | E59: 2013 | F59: System Renewal | G59: 2017 | H59: ='App.2-AB_Capital Expenditures'!W18 -> 0 | I59: ='App.2-AB_Capital Expenditures'!X18 -> 1596
A60: ='LDC Info'!$E$14 -> Lakeland Power Distribution Ltd. | B60: EB-2018-0050 | C60: 2019 | D60: 2018 | E60: 2013 | F60: System Service | G60: 2017 | H60: ='App.2-AB_Capital Expenditures'!W19 -> 0 | I60: ='App.2-AB_Capital Expenditures'!X19 -> 142
A61: ='LDC Info'!$E$14 -> Lakeland Power Distribution Ltd. | B61: EB-2018-0050 | C61: 2019 | D61: 2018 | E61: 2013 | F61: General Plant | G61: 2017 | H61: ='App.2-AB_Capital Expenditures'!W20 -> 1950 | I61: ='App.2-AB_Capital Expenditures'!X20 -> 248
A62: ='LDC Info'!$E$14 -> Lakeland Power Distribution Ltd. | B62: EB-2018-0050 | C62: 2019 | D62: 2018 | E62: 2013 | F62: Total Expenditure | G62: 2017 | H62: ='App.2-AB_Capital Expenditures'!W21 -> 1950 | I62: ='App.2-AB_Capital Expenditures'!X21 -> 2409
A63: ='LDC Info'!$E$14 -> Lakeland Power Distribution Ltd. | B63: EB-2018-0050 | C63: 2019 | D63: 2018 | E63: 2013 | F63: Capital Contributions | G63: 2017 | H63: ='App.2-AB_Capital Expenditures'!W22 -> 0 | I63: ='App.2-AB_Capital Expenditures'!X22 -> -366
A64: ='LDC Info'!$E$14 -> Lakeland Power Distribution Ltd. | B64: EB-2018-0050 | C64: 2019 | D64: 2018 | E64: 2013 | F64: Net Capital Expenditures | G64: 2017 | H64: ='App.2-AB_Capital Expenditures'!W23 -> 1950 | I64: ='App.2-AB_Capital Expenditures'!X23 -> 2043
A65: ='LDC Info'!$E$14 -> Lakeland Power Distribution Ltd. | B65: EB-2018-0050 | C65: 2019 | D65: 2018 | E65: 2013 | F65: System O&M | G65: 2017 | H65: ='App.2-AB_Capital Expenditures'!W24 -> 1681 | I65: ='App.2-AB_Capital Expenditures'!X24 -> 1671
A66: ='LDC Info'!$E$14 -> Lakeland Power Distribution Ltd. | B66: =EBNUMBER -> EB-2018-0050 | C66: =TestYear -> 2019 | D66: =BridgeYear -> 2018 | E66: =RebaseYear -> 2013 | F66: System Access | G66: 2018 | H66: ='App.2-AB_Capital Expenditures'!Z17 -> 400 | I66: ='App.2-AB_Capital Expenditures'!AA17 -> 714.268
A67: ='LDC Info'!$E$14 -> Lakeland Power Distribution Ltd. | B67: EB-2018-0050 | C67: 2019 | D67: 2018 | E67: 2013 | F67: System Renewal | G67: 2018 | H67: ='App.2-AB_Capital Expenditures'!Z18 -> 1246 | I67: ='App.2-AB_Capital Expenditures'!AA18 -> 1338.943
A68: ='LDC Info'!$E$14 -> Lakeland Power Distribution Ltd. | B68: EB-2018-0050 | C68: 2019 | D68: 2018 | E68: 2013 | F68: System Service | G68: 2018 | H68: ='App.2-AB_Capital Expenditures'!Z19 -> 713 | I68: ='App.2-AB_Capital Expenditures'!AA19 -> 252.269
A69: ='LDC Info'!$E$14 -> Lakeland Power Distribution Ltd. | B69: EB-2018-0050 | C69: 2019 | D69: 2018 | E69: 2013 | F69: General Plant | G69: 2018 | H69: ='App.2-AB_Capital Expenditures'!Z20 -> 301 | I69: ='App.2-AB_Capital Expenditures'!AA20 -> 134.658
A70: ='LDC Info'!$E$14 -> Lakeland Power Distribution Ltd. | B70: EB-2018-0050 | C70: 2019 | D70: 2018 | E70: 2013 | F70: Total Expenditure | G70: 2018 | H70: ='App.2-AB_Capital Expenditures'!Z21 -> 2660 | I70: ='App.2-AB_Capital Expenditures'!AA21 -> 2440.138
A71: ='LDC Info'!$E$14 -> Lakeland Power Distribution Ltd. | B71: EB-2018-0050 | C71: 2019 | D71: 2018 | E71: 2013 | F71: Capital Contributions | G71: 2018 | H71: ='App.2-AB_Capital Expenditures'!Z22 -> -250 | I71: ='App.2-AB_Capital Expenditures'!AA22 -> -347.817
A72: ='LDC Info'!$E$14 -> Lakeland Power Distribution Ltd. | B72: EB-2018-0050 | C72: 2019 | D72: 2018 | E72: 2013 | F72: Net Capital Expenditures | G72: 2018 | H72: ='App.2-AB_Capital Expenditures'!Z23 -> 2410 | I72: ='App.2-AB_Capital Expenditures'!AA23 -> 2092.321
A73: ='LDC Info'!$E$14 -> Lakeland Power Distribution Ltd. | B73: EB-2018-0050 | C73: 2019 | D73: 2018 | E73: 2013 | F73: System O&M | G73: 2018 | H73: ='App.2-AB_Capital Expenditures'!Z24 -> 1784 | I73: ='App.2-AB_Capital Expenditures'!AA24 -> 1878.921
A74: ='LDC Info'!$E$14 -> Lakeland Power Distribution Ltd. | B74: EB-2018-0050 | C74: 2019 | D74: 2018 | E74: 2013 | F74: System Access | G74: 2019 | H74: ='App.2-AB_Capital Expenditures'!AC17 -> 380
A75: ='LDC Info'!$E$14 -> Lakeland Power Distribution Ltd. | B75: EB-2018-0050 | C75: 2019 | D75: 2018 | E75: 2013 | F75: System Renewal | G75: 2019 | H75: ='App.2-AB_Capital Expenditures'!AC18 -> 1110
A76: ='LDC Info'!$E$14 -> Lakeland Power Distribution Ltd. | B76: EB-2018-0050 | C76: 2019 | D76: 2018 | E76: 2013 | F76: System Service | G76: 2019 | H76: ='App.2-AB_Capital Expenditures'!AC19 -> 485
A77: ='LDC Info'!$E$14 -> Lakeland Power Distribution Ltd. | B77: EB-2018-0050 | C77: 2019 | D77: 2018 | E77: 2013 | F77: General Plant | G77: 2019 | H77: ='App.2-AB_Capital Expenditures'!AC20 -> 650
A78: ='LDC Info'!$E$14 -> Lakeland Power Distribution Ltd. | B78: EB-2018-0050 | C78: 2019 | D78: 2018 | E78: 2013 | F78: Total Expenditure | G78: 2019 | H78: ='App.2-AB_Capital Expenditures'!AC21 -> 2625
A79: ='LDC Info'!$E$14 -> Lakeland Power Distribution Ltd. | B79: EB-2018-0050 | C79: 2019 | D79: 2018 | E79: 2013 | F79: Capital Contributions | G79: 2019 | H79: ='App.2-AB_Capital Expenditures'!AC22 -> -250
A80: ='LDC Info'!$E$14 -> Lakeland Power Distribution Ltd. | B80: EB-2018-0050 | C80: 2019 | D80: 2018 | E80: 2013 | F80: Net Capital Expenditures | G80: 2019 | H80: ='App.2-AB_Capital Expenditures'!AC23 -> 2375
A81: ='LDC Info'!$E$14 -> Lakeland Power Distribution Ltd. | B81: EB-2018-0050 | C81: 2019 | D81: 2018 | E81: 2013 | F81: System O&M | G81: 2019 | H81: ='App.2-AB_Capital Expenditures'!AC24 -> 1834
A82: ='LDC Info'!$E$14 -> Lakeland Power Distribution Ltd. | B82: EB-2018-0050 | C82: 2019 | D82: 2018 | E82: 2013 | F82: System Access | G82: 2020 | H82: ='App.2-AB_Capital Expenditures'!AD17 -> 350
A83: ='LDC Info'!$E$14 -> Lakeland Power Distribution Ltd. | B83: EB-2018-0050 | C83: 2019 | D83: 2018 | E83: 2013 | F83: System Renewal | G83: 2020 | H83: ='App.2-AB_Capital Expenditures'!AD18 -> 830
A84: ='LDC Info'!$E$14 -> Lakeland Power Distribution Ltd. | B84: EB-2018-0050 | C84: 2019 | D84: 2018 | E84: 2013 | F84: System Service | G84: 2020 | H84: ='App.2-AB_Capital Expenditures'!AD19 -> 1265
A85: ='LDC Info'!$E$14 -> Lakeland Power Distribution Ltd. | B85: EB-2018-0050 | C85: 2019 | D85: 2018 | E85: 2013 | F85: General Plant | G85: 2020 | H85: ='App.2-AB_Capital Expenditures'!AD20 -> 375
A86: ='LDC Info'!$E$14 -> Lakeland Power Distribution Ltd. | B86: EB-2018-0050 | C86: 2019 | D86: 2018 | E86: 2013 | F86: Total Expenditure | G86: 2020 | H86: ='App.2-AB_Capital Expenditures'!AD21 -> 2820
A87: ='LDC Info'!$E$14 -> Lakeland Power Distribution Ltd. | B87: EB-2018-0050 | C87: 2019 | D87: 2018 | E87: 2013 | F87: Capital Contributions | G87: 2020 | H87: ='App.2-AB_Capital Expenditures'!AD22 -> -250
A88: ='LDC Info'!$E$14 -> Lakeland Power Distribution Ltd. | B88: EB-2018-0050 | C88: 2019 | D88: 2018 | E88: 2013 | F88: Net Capital Expenditures | G88: 2020 | H88: ='App.2-AB_Capital Expenditures'!AD23 -> 2570
A89: ='LDC Info'!$E$14 -> Lakeland Power Distribution Ltd. | B89: EB-2018-0050 | C89: 2019 | D89: 2018 | E89: 2013 | F89: System O&M | G89: 2020 | H89: ='App.2-AB_Capital Expenditures'!AD24 -> 1895
A90: ='LDC Info'!$E$14 -> Lakeland Power Distribution Ltd. | B90: EB-2018-0050 | C90: 2019 | D90: 2018 | E90: 2013 | F90: System Access | G90: 2021 | H90: ='App.2-AB_Capital Expenditures'!AE17 -> 350
A91: ='LDC Info'!$E$14 -> Lakeland Power Distribution Ltd. | B91: EB-2018-0050 | C91: 2019 | D91: 2018 | E91: 2013 | F91: System Renewal | G91: 2021 | H91: ='App.2-AB_Capital Expenditures'!AE18 -> 1570
A92: ='LDC Info'!$E$14 -> Lakeland Power Distribution Ltd. | B92: EB-2018-0050 | C92: 2019 | D92: 2018 | E92: 2013 | F92: System Service | G92: 2021 | H92: ='App.2-AB_Capital Expenditures'!AE19 -> 560
A93: ='LDC Info'!$E$14 -> Lakeland Power Distribution Ltd. | B93: EB-2018-0050 | C93: 2019 | D93: 2018 | E93: 2013 | F93: General Plant | G93: 2021 | H93: ='App.2-AB_Capital Expenditures'!AE20 -> 425
A94: ='LDC Info'!$E$14 -> Lakeland Power Distribution Ltd. | B94: EB-2018-0050 | C94: 2019 | D94: 2018 | E94: 2013 | F94: Total Expenditure | G94: 2021 | H94: ='App.2-AB_Capital Expenditures'!AE21 -> 2905
A95: ='LDC Info'!$E$14 -> Lakeland Power Distribution Ltd. | B95: EB-2018-0050 | C95: 2019 | D95: 2018 | E95: 2013 | F95: Capital Contributions | G95: 2021 | H95: ='App.2-AB_Capital Expenditures'!AE22 -> -250
A96: ='LDC Info'!$E$14 -> Lakeland Power Distribution Ltd. | B96: EB-2018-0050 | C96: 2019 | D96: 2018 | E96: 2013 | F96: Net Capital Expenditures | G96: 2021 | H96: ='App.2-AB_Capital Expenditures'!AE23 -> 2655
A97: ='LDC Info'!$E$14 -> Lakeland Power Distribution Ltd. | B97: EB-2018-0050 | C97: 2019 | D97: 2018 | E97: 2013 | F97: System O&M | G97: 2021 | H97: ='App.2-AB_Capital Expenditures'!AE24 -> 1965
A98: ='LDC Info'!$E$14 -> Lakeland Power Distribution Ltd. | B98: =EBNUMBER -> EB-2018-0050 | C98: =TestYear -> 2019 | D98: =BridgeYear -> 2018 | E98: =RebaseYear -> 2013 | F98: System Access | G98: 2022 | H98: ='App.2-AB_Capital Expenditures'!AF17 -> 350
A99: ='LDC Info'!$E$14 -> Lakeland Power Distribution Ltd. | B99: EB-2018-0050 | C99: 2019 | D99: 2018 | E99: 2013 | F99: System Renewal | G99: 2022 | H99: ='App.2-AB_Capital Expenditures'!AF18 -> 1200
A100: ='LDC Info'!$E$14 -> Lakeland Power Distribution Ltd. | B100: EB-2018-0050 | C100: 2019 | D100: 2018 | E100: 2013 | F100: System Service | G100: 2022 | H100: ='App.2-AB_Capital Expenditures'!AF19 -> 1000
A101: ='LDC Info'!$E$14 -> Lakeland Power Distribution Ltd. | B101: EB-2018-0050 | C101: 2019 | D101: 2018 | E101: 2013 | F101: General Plant | G101: 2022 | H101: ='App.2-AB_Capital Expenditures'!AF20 -> 515
A102: ='LDC Info'!$E$14 -> Lakeland Power Distribution Ltd. | B102: EB-2018-0050 | C102: 2019 | D102: 2018 | E102: 2013 | F102: Total Expenditure | G102: 2022 | H102: ='App.2-AB_Capital Expenditures'!AF21 -> 3065
A103: ='LDC Info'!$E$14 -> Lakeland Power Distribution Ltd. | B103: EB-2018-0050 | C103: 2019 | D103: 2018 | E103: 2013 | F103: Capital Contributions | G103: 2022 | H103: ='App.2-AB_Capital Expenditures'!AF22 -> -250
A104: ='LDC Info'!$E$14 -> Lakeland Power Distribution Ltd. | B104: EB-2018-0050 | C104: 2019 | D104: 2018 | E104: 2013 | F104: Net Capital Expenditures | G104: 2022 | H104: ='App.2-AB_Capital Expenditures'!AF23 -> 2815
A105: ='LDC Info'!$E$14 -> Lakeland Power Distribution Ltd. | B105: EB-2018-0050 | C105: 2019 | D105: 2018 | E105: 2013 | F105: System O&M | G105: 2022 | H105: ='App.2-AB_Capital Expenditures'!AF24 -> 2035
A106: ='LDC Info'!$E$14 -> Lakeland Power Distribution Ltd. | B106: EB-2018-0050 | C106: 2019 | D106: 2018 | E106: 2013 | F106: System Access | G106: 2023 | H106: ='App.2-AB_Capital Expenditures'!AG17 -> 350
A107: ='LDC Info'!$E$14 -> Lakeland Power Distribution Ltd. | B107: EB-2018-0050 | C107: 2019 | D107: 2018 | E107: 2013 | F107: System Renewal | G107: 2023 | H107: ='App.2-AB_Capital Expenditures'!AG18 -> 1125
A108: ='LDC Info'!$E$14 -> Lakeland Power Distribution Ltd. | B108: EB-2018-0050 | C108: 2019 | D108: 2018 | E108: 2013 | F108: System Service | G108: 2023 | H108: ='App.2-AB_Capital Expenditures'!AG19 -> 1360
A109: ='LDC Info'!$E$14 -> Lakeland Power Distribution Ltd. | B109: EB-2018-0050 | C109: 2019 | D109: 2018 | E109: 2013 | F109: General Plant | G109: 2023 | H109: ='App.2-AB_Capital Expenditures'!AG20 -> 504
A110: ='LDC Info'!$E$14 -> Lakeland Power Distribution Ltd. | B110: EB-2018-0050 | C110: 2019 | D110: 2018 | E110: 2013 | F110: Total Expenditure | G110: 2023 | H110: ='App.2-AB_Capital Expenditures'!AG21 -> 3339
A111: ='LDC Info'!$E$14 -> Lakeland Power Distribution Ltd. | B111: EB-2018-0050 | C111: 2019 | D111: 2018 | E111: 2013 | F111: Capital Contributions | G111: 2023 | H111: ='App.2-AB_Capital Expenditures'!AG22 -> -250
A112: ='LDC Info'!$E$14 -> Lakeland Power Distribution Ltd. | B112: EB-2018-0050 | C112: 2019 | D112: 2018 | E112: 2013 | F112: Net Capital Expenditures | G112: 2023 | H112: ='App.2-AB_Capital Expenditures'!AG23 -> 3089
A113: ='LDC Info'!$E$14 -> Lakeland Power Distribution Ltd. | B113: EB-2018-0050 | C113: 2019 | D113: 2018 | E113: 2013 | F113: System O&M | G113: 2023 | H113: ='App.2-AB_Capital Expenditures'!AG24 -> 2105

Sheet App.2-AC_Customer Engagement
B1: File Number: | C1: =EBNUMBER -> EB-2018-0050
B2: Exhibit: | C2: 1
B3: Tab:
B4: Schedule:
B5: Page:
B7: Date: | C7: 2019-03-21
A9: Appendix 2-AC
A10: Customer Engagement Activities Summary
A12: Provide a list of customer engagement activities | B12: Provide a list of customer needs and preferences identified through each engagement activity | C12: Actions taken to respond to identified needs and preferences. If no action was taken, explain why.
A13: CUSTOMER COMMUNICATION
A14: Customer Care (phone calls, emails, walk-in) | B14: Have identified a need to provide customers with more education on the price/cost of their bill, understanding and relating to their billed amount, how can they have some impact on their bill, having more readily available information with regards to their bill, usage, and conservation information. Also identified a need for improved e-billing and self-serve options. | C14: In 2014 began annual bill inserts to educate customers on common customer care Q&A, industry news, and conservation. In 2014 & 2017, improved online portal software was purchased allowing customers more readily accessible information about their account, billing history, and usage. Allows for better understanding and management of usage and lower bills further enhancing customer education and control over usage. Improvements to e-bill notifications including distinction between billed amt, EPP amount, and account balance provided more clarity. E-Billing and account updates available online.
A15: In-Person Customer Service | B15: Through our ongoing customer care feedback, community sessions and face-to-face community engagement we have identified that our customers are used to the intimacy offered through a small community. They have expressed for continued in-person service. They like the personal touch offered by small local businesses, they want to be able to speak with a live person. This preference was very strong for our Parry Sound community after the 2014 merger. | C15: To accommodate out customers preference for in person availability, we offer our customers walk-in hours at our offices. In order to increase productivity and efficiencies in office procedures, we scaled back our hours open to the public but have remained open once a week to accommodate those who prefer coming in person. We merged with Parry Sound Power in 2014, and the Parry Sound customer base expressed interest in keeping its local hydro office open to the public. Lakeland Power has spent considerable time and money refurbishing the office in Parry Sound in order to continue offering our customers a personal presence in that municipality. - Capital Investment in Parry Sound office - 2017/2018 -> Keeping our Parry Sound office open as requested by the Town of Parry Sound and its ratepayers required extensive building renovations for safety reasons. -> Our customers are used to the personal touch offered through a small community and small local businesses, so continue to offer our customers walk-in hours at our offices. -> To increase productivity and efficiencies in office procedures, we scaled back our hours open to the public, but have remained open once a week to accommodate those who prefer coming in person. -> Lakeland Power merged with Parry Sound Power in 2014 - Parry Sound customers and shareholders expressed strong interest in keeping its local hydro office open to the public. -> Lakeland Power has spent considerable time and money refurbishing the office in Parry Sound in order to continue offering our customers a personal presence in that municipality.
A16: Staff Training | B16: Through our ongoing customer care feedback, community sessions and face-to-face community engagement we have identified our customers preference for having multiple questions answered in one place. | C16: With customers wanting one-stop information on multiple topics, we have created a more robust website with information and on multiple topics, from billing and payments, to operations, outages, and CDM. We also have mentorship and cross training among our CSR's so they can all answer questions about bills, payments, new services, as well as collections, outage information, and conservation programs. As well, it is expected that all staff have formal training annually in an area related to their work. To that end, we have invested time and dollars to train customer service, operations and conservation staff with; Customer Service Training, Dealing with Strong Customers, Ontario Harris User Group Conference (CIS enhanced functionality training), 2017 - Leadership Training.
A17: Arrears Support | B17: Through in-person calls and contact with our customers through our Collections department, we receive many customer inquiries regarding high bills and assistance with arrears. From this we identified a need for augmented customer care with regards to financial assistance. | C17: - Lakeland Power is sensitive to credit control and works very closely with its customer base to support them, offering and educating them on financial assistance programs such as LEAP and OESP, as well as local community offerings through the Salvation Army, Rotary Club and assorted parishes. - Lakeland Power advertises LEAP and OESP on its website, as well as on its collection notices. Our CSR's also have the numbers for all our community outreach programs to help customers keep control of their hydro bill even during financial difficulties. Lakeland Power's collection department offers customers custom payment arrangements based on the customer's individual situation.
A18: Outage Notification | B18: Through our ongoing customer care feedback, community sessions and face-to-face community engagement we have identified a need for more accurate real-time outage information for our customer during planned and unplanned outages. | C18: Our customers want as much outage information as possible, both business and residential customers. Our increased use of social media; Twitter, Facebook, has allowed us to provide both business and residential customers more up to date outage information. In 2018 we implemented an outage map on our website to provide up to date information on planned and unplanned outages. We are looking to further enhance this feature making it more automated with our SCADA system and AMI head upgrades. We also make use of our auto-dialer (IVR) system to launch calls and emails notifying customers of planned outages, and follow up calls and emails explaining unplanned outages.
A19: SYSTEM UPGRADES
A20: Auto-Dialer (IVR) | B20: Through our ongoing customer care feedback, community sessions and face-to-face community engagement we have identified a need for getting different kinds of pertinent information out to customers. | C20: Using our IVR system, we are able to reach a targeted or wide range of customers. We notify customers about planned outages, provide follow-up explanations about unplanned outages, provide customer notification regarding scams, as well as updates on CDM programs, and collections information.
A21: System Upgrades - Operations | B21: Unplanned outages can be very costly for some of our large commercial customers when production is interrupted. Unplanned interruptions can also be very damaging to our small businesses and residential customers as well. Through our ongoing customer care feedback, community sessions, face-to-face community engagement, and in person discussion with some of our large commercial customers, we have identified the request for increased reliability and education of outages and reduced outage duration. | C21: - Capital Investment - 2016 onward - SCADA technology as related to its SCADA master system; -> Looking into SCADA enabled switches and fault indicators for the SCADA system -> Smart remotely operable switches to maintain system reliability and system switching for planned/unplanned events -> Allowing for quicker identification of impacted outage areas resulting in quicker restoration times and increased reliability -> Would assist in real time monitoring of load levels within the electrical system, outage map upgrades - Capital Investment - 2019 - 2023 - Line sensor technology; -> Capital investment and possible funding opportunities to enable Lakeland Power to purchase 81 line sensors within 6 networks (our 6 municipalities) -> Better monitoring of phase imbalances that could be corrected reducing losses and stabilizing voltage -> Assist with outage management and improve grid efficiency -> Result in a faster response for trouble calls reducing outage time, and reducing financial loss for industrial customers - Capital Investment - 2018 - 2023 - Innovation Enabling technologies and communication infrastructure -> LPDL ability to incite change on behalf of our customers through innovation, enabling new technologies -> Achievable Potential Study based on the recommendations of the Integrated Regional Resource Plan (IRRP) to address investigate solutions to constraint issues identified in Parry Sound at the Parry Sound TS, level potentially resulting in the deferral of costly upgrades to local distribution and transmission infrastructure. -> Increased reliability through consumer control -> Potential to reduce costs and price through adaptive infrastructure, reduced line loss, increased consumer control of demand, ability to shift load, reduce bill -> Creating smart grid enabled infrastructure for future innovation, virtual net metering. (CONTINUED BELOW...)
C22: - Capital Investment - 2019 -2023 - Voltage conversions -> Eliminate 4kv substations in Parry Sound - reduction in maintenance costs -> Forest St 12.5Kv connection - will provide an alternate tie for F2 feeder at MS5 Parry Sound substation and F2 feeder at MS3 Parry Sound substation - ability to balance loads on these feeders and improve reliability. - Capital Investment - 2019 - 2023 - Advanced Metering Infrastructure (AMI) -> Upgrading the gatekeepers -> Maintains a healthy network, reliable and accurate meter data.
A23: System Upgrades - Billing | B23: Customers are more and more aware of privacy and data security with regards to their account data and personal information. Through our customer care contact, we have identified customers growing concerns and interest in how the privacy and security of their data is being handled. Also, Lakeland Power is required to be in compliance with OEB cyber security guidelines. Keeping our network healthy also allows us to address our customer's desire for reliability. | C23: We need to be very cognizant of the cybersecurity movement in our industry. In order to keep up with the latest security and protection protocols in our utility, staying current with version upgrades is critical. Capital Investment - 2019 - 2023 - Advanced Metering Infrastructure (AMI) -> Upgrading the Elster head end software- EnergyAxis Management System (EA_MS) -> The next version of EA_MS has significant improvements in functionality and security requiring hardware as well and operating systems upgrades -> In 2017 we began the process of upgrading our gatekeepers to the latest version. Apart from maximizing accurate data collection, this gatekeeper upgrade to latest Ethernet WIC version is proven to improve the performance of outage reporting. -> Maintains a healthy network, reliable and accurate meter data -> Better data encryption and security - Capital Investment - 2023 - NorthStar CIS upgrade -> 2023 - CIS version upgrades are required to keep our Harris NorthStar CIS current with improved functionality and security -> Better serving customers through quicker responses to inquiries, more intuitive CIS functionality -> Better integrated access and security for customers accessing their accounts online - Investment in cyber security - 2018 - 2023 - Invest time and dollars in cyber security -> Time and productivity to review all systems, gap analysis, comprehensive project management Lakeland Power keeps up to date on new innovation, technology, and the sharing of ideas that could further enhance our reliability through enrollment with EDA, CHEC, and USF memberships. We also volunteer regularly to be part of OEB and Ministry of Energy working groups, and attend industry seminars and conferences to remain current. This level of industry involvement allows us to create a better roadmap for system upgrades and budgeting for systems that may be required.
A24: Tree Trimming | B24: Through our ongoing customer care feedback, community sessions and face-to-face community engagement we have identified our customers request for increased reliability through reduction of outages from trees on lines. | C24: Capital investment - 2014 onwards - Tree trimming; Increased tree trimming cycle in Parry Sound and northern municipalities from 7ys to 6yrs, to help reduce outages due to trees on lines.
A25: INFORMATION SESSIONS
A26: Customer Information Sessions | B26: Through customer care, community involvement and our customer satisfaction survey, we identified a need for customer education not only on billing and conservation information, but on our operations and capital plans to help them further understand our operational constraints with regards to operating income and expenses. We know that our customers can provide us with valuable feedback on how to direct our capital plans and investments. | C26: - Invested time and dollars - 2016 Customer Information Sessions In 2016 Lakeland Power engaged with its customers through community information session events, with further rates explanation, information on reliability, tree trimming, and system upgrades, and open discussion on what initiatives customers felt would be of value to them and what they would like to see from Lakeland Power's capital plan spending. -> November / December 2016 - Customer Information Sessions took place in, Huntsville, Burk's Falls, Parry Sound and Bracebridge -> Extensively advertised via local media outlets ranging from radio, newspaper adverts, local libraries and town offices -> Included presentations on billing, capital investment and CDM by the Operations Manager, Customer Service Manager and CDM Officer -> Provided customer education on bill breakdown, rates, ebilling, tree trimming, financial assistance, provincial supply mix, Electricity Retailers -> CDM program offerings, highlighted other local business that benefited from the CDM programs, -> ESA, Ontario 1 Call -> Discussed capital projects and asked for input -> Provided explanation on cause of power interruption; defective equipment, adverse weather, foreign interference, loss of supply, helpful link to government bodies -> Requested customer feedback on; presentations, bills, capital investments -> CEO, CFO, COO, Human Resources Officer, Financial Controller all attended to ensure all customer questions and suggestions could be addressed.
A27: Large User Information session | B27: Through customer care, community involvement and conversation with our large customers, we identified a need for increased system reliability, understanding their bills, and for us to understand their unique needs. It was further identified that this particular customer segment requires more information on funding resources available to this sector. | C27: On December 3, 2015, Lakeland Power hosted a Large Customer information session and lunch to learn more about the needs and preference of Lakeland Powers large customers to inform the development of our distribution and capital plan. - Attendees included Shareholders, Board members and senior management. - The Large User group representation range included; Municipal, Health Care, School Boards and Manufacturing. - The meeting included presentations from Lakeland Power's conservation department to discuss Save on Energy programs and future initiatives, presentations from the IESO Regional Planning Committee, Presentation from Operations Manager with an overview of the Capital Plan. -> Provided customer educated on bill breakdown, rates, ebilling, tree trimming, financial assistance, provincial supply mix, Electricity Retailer -> IESO regional planning seminar re-electricity costs -> CDM program offerings, highlighted other local business that benefited from the CDM programs, - High Performance New construction as a way to reduce bills -> Instrumental in providing an open dialogue with the IESO allowing a clearer understanding on the energy sector; regulatory, distribution, regional Lakeland Power constraints (TS between Parry Sound & Waubaushene) -> Q & A session resulting in IESO asking Lakeland Power to conduct the Achievable Potential Study for the Parry Sound Waubaushene area - 2018-2019 -> Reviewed system reliability and performance, examined and identified potential mitigation measures.
A28: Class A Education Session | B28: Through responses to Class A opt-in letters mailed out to all Class A eligible customers, customers responded wanting; better understanding of the ICI initiative, forecasted GA savings, more information on peak saving opportunities | C28: Although our communities are small, we do have some larger industrial customers as well. Lakeland has actively engaged these customers through a large user session, as well as a small targeted gathering of eligible Class A customers to discuss Class A opportunity and battery storage, leading to large savings on their invoices. We are pleased to be able to say all of our Class A eligible customers have opted in due to our due diligence in perusing and educating them on the benefits. - Invested time and dollars - 2017 Class A Customer Session -> Thursday May 25th 2017, information session on opting-in as a Class A Customer -> Partnering with the IESO, session was to ensure all information regarding Class A and potential ICI program were communicated effectively and efficiently -> Providing information and resources to these customers, ensuring all sectors are aware of what is available to them -> All eligible customers; Lofthouse Brass - Burk's Falls, Uponor Infra - Huntsville, Gravenhurst Plastics - Bracebridge, West Parry Sound Hospital - Parry Sound, Fenner Dunlop - Bracebridge all elected to opt-in after receiving information at the session and in-person follow-up afterwards. - Invested time - throughout 2017 working with each Class A customer regarding (ICI) -> Proactively visited eligible customers in person at their business -> Discussed IESO initiatives - Class A peak shaving opportunities -> Working with our customers and third party AMP Solar to provide peak shaving solutions.
A29: South Georgian Bay Muskoka Regional Planning (IESO) meeting | B29: Lakeland Power worked closely with the Regional Planning working group to ensure Lakeland Power's customers were represented and had a voice to the IESO with regards to reliability and growth constraint issues in this area. | C29: South Georgian Bay Muskoka Regional Planning (IESO) meeting September 26 2016 - attendees - Committee Mayor Bob Young, Hydro One, Lakeland Power, IESO, Power Stream, Orillia Power, Midland, Veridian, Lakeland Power's Operations Manager and Vice President attended and contributed to all planning sessions. - Future capital expense - Achievable Potential Study -> Since the final South Georgian Bay Muskoka Regional Infrastructure Plan (RIP) report was submitted - August 2018, Lakeland Power has been asked by the IESO to lead the next level of the Achievable Potential (APS) study for the Parry Sound / Muskoka region between Parry Sound and Waubaushene -> This study will ensure that not only the IESO and LDCs are on the same level of understanding of the restraints in Lakeland Power's service area, but just as important, our customers.
A30: COMMUNITY ENGAGEMENT
A31: Ongoing Community Support | B31: From our Customer Satisfaction Surveys, engaging with customers at community events and on a personal level within our communities (in the grocery store, at the kids soccer game, social gatherings) we have identified that our customers feel our involvement and presence in the community is important. | C31: Our municipalities have their own unique charm, character and identity which Lakeland Power embraces and tries to preserve with its presence and customer engagement. We sponsor many local youth sports leagues and other community programs (see Community Sponsorship). We provide public school safety and conservation information sessions. We organize food drives and donate to local shelters. We have made social service contributions over and above LEAP and getting into the community with customer information sessions. Lakeland tries in all ways to contribute to community health. The employees of Lakeland Power make up part of the small communities we serve giving us a vested interest in the health and welfare of our residents and the local economy. As Lakeland Power staff are part of the friends and families that make up our local culture, we are always giving and receiving feedback on Lakeland Power’s community involvement as well as listening to what’s going on and using that customer voice to adapt our business processes and plans. We volunteer together, chat to each other in line at the grocery store, and see each other at local events and social gatherings. Lakeland Power is constantly engaged with its customers because we are its customers.
A32: School Visit | B32: Through feedback from customer care, the customer satisfaction surveys and conversations with the local school boards, we identified a need for Lakeland Power to be part of the communities it serves. Schools felt kids should know more about safety and conservation, wanted to include conservation and electrical safety within their curriculum. | C32: Invested time - local school presentations. Lakeland Power Conservation Officer and Engineer Technician presented for local schools on safety and conservation in the class room setting and sometimes outside at the local generation plant.
A33: Community Sponsorship | B33: Customers feel it is important for Lakeland to give back to the local community | C33: - Invested dollars - Sponsorship in the communities we serve; -> As Lakeland Power staff are part of the friends and families that make up our local culture, we are always giving and receiving feedback on Lakeland Power’s community involvement as well as listening to what’s going on and using that customer voice to adapt our business processes and plans. We volunteer together, we chat to each other in line at the grocery store and see each other at local events and social gatherings. Lakeland Power is constantly engaged with its customers because we are its customers. -> Lakeland Power continues to contribute annually to many local institutions in all six of its municipalities. -> In 2017, we contributed over 9K to; Parry Sound Town- Sound of Winter, Bracebridge Business Improvement- Fire & Ice Festival 2017, Muskoka Hornets Baseball, Huntsville Festival of the arts - Willy Wonka, Bracebridge Hockey novice bears, Parry Sound Festival of the Sound, Parry Sound Area Annual Gala, Huntsville Theatre Company, No Good Productions - wrestling, Huntsville Soccer Club, Huntsville Festival of the arts - Platinum, Membership 2017, Orillia Hawks Girls Hockey, Parry Sound Dragon Boat Festival, Parry Sound Friendship, Magnetawan Soap Box Derby, Parry Sound Georgian Nordic Race Team , Old-timers Benefit Hockey Campaign, Parry Sound Town of - Soap Box derby, Huntsville Chamber of Commerce - Mayor's golf tour., Rotary Club of Huntsville - TV-internet auction, Opening Doors for the Young Women of Muskoka, Bracebridge Business Improvement- Fire & Ice Festival 2018, Muskoka Stretchers 2018.
A34: Ongoing Customer Engagement / Events | B34: Through feedback from customer care, the customer satisfaction surveys and conversations with the local school boards, we identified a preference for Lakeland Power to be part of the communities it serves. | C34: Since 2015 Lakeland Power has taken part in a large number of events and community engagements, from Home and Cottage shows to General customer information sessions. This engagement has always been important to Lakeland and we strive to expand our participation in community events. Many of Lakeland employees attend these events with their families as we are all part of a close community. At each of the events Lakeland gains more information about its customers and is able to communicate Conservation and safety at many different levels whilst also answering questions regarding rates, infrastructure and general billing enquiries. Some of the events listed included Lakeland Powers bucket truck rides and Conservation tent. Combined Lakeland was able to reach out to children and adults alike. May 2015 - Home and Cottage Show - Parry Sound, May 2015 - Family Picnic - Bracebridge, June 2015 - Canada Day - Sundridge, July 2015 - Rotary Dock Fest - Huntsville, July 2015 - Santa fest - Bracebridge, July 2015 - Canada Day - Bracebridge, July - Canada Day - Huntsville, July 2015 -Huntsville Place Mall - Home and Cottage general information, September 2015 - Huntsville Fall Fair, September 2015 - Bracebridge Colourfest, Sep 2015 - Magnetawan Fall Fair, September 2015 - Bracebridge Fall Fair, May 2016 - Family Picnic Bracebridge, June 2016 - Parry Sound Open Streets, June 2016 - Band on the Run - Huntsville, July 2016 - Rotary Dock Fest - Huntsville, July 2016 - Santafest - Bracebridge, July 2016 - Home and Cottage Show, September 2016 - Huntsville Fall Fair, June 2017 - Parry Sound Open Street, June 2017 - Senior Wellness Fair, July 2017 - Canada Day Burk's Falls, July 2017 - Canada Day - Magnetawan, July 2017 - Santafest, November 2017 - Green Energy Event.
A35: Networking Events | B35: Conversations with local contractors and small businesses in early 2015 recommended that Lakeland Power attend more networking events. | C35: Lakeland Power has become a member of all local Chambers -> This has allowed Lakeland Power to channel communication via e-blasts , and attend networking events. -> In 2016 Lakeland Power collaborated with another local business and had an open house. -> During this open house Lakeland Power's staff were able to discuss any problems/concerns and accomplishments. -> Lakeland Power continued to work with local Chambers.
A36: CONSERVATION INITIATIVES
A37: SaveOnEnergy General Marketing | B37: Through our customer care feedback from residential and small business customers, as well as through general conversations with contractors, our energy manager, our own staff, we have learned that they, as well as our Shareholders / Municipalities were asking for details, and more information on Save on Energy programs and funding programs for home and business assistance. | C37: A large part of a small community’s health and charm is its small businesses. Lakeland Power works very closely with its very seasonal local shops and owners to ensure they stay in business. Payment plans and close active involvement with rolling out all available small business CDM incentive offerings is a priority for us. - Invested time and dollars - to increase CDM activity in each of the municipalities -> Resulting in Lakeland Power reaching 74% of its target at midterm (@2018) -> By engaging our customers our verified results show; 11748279 kWh net energy savings -> Started the cheque presentation program in 2016, a great success. It's helping by developing our social media outreach and has educated our customers on what other Lakeland Power customers were achieving. -> Customers also appreciate the in-person interaction with Lakeland Power employees (ranging from the CEO, CFO, COO and operation team). -> We enhanced the cheque program to include a survey. This survey will take place after the cheque presentation has taken place and will be in person. This survey will include not just conservation but safety, operations, and customer service and provide an open conversation. -> Lakeland Power also offers an Energy Manager to assist customers on potential SaveOnEnergy opportunities. (CONTINUED BELOW)
C38: Lakeland Power has always seen the importance of providing up-to date, relevant information to its customers. Launching into the Conservation First Framework, to meet the needs of our customers, we decided to take a slightly different approach to conservation engagement. Moving into all areas of engagement including; radio, print material, press releases, paper adverts, social media, improved website, information sessions, site visits. Below we have listed a sample of marketing efforts: August 2015 - Small Business Lighting, Newspaper Ads, August 2015 - What's Up Geotagging - Muskoka, August 2015 - Moose FM SaveOnEnergy, August 2015 - Huntsville Lake of Bays Chamber of Commerce - Small Business Lighting, August 2015 - North Star Beacon - SaveOnEnergy, August 2015 - What's Up Muskoka - Peak Saver, August 2015 - Bracebridge Chamber of Commerce Small Business Lighting, August 2015 - Weekender - Peak Saver advert, September 2015 - Moose FM Radio Ad - Coupons ads. October 2015 - SaveonEnergy Coupon Paper ads in Huntsville, Bracebridge, Parry Sound, Burk's Falls, Sundridge and Magnetawan, April 2016 - Coupon Newspaper Ads, April 2016 - E-Sign for Coupons, May 2016 - E-Sign for Kilowattway.ca, June 2016 - School - SOE Presentation, October 2016 - Coupon in-store Parry Sound, October 2016 - Coupon in-store Burk's Falls, October 2016 - Coupon in-store Sundridge, October 2016 - E-Sign coupons, December 2016 - Bill Insert - HAP, December 2016 - SBL Press Release, April 2017 - Coupon Newspaper Ads, April 2017 - E-Sign coupons, June 2017 - Tips sheets for SOE bags / giveaways, August 2017 - HAP Bill Insert, October 2017 - Coupon Newspaper ads, October 2017 - E-Sign for coupons.
A39: SaveOnEnergy Customer Contact | B39: - During the development of the CFF marketing plan, the importance of face to face meetings became apparent. - Lakeland has always made the CDM officer / administrator available to its customers to answer questions and to assist when needed. We started to become aware that our customers want us to go to them. | C39: - 2016 - Lakeland Power reached out directly to its customers via personal phone calls - Invested time and dollars - direct customer contact -> From the 2016 outreach, meetings were set up to discuss customer needs and wants making sure that the customers understood the programs available to them. -> We provide start to finish assistance with any application -> Please note that this represent all customer sectors. -> To ensure Lakeland Power staff are educated on SaveOnEnergy programs, internal information sessions take place - ensures that not only does our customer service team have the required information to share with the customer, but the lines staff and engineering teams also have the knowledge. -> Working with local contractors Lakeland Power ensures that current, accurate details are communicated to its customers via this important outlet. Lakeland Power offers training to local contractors on all SaveOnEnergy programs. -> Lakeland Power is on target to meet its CDM mandate ahead of schedule primarily because of the consistent messaging and communication with our customers on the programs available to them. -> Lakeland's team also represents Lakeland Residential customers.
A40: Roving Energy Manager | B40: Both residential and business customers requests for assistance with CDM offerings; available programs, requirements, paperwork | C40: Investment in REM - with CHEC -> REM performs site visits, assesses sites for potential energy savings, reports to the utility -> Has assisted with meeting 70% of our CDM targets ahead of schedule -> Assists in meeting customer CDM needs.
A41: ONLINE COMMUNICATION
A42: Website | B42: Through our ongoing customer care feedback, we have identified a need to provide customers with more easily accessible information on billing, operations, conservation, and self-serve options. We also identified a need for dissemination of outage information as well as consumer notifications. | C42: Capital investment - 2016/2017 - Lakeland Power website development; -> More robust billing section including bill breakdown, conservation information, financial assistance options. -> Conservation information; SaveOnEnergy, Links for grants and funding resources -> Safety - Call Before you Dig -> Time of Use Holiday times and rates -> More robust self-serve section - residential & commercial -> Contractor compliance & Call Before you Dig -> Outages and safety -> Financial assistance options; OESP, LEAP, Community resources -> Corporate information; Scorecard, Policies and Regulatory info, Lakeland Power mission & vision -> Community session materials -> 'How are we doing' chat function -> Latest News rolling banner displaying notifications regarding scams, outages The website is a dynamic environment where we make changes on an ongoing basis; updating information and making changes based on customers needs and preferences. - The Lakeland Power website development started in 2016 and has gone through many stages to ensure that the information wanted by our customers is actually the information we provide. The first website was launched early 2016. -- - The Lakeland Power team felt that after the customer information sessions that took place in November 2016, the website required more details on customer programs and needed to reflect the customer more. Therefore, the website was re-developed and launched in 2017, with a fantastic response. The website is not static and is constantly updated to reflect the voice of the customer. New functions include; direct question survey (How are we doing?) Outage Map, Online Billing details, Self-Service functions, information for financial assistance, links to funding opportunities, social media live feed, links to conservation program information, Latest News blog, and much more.
A43: Online Portal | B43: Through our ongoing customer care, we have identified a need to provide customers with more readily available information with regards to their bill, usage, and conservation information. Also identified a need for improved e-billing and self-serve options. | C43: Capital Investment 2014 & 2017 - improved online portal; customers can more readily access their information; billing history and usage. Allows for better understanding and management of usage and lower bills. Further enhances customer education and control over usage. Self-serve options on the portal allow customers to go paperless and sign themselves up for e-Billing as well as update their account information.
A44: Facebook Live Event | B44: From our community sessions, we identified a need to reach out to customers of different demographics in different ways. | C44: - Invested time and resources - March 2018 Facebook Live Event. We felt this was a new and different method of communicating with our customers. -> Discussed billing, rates, CDM, operations and capital projects -> Q & A for customers while streaming live.
A45: E-Blasts | B45: From our community sessions, we identified a need to reach out to customers of different demographics in different ways. | C45: - Invested time and resources - e-Blasts -> Information updates as required, outage notification, non-scheduled outage post update (causes/remedies) , scam notifications , tree trimming notifications, conservation Initiatives -> Chamber of Commerce e-Blasts for customer events.
A46: Social Media | B46: Through our ongoing customer care feedback, face-to-face community engagement, we identified our customers preference for current information events, industry happenings, outages, CDM program information, conservation initiatives. Additionally, at our and community information sessions it was identified that Lakeland's diverse customer group requires different communication outlets; participation was lower in certain municipalities and higher in others. The customer voice identified via customers questions & feedback at the sessions, was to offer more information via the Lakeland Power website, social media and events | C46: Invested time and dollars - enhanced Social Media presence ->Lakeland Power has increased use of social media, 2015/2016 - employed a social media specialist to manage our social media posts and replies, and to assist in engaging our customers using an electronic method, linking communications back to our website, all to help enhance the customer education requested by our customers on the topics mentioned in this summary. -> Offering wider penetration to residential and business customers; Twitter, Facebook, Hootsuite -> Conservation, outage and scam notification posts (example: Pushed out information on Electrical Inspection Scam) -> Created a new social media policy -> Posts highlighting; customer events, CDM programs, outage notices, regulatory notices, safety, community events -> Time of Use Holiday times and rates -> Reduced call volume from 2015 to 2017 as it's been more heavily used - Since 2014 Lakeland Powers' social media efforts have developed. This is another resource for Lakeland Power's diverse customer group. Late 2017 Lakeland Power identified via general conversations with not only customers but also Lakeland Power staff, that trying Facebook live might be a good channel for communication. Early 2018 Lakeland Power held its first Facebook Live event covering Operations, Customer Service and CDM. This outlet allowed customers to talk to us during the event. It was a great success. Without taking the steps to understand what the customer wants, Lakeland Power would never have identified this.
A47: INDIRECT CUSTOMER COMMUNICATION
A48: Print Media | B48: Customers expressed their desire for more information on when and how they can reach us directly over the holiday season | C48: - Investment in time and dollars - print media -> Local newspaper ads for Christmas hours of operation to ensure customers know when they can contact us directly during the extended holiday period. -> Lakeland Power also sends bill inserts to educate our customers on upcoming events; community sessions, CDM program information, and our yearly Customer Education insert in which we answer some of the more common questions our CSR's answer on a daily basis; bill breakdown, loss factor, debt retirement, rate explanations.
A49: Bill Inserts | B49: Through our ongoing customer care contact, we have identified the need for customer education on energy literacy, and a desire for CDM program information, . | C49: - Invested time and dollars - 2014 (and onwards) - annual bill insert -> provides customer education, billing & conservation information to reduce bills -> 2014 Efficiency Tips and Tools - Saving on Energy at Home -> 2015 Info on E-Billing - giving customers increased information to help them budget better, pay bills sooner, avoid collections fees -> 2016 Rates breakdown and reference to newly developed website (see Website section below) -> 2017/18 Billing info & Facebook Live event.
A50: Customer Satisfaction Survey | B50: - Customer Satisfaction Surveys of our low-volume customers have been conducted by a third party RedHead Media. These surveys allow us to assess our performance and identify where we can improve and what we are doing well. - We have been able to identify price, reliability, customer service, system upgrades, customer education, and community involvement as areas of importance to our customers. - There are opportunities improve in many of the areas including outage management, improved customer education, and continued community involvement. | C50: Lakeland has used the survey results to assist in making decisions on which areas to focus on for improvements. Education bill inserts, the new website, improved online portal, and increased social media presence have all been driven from information and data from the surveys. - Increased efficiencies through operational and billing system upgrades have also taken direction from our customers desire for increased reliability. - We have had our third party provider RedHead media provide a customer engagement report which we can work from to help direct our improvement initiatives.
A51: ESA Survey | B51: Invested time and dollars - ESA Survey -> 2016 Electrical Safety Survey - Completed by RedHead Media. Overall, the results showed that our customer had a good knowledge of of electrical safety. | C51: Although the survey results indicated our customers have a good knowledge of electrical safety, for Lakeland Power safety is at our core. We will keep being proactive about safety, ensuring there is safety information on our website and continue with our safety information in schools and community events. We are also looking at safety videos on the website as a method of education.
A52: INNOVATION
A53: Innovation Ideas | B53: In conversation with our municipalities, some shareholders have expressed an interest in innovative technologies. - The Town of Bracebridge asked us to help install level 3 charges (fast chargers) as a solution to affordability control and demand - Local businesses have asked us about the possibility of EV's for their businesses - The Town of Huntsville as indicated through their Sustainability Report - energy, generation, environment are important to them - Town of Parry Sound have confirmed interest in net metering and virtual net metering | C53: - Looking into EV's - 2018/2019 -> We are assisting the Town of Bracebridge to investigate EV chargers -> Tesla have agreed to give us charging stations - LPDL have been working with them - not a strong enough business case yet -> Local business interested in this too - Reviewing net metering and virtual net metering regulations -> Assisting Town of Parry Sound in their interest to make a contribution to clean renewable for the Ontario grid - Coast Guard (Parry Sound) -> Involved in impact assessment for Coast Guard -> Net Metering set-up at the Parry Sound location - Line sensor technology; -> Better monitoring of phase imbalances that could be corrected reducing losses and stabilizing voltage -> Assist with outage management and improve grid efficiency -> Result in a faster response for trouble calls reducing outage time, and reducing financial loss for industrial customers - Innovation Enabling technologies and communication infrastructure -> LPDL ability to incite change on behalf of our customers through innovation, enabling new technologies -> Increased reliability through consumer control -> Potential to reduce costs and price through adaptive infrastructure, reduced line loss, increased consumer control of demand, ability to shift load, reduce bill -Lakeland Power has been asked by the IESO to lead the next level of the Achievable Potential (APS) study for the Parry Sound / Muskoka region between Parry Sound and Waubaushene -> This study will ensure that not only the IESO and LDCs are on the same level of understanding of the restraints in Lakeland Power's service area, but just as important, our customers.

Sheet App.2-B_Acctg Instructions
A1: General Instructions to MIFRS Appendices
A2: Types of Schedules to File
A4: The purpose of this tab is to provide general instructions. The specific instructions to each appendix are listed in footnotes of each appendix.
A6: The typical applicant is expected to have made capitalization and depreciation policy changes under CGAAP as permitted by the Board on January 1, 2012 or mandated by the Board by January 1, 2013, and adopted IFRS for reporting purposes on January 1, 2015 (transition date January 1, 2014). Some distributors filing for 2018 rates have rebased with these accounting changes reflected in a prior rebasing application. If that is the case, information relating to pre-accounting policy changes is not generally required. The information to be provided by applicants will depend on when the accounting policy changes were made and when they last rebased. In general, applicants should provide the following information in the appendices:
E9: Reflecting Accounting Policy Changes in Current Application | G9: Reflected Accounting Policy Changes in Prior Application3
E10: Accounting Policy Changes in 2012 and Adopted IFRS in 2015 | F10: Accounting Policy Changes in 2013 and Adopted IFRS in 2015 | G10: Adopted IFRS in 2015
A11: Information to be filed in 2019 CoS Application | B11: 2019 | C11: Test | E11: MIFRS | F11: MIFRS | G11: MIFRS
B12: 2018 | C12: Bridge | E12: MIFRS | F12: MIFRS | G12: MIFRS
B13: 2017 | C13: Historical | E13: MIFRS | F13: MIFRS | G13: MIFRS
B14: 2016 | C14: Historical | E14: MIFRS | F14: MIFRS | G14: MIFRS
B15: 2015 | C15: Historical | E15: MIFRS and Revised CGAAP1 | F15: MIFRS and Revised CGAAP1 | G15: MIFRS and Revised CGAAP1
B16: 2014 | C16: Historical | E16: Revised CGAAP | F16: CGAAP and Revised CGAAP2 | G16: N/A
B17: 2013 | C17: Historical | E17: CGAAP and Revised CGAAP2 | F17: N/A | G17: N/A
A19: 1) For the transition year (2014), the applicant may file two appendices, one under Revised CGAAP and one under MIFRS, depending on the materiality of impacts. See the specific instructions under each appendix below for further details.
A20: 2) For applicants that are reflecting accounting policy changes for the first time in a rebasing application, the applicant must file two appendices in the year that the applicant implemented changes to its capitalization and depreciation policies (2012 or 2013), one before and one after the policy changes.
A21: 3) Applicants should provide CGAAP and Revised CGAAP schedules (i.e. as indicated in the first two columns of the above table) to support balances in Account 1576 if the account has yet to be disposed of.
A24: Appendix 2-BA - Fixed Asset Schedule
A26: Applicants are to provide Appendix 2-BA in accordance with the years and corresponding accounting standards noted in the above table to provide a year over year continuity in fixed assets.
A27: For the transition year (2014), the applicant should file two appendices, one under Revised CGAAP and one under MIFRS if the change between Revised CGAAP and MIFRS is material. If the change from the accounting standards is not material, the applicant may choose to only provide one appendix under MIFRS. However, the applicant must also indicate the fixed asset net book value balance under Revised CGAAP, the total dollar value of the change and explain why it is not material.
A31: The applicant must establish the continuity of historic cost for gross assets and accumulated depreciation by asset class by ensuring that the opening balance in the year agrees to the closing balance in the prior year.
A34: Appendix 2-Cx - Depreciation and Amortization
A36: Applicants are to provide Appendix 2-C in accordance with the years and corresponding accounting standards listed in the above table.
A37: Appendix 2-C is to be used under all three of the scenarios presented in the table above. In the appendix, the applicant will need to indicate which scenario applies. The appendix is to be duplicated for each year and accounting standard required under the scenario.
A38: Depreciation accounting policy changes were mandated by the Board by January 1, 2013. In general, no further changes to an applicant's depreciation policy (i.e. assets' service lives) are expected after the Board mandated changes by January 1, 2013. If the applicant has made any changes to its depreciation policy subsequent to the Board mandated changes, for the year of the change, applicants must complete Appendix 2-C before and after the change. Applicants must also explain the nature of the change, the reason for the change, quantify the impact of the change, and quantify the depreciation expense before and after the change.
A40: Appendix 2-E - Account 1575, IFRS-CGAAP Transitional PP&E Amounts (2-EA), Account 1576, Accounting Changes Under CGAAP (2-EB, 2-EC) CONTACT OEB STAFF IF TAB REQUIRED
A42: 1) For an applicant that has a balance in Account 1576 to dispose:
A43: · | B43: If an applicant changed capitalization and depreciation policies effective January 1, 2012, the applicant must complete Appendix 2-EB
A44: · | B44: If an applicant changed capitalization and depreciation policies effective January 1, 2013, the applicant must complete Appendix 2-EC
A46: 2) For an applicant that has a balance in Account 1575 to dispose:
A47: · | B47: The applicant must complete 2-EA
A48: If the applicant did not make any further PP&E accounting policy changes beyond the capitalization and depreciation policy changes as mandated by the Board by January 1, 2013 (i.e. no further changes made on transition to IFRS), the applicant must indicate this and does not need to complete Appendix 2-EA.
A52: Appendix 2-Y - Summary of Impacts to Revenue Requirement from Transition to MIFRS CONTACT OEB STAFF IF TAB REQUIRED
A54: An applicant must provide a summary of the dollar impacts of MIFRS to each component of the revenue requirement (e.g. rate base, operating costs, etc.), including the overall impact on the proposed revenue requirement. Accordingly, the applicant must identify financial differences and resulting revenue requirement impacts arising from the adoption of MIFRS as compared to CGAAP. If the applicant is reflecting the changes in capitalization and depreciation policies for the first time in a rebasing application, then a comparison between MIFRS and CGAAP before the change in accounting policies should be completed. If the applicant changed capitalization and depreciation policies and reflected these changes in a prior rebasing application, then a comparison between MIFRS and CGAAP after the change in accounting policies should be completed.

Sheet App.2-BA_FA Cont 2011PS
L1: File Number: | M1: =EBNUMBER -> 0
L2: Exhibit: | M2: 2
L3: Tab:
L4: Schedule:
L5: Page:
L7: Date: | M7: 2019-03-21
A9: Appendix 2-BA
A10: Fixed Asset Continuity Schedule 1
E12: Accounting Standard | F12: CGAAP
D13: Parry Sound ONLY | E13: Year | F13: 2011
D15: Cost | J15: Accumulated Depreciation
A16: CCA Class 2 | B16: OEB Account 3 | C16: Description 3 | D16: Opening Balance | E16: Additions 4 | F16: Disposals 6 | G16: Closing Balance | I16: Opening Balance | J16: Additions | K16: Disposals 6 | L16: Closing Balance | M16: Net Book Value
B17: 1609 | C17: Capital Contributions Paid | G17: =D17+E17+F17 -> 0 | L17: =I17+J17+K17 -> 0 | M17: =G17+L17 -> 0
A18: 12 | B18: 1611 | C18: Computer Software (Formally known as Account 1925) | D18: 211322.6 | E18: 6450.31 | F18: 0 | G18: 217772.91 | I18: -21885.08 | J18: -49213.23 | K18: 0 | L18: -71098.31 | M18: =G18+L18 -> 146674.6
A19: CEC | B19: 1612 | C19: Land Rights (Formally known as Account 1906) | D19: 35048 | F19: 0 | G19: 35048 | I19: -34688 | J19: -20 | K19: 0 | L19: -34708 | M19: 340
A20: N/A | B20: 1805 | C20: Land | D20: 74305 | F20: 0 | G20: 74305 | I20: 0 | J20: 0 | K20: 0 | L20: 0 | M20: 74305
A21: 47 | B21: 1808 | C21: Buildings | F21: 0 | G21: 0 | K21: 0 | L21: 0 | M21: 0
A22: 13 | B22: 1810 | C22: Leasehold Improvements | D22: 0 | E22: 0 | F22: 0 | G22: 0 | I22: 0 | J22: 0 | K22: 0 | L22: 0 | M22: 0
A23: 47 | B23: 1815 | C23: Transformer Station Equipment >50 kV | D23: 0 | E23: 0 | F23: 0 | G23: 0 | I23: 0 | J23: 0 | K23: 0 | L23: 0 | M23: 0
A24: 47 | B24: 1820 | C24: Distribution Station Equipment <50 kV | D24: 1843856.53 | E24: 1994.4 | F24: 0 | G24: 1845850.93 | I24: -1059360.8 | J24: -47351.96 | K24: 0 | L24: -1106712.76 | M24: 739138.17
A25: 47 | B25: 1825 | C25: Storage Battery Equipment | D25: 0 | E25: 0 | F25: 0 | G25: 0 | I25: 0 | J25: 0 | K25: 0 | L25: 0 | M25: 0
A26: 47 | B26: 1830 | C26: Poles, Towers & Fixtures | D26: 1828597.1 | E26: 75916.96 | F26: 0 | G26: 1904514.06 | I26: -1104406.01 | J26: -59092.23 | K26: 0 | L26: -1163498.24 | M26: 741015.82
A27: 47 | B27: 1835 | C27: Overhead Conductors & Devices | D27: 2384876.96 | E27: 61218.46 | F27: 0 | G27: 2446095.42 | I27: -1608981.84 | J27: -73484.09 | K27: 0 | L27: -1682465.93 | M27: 763629.49
A28: 47 | B28: 1840 | C28: Underground Conduit | D28: 599153.87 | E28: 302.16 | F28: 0 | G28: 599456.03 | I28: -354766.9 | J28: -22982.35 | K28: 0 | L28: -377749.25 | M28: 221706.78
A29: 47 | B29: 1845 | C29: Underground Conductors & Devices | D29: 803905.99 | E29: 6983.24 | F29: 0 | G29: 810889.23 | I29: -455829.18 | J29: -31010.82 | K29: 0 | L29: -486840 | M29: 324049.23
A30: 47 | B30: 1850 | C30: Line Transformers | D30: 2241881.91 | E30: 118846.2 | F30: 0 | G30: 2360728.11 | I30: -1507495.48 | J30: -70892.34 | K30: 0 | L30: -1578387.82 | M30: 782340.29
A31: 47 | B31: 1855 | C31: Services (Overhead & Underground) | D31: 1328360.74 | E31: 11180.23 | F31: 0 | G31: 1339540.97 | I31: -896554.91 | J31: -42635.22 | K31: 0 | L31: -939190.13 | M31: 400350.84
A32: 47 | B32: 1860 | C32: Meters | D32: 403759.57 | E32: 8220.94 | F32: -137359.98 | G32: 274620.53 | I32: -60251.72 | J32: -15715.88 | K32: 0 | L32: =I32+J32+K32 -> -75967.6 | M32: 198652.93
A33: 47 | B33: 1860 | C33: Meters (Smart Meters) | D33: 0 | E33: 0 | F33: 0 | G33: 0 | I33: 0 | J33: 0 | K33: 0 | L33: 0 | M33: 0
A34: N/A | B34: 1905 | C34: Land | D34: 0 | E34: 0 | F34: 0 | G34: 0 | I34: 0 | J34: 0 | K34: 0 | L34: 0 | M34: 0
A35: 47 | B35: 1908 | C35: Buildings & Fixtures | E35: 0 | F35: 0 | G35: 0 | K35: 0 | L35: 0 | M35: 0
A36: 13 | B36: 1910 | C36: Leasehold Improvements | D36: 0 | E36: 5341.62 | F36: 0 | G36: 5341.62 | I36: 0 | J36: 0 | K36: 0 | L36: 0 | M36: 5341.62
A37: 8 | B37: 1915 | C37: Office Furniture & Equipment (10 years) | D37: 10061.75 | E37: 4948.1 | F37: 0 | G37: 15009.85 | I37: -1006.18 | J37: -2259.76 | K37: 0 | L37: -3265.94 | M37: 11743.91
A38: 8 | B38: 1915 | C38: Office Furniture & Equipment (5 years) | D38: 0 | E38: 0 | F38: 0 | G38: 0 | I38: 0 | J38: 0 | K38: 0 | L38: 0 | M38: 0
A39: 10 | B39: 1920 | C39: Computer Equipment - Hardware | D39: 24997.61 | E39: 10264.04 | F39: 0 | G39: 35261.65 | I39: -6759.14 | J39: -7874.99 | K39: 0 | L39: -14634.13 | M39: 20627.52
A40: 45 | B40: 1920 | C40: Computer Equip.-Hardware(Post Mar. 22/04) | D40: 0 | E40: 0 | F40: 0 | G40: 0 | I40: 0 | J40: 0 | K40: 0 | L40: 0 | M40: 0
A41: 45.1 | B41: 1920 | C41: Computer Equip.-Hardware(Post Mar. 19/07) | D41: 0 | E41: 0 | F41: 0 | G41: 0 | I41: 0 | J41: 0 | K41: 0 | L41: 0 | M41: 0
A42: 10 | B42: 1930 | C42: Transportation Equipment | D42: 264736.47 | E42: 28172.22 | F42: 0 | G42: 292908.69 | I42: -21896.33 | J42: -45553.44 | K42: 0 | L42: -67449.77 | M42: 225458.92
A43: 8 | B43: 1935 | C43: Stores Equipment | D43: 0 | E43: 0 | F43: 0 | G43: 0 | I43: 0 | J43: 0 | K43: 0 | L43: 0 | M43: 0
A44: 8 | B44: 1940 | C44: Tools, Shop & Garage Equipment | D44: 1954.56 | E44: 0 | F44: 0 | G44: 1954.56 | I44: -195.46 | J44: -390.91 | K44: 0 | L44: -586.37 | M44: 1368.19
A45: 8 | B45: 1945 | C45: Measurement & Testing Equipment | D45: 0 | E45: 0 | F45: 0 | G45: 0 | I45: 0 | J45: 0 | K45: 0 | L45: 0 | M45: 0
A46: 8 | B46: 1950 | C46: Power Operated Equipment | D46: 0 | E46: 0 | F46: 0 | G46: 0 | I46: 0 | J46: 0 | K46: 0 | L46: 0 | M46: 0
A47: 8 | B47: 1955 | C47: Communications Equipment | F47: 0 | G47: 0 | K47: 0 | L47: 0 | M47: 0
A48: 8 | B48: 1955 | C48: Communication Equipment (Smart Meters) | F48: 0 | G48: 0 | K48: 0 | L48: 0 | M48: 0
A49: 8 | B49: 1960 | C49: Miscellaneous Equipment | D49: 0 | E49: 0 | F49: 0 | G49: 0 | I49: 0 | J49: 0 | K49: 0 | L49: 0 | M49: 0
A50: 47 | B50: 1970 | C50: Load Management Controls Customer Premises | D50: 0 | E50: 0 | F50: 0 | G50: 0 | I50: 0 | J50: 0 | K50: 0 | L50: 0 | M50: 0
A51: 47 | B51: 1975 | C51: Load Management Controls Utility Premises | D51: 0 | E51: 0 | F51: 0 | G51: 0 | I51: 0 | J51: 0 | K51: 0 | L51: 0 | M51: 0
A52: 47 | B52: 1980 | C52: System Supervisor Equipment | D52: 0 | F52: 0 | G52: 0 | I52: 0 | K52: 0 | L52: 0 | M52: 0
A53: 47 | B53: 1985 | C53: Miscellaneous Fixed Assets | D53: 0 | E53: 0 | F53: 0 | G53: 0 | I53: 0 | J53: 0 | K53: 0 | L53: 0 | M53: 0
A54: 47 | B54: 1990 | C54: Other Tangible Property | D54: 0 | E54: 0 | F54: 0 | G54: 0 | I54: 0 | J54: 0 | K54: 0 | L54: 0 | M54: 0
A55: 47 | B55: 1995 | C55: Contributions & Grants | D55: -835036 | E55: -74067 | F55: 0 | G55: -909103 | I55: 168503.43 | J55: 33989 | K55: 0 | L55: 202492.43 | M55: -706610.57
A56: 47 | B56: 2440 | C56: Deferred Revenue5 | D56: 0 | E56: 0 | F56: 0 | G56: 0 | I56: 0 | J56: 0 | K56: 0 | L56: 0 | M56: 0
B57: 2055 | C57: Construction in Process | D57: 2121 | E57: 13387 | F57: 0 | G57: 15508 | I57: 0 | J57: 0 | K57: 0 | L57: 0 | M57: 15508
C58: Sub-Total | D58: =SUM(D17:D57) -> 11223903.66 | E58: =SUM(E17:E57) -> 279158.88 | F58: =SUM(F17:F57) -> -137359.98 | G58: =SUM(G17:G57) -> 11365702.56 | I58: =SUM(I17:I57) -> -6965573.6 | J58: =SUM(J17:J57) -> -434488.22 | K58: =SUM(K17:K57) -> 0 | L58: =SUM(L17:L57) -> -7400061.82 | M58: =SUM(M17:M57) -> 3965640.74
C59: Less Socialized Renewable Energy Generation Investments (input as negative) | G59: =D59+E59+F59 -> 0 | L59: =I59+J59+K59 -> 0 | M59: =G59+L59 -> 0
C60: Less Other Non Rate-Regulated Utility Assets (input as negative) | G60: =D60+E60+F60 -> 0 | L60: =I60+J60+K60 -> 0 | M60: =G60+L60 -> 0
C61: Total PP&E | D61: =SUM(D58:D60) -> 11223903.66 | E61: =SUM(E58:E60) -> 279158.88 | F61: =SUM(F58:F60) -> -137359.98 | G61: =SUM(G58:G60) -> 11365702.56 | I61: =SUM(I58:I60) -> -6965573.6 | J61: =SUM(J58:J60) -> -434488.22 | K61: =SUM(K58:K60) -> 0 | L61: =SUM(L58:L60) -> -7400061.82 | M61: =SUM(M58:M60) -> 3965640.74
C62: Depreciation Expense adj. from gain or loss on the retirement of assets (pool of like assets), if applicable6
C63: Total | J63: =J61+J62 -> -434488.22
I65: Less: Fully Allocated Depreciation
A66: 10 | C66: Transportation | I66: Transportation | K66: =J42 -> -45553.44
A67: 8 | C67: Stores Equipment | I67: Stores Equipment
I68: Net Depreciation | K68: =J63-K66-K67 -> -388934.78
A70: Notes:
A72: 1 | B72: Tables in the format outlined above covering all fixed asset accounts should be submitted for the Test Year, Bridge Year and all relevant historical years. At a minimum , the applicant must provide data for the earlier of: 1) all historical years back to its last rebasing; or 2) at least three years of historical actuals, in addition to Bridge Year and Test Year forecasts.
A75: 2 | B75: The "CCA Class" for fixed assets should agree with the CCA Class used for tax purposes in Tax Returns. Fixed Assets sub-components may be used where the underlying asset components are classified under multiple CCA Classes for tax purposes. If an applicant uses any different classes from those shown in the table, an explanation should be provided. (also see note 3).
A78: 3 | B78: The table may need to be customized for a utility's asset categories or for any new asset accounts announced or authorized by the Board.
A80: 4 | B80: The additions in column (E) must not include construction work in progress (CWIP).
A82: 5 | B82: Effective on the date of IFRS adoption, customer contributions will no longer be recorded in Account 1995 Contributions & Grants, but will be recorded in Account 2440, Deferred Revenues.
A84: 6 | B84: The applicant must ensure that all asset disposals have been clearly identified in the Chapter 2 Appendices for all historic, bridge and test years. Where a distributor for general financial reporting purposes under IFRS has accounted for the amount of gain or loss on the retirement of assets in a pool of like assets as a charge or credit to income, for reporting and rate application filings, the distributor shall reclassify such gains and losses as depreciation expense, and disclose the amount separately.

Sheet App.2-BA_FA Cont 2012PS.
L1: File Number: | M1: =EBNUMBER -> 0
L2: Exhibit: | M2: 2
L3: Tab:
L4: Schedule:
L5: Page:
L7: Date: | M7: 2019-03-21
A9: Appendix 2-BA
A10: Fixed Asset Continuity Schedule 1
E12: Accounting Standard | F12: CGAAP
D13: Parry Sound ONLY | E13: Year | F13: 2012
D15: Cost | J15: Accumulated Depreciation
A16: CCA Class 2 | B16: OEB Account 3 | C16: Description 3 | D16: Opening Balance | E16: Additions 4 | F16: Disposals 6 | G16: Closing Balance | I16: Opening Balance | J16: Additions | K16: Disposals 6 | L16: Closing Balance | M16: Net Book Value
B17: 1609 | C17: Capital Contributions Paid | G17: =D17+E17+F17 -> 0 | L17: =I17+J17+K17 -> 0 | M17: =G17+L17 -> 0
A18: 12 | B18: 1611 | C18: Computer Software (Formally known as Account 1925) | D18: 217772.91 | E18: 3592 | F18: 0 | G18: 221364.91 | I18: -71098.31 | J18: -50191.46 | K18: 0 | L18: -121289.77 | M18: 100075.14
A19: CEC | B19: 1612 | C19: Land Rights (Formally known as Account 1906) | D19: 35048 | F19: 0 | G19: 35048 | I19: -34708 | J19: -20.02 | K19: 0 | L19: -34728.02 | M19: 319.98
A20: N/A | B20: 1805 | C20: Land | D20: 74305 | F20: 0 | G20: 74305 | I20: 0 | J20: 0 | K20: 0 | L20: 0 | M20: 74305
A21: 47 | B21: 1808 | C21: Buildings | D21: 0 | F21: 0 | G21: 0 | I21: 0 | J21: 0 | K21: 0 | L21: 0 | M21: 0
A22: 13 | B22: 1810 | C22: Leasehold Improvements | D22: 0 | E22: 0 | F22: 0 | G22: 0 | I22: 0 | J22: 0 | K22: 0 | L22: 0 | M22: 0
A23: 47 | B23: 1815 | C23: Transformer Station Equipment >50 kV | D23: 0 | E23: 0 | F23: 0 | G23: 0 | I23: 0 | J23: 0 | K23: 0 | L23: 0 | M23: 0
A24: 47 | B24: 1820 | C24: Distribution Station Equipment <50 kV | D24: 1845850.93 | E24: 0 | F24: 0 | G24: 1845850.93 | I24: -1106712.76 | J24: -44505.36 | K24: 0 | L24: -1151218.12 | M24: 694632.81
A25: 47 | B25: 1825 | C25: Storage Battery Equipment | D25: 0 | E25: 0 | F25: 0 | G25: 0 | I25: 0 | J25: 0 | K25: 0 | L25: 0 | M25: 0
A26: 47 | B26: 1830 | C26: Poles, Towers & Fixtures | D26: 1904514.06 | E26: 103337.29 | F26: -960317.28 | G26: 1047534.07 | I26: -1163498.24 | J26: -60899.3 | K26: 960317.27 | L26: -264080.27 | M26: 783453.8
A27: 47 | B27: 1835 | C27: Overhead Conductors & Devices | D27: 2446095.42 | E27: 107453.79 | F27: -1320119.84 | G27: 1233429.37 | I27: -1682465.93 | J27: -74176.97 | K27: 1320337.23 | L27: -436305.67 | M27: 797123.7
A28: 47 | B28: 1840 | C28: Underground Conduit | D28: 599456.03 | E28: 30 | F28: -169831.97 | G28: 429654.06 | I28: -377749.25 | J28: -22829.17 | K28: 169831.97 | L28: -230746.45 | M28: 198907.61
A29: 47 | B29: 1845 | C29: Underground Conductors & Devices | D29: 810889.23 | E29: 1502.58 | F29: -412760.76 | G29: 399631.05 | I29: -486840 | J29: -30978.55 | K29: 412760.76 | L29: -105057.79 | M29: 294573.26
A30: 47 | B30: 1850 | C30: Line Transformers | D30: 2360728.11 | E30: 92385.01 | F30: -509139.47 | G30: 1943973.65 | I30: -1578387.82 | J30: -71413.99 | K30: 509139.47 | L30: -1140662.34 | M30: 803311.31
A31: 47 | B31: 1855 | C31: Services (Overhead & Underground) | D31: 1339540.97 | E31: 19163.94 | F31: 0 | G31: 1358704.91 | I31: -939190.13 | J31: -41956.47 | K31: 0 | L31: -981146.6 | M31: 377558.31
A32: 47 | B32: 1860 | C32: Meters | D32: 274620.53 | E32: 9521.03 | F32: 0 | G32: 284141.56 | I32: -75967.6 | J32: -16282.89 | K32: 0 | L32: -92250.49 | M32: 191891.07
A33: 47 | B33: 1860 | C33: Meters (Smart Meters) | D33: 0 | E33: 0 | F33: 0 | G33: 0 | I33: 0 | J33: 0 | K33: 0 | L33: 0 | M33: 0
A34: N/A | B34: 1905 | C34: Land | D34: 0 | E34: 0 | F34: 0 | G34: 0 | I34: 0 | J34: 0 | K34: 0 | L34: 0 | M34: 0
A35: 47 | B35: 1908 | C35: Buildings & Fixtures | D35: 0 | E35: 0 | F35: 0 | G35: 0 | I35: 0 | J35: 0 | K35: 0 | L35: 0 | M35: 0
A36: 13 | B36: 1910 | C36: Leasehold Improvements | D36: 5341.62 | E36: 41910.55 | F36: 0 | G36: 47252.17 | I36: 0 | J36: 0 | K36: 0 | L36: 0 | M36: 47252.17
A37: 8 | B37: 1915 | C37: Office Furniture & Equipment (10 years) | D37: 15009.85 | E37: 470 | F37: 0 | G37: 15479.85 | I37: -3265.94 | J37: -2558.17 | K37: 0 | L37: -5824.11 | M37: 9655.74
A38: 8 | B38: 1915 | C38: Office Furniture & Equipment (5 years) | D38: 0 | E38: 0 | F38: 0 | G38: 0 | I38: 0 | J38: 0 | K38: 0 | L38: 0 | M38: 0
A39: 10 | B39: 1920 | C39: Computer Equipment - Hardware | D39: 35261.65 | E39: 5206.94 | F39: 0 | G39: 40468.59 | I39: -14634.13 | J39: -8137.78 | K39: 0 | L39: -22771.91 | M39: 17696.68
A40: 45 | B40: 1920 | C40: Computer Equip.-Hardware(Post Mar. 22/04) | D40: 0 | E40: 0 | F40: 0 | G40: 0 | I40: 0 | J40: 0 | K40: 0 | L40: 0 | M40: 0
A41: 45.1 | B41: 1920 | C41: Computer Equip.-Hardware(Post Mar. 19/07) | D41: 0 | E41: 0 | F41: 0 | G41: 0 | I41: 0 | J41: 0 | K41: 0 | L41: 0 | M41: 0
A42: 10 | B42: 1930 | C42: Transportation Equipment | D42: 292908.69 | E42: 0 | F42: 0 | G42: 292908.69 | I42: -67449.77 | J42: -41132.04 | K42: 0 | L42: -108581.81 | M42: 184326.88
A43: 8 | B43: 1935 | C43: Stores Equipment | D43: 0 | E43: 0 | F43: 0 | G43: 0 | I43: 0 | J43: 0 | K43: 0 | L43: 0 | M43: 0
A44: 8 | B44: 1940 | C44: Tools, Shop & Garage Equipment | D44: 1954.56 | E44: 0 | F44: 0 | G44: 1954.56 | I44: -586.37 | J44: -390.92 | K44: 0 | L44: -977.29 | M44: 977.27
A45: 8 | B45: 1945 | C45: Measurement & Testing Equipment | D45: 0 | E45: 0 | F45: 0 | G45: 0 | I45: 0 | J45: 0 | K45: 0 | L45: 0 | M45: 0
A46: 8 | B46: 1950 | C46: Power Operated Equipment | D46: 0 | E46: 0 | F46: 0 | G46: 0 | I46: 0 | J46: 0 | K46: 0 | L46: 0 | M46: 0
A47: 8 | B47: 1955 | C47: Communications Equipment | D47: 0 | F47: 0 | G47: 0 | I47: 0 | J47: 0 | K47: 0 | L47: 0 | M47: 0
A48: 8 | B48: 1955 | C48: Communication Equipment (Smart Meters) | D48: 0 | F48: 0 | G48: 0 | I48: 0 | J48: 0 | K48: 0 | L48: 0 | M48: 0
A49: 8 | B49: 1960 | C49: Miscellaneous Equipment | D49: 0 | E49: 0 | F49: 0 | G49: 0 | I49: 0 | J49: 0 | K49: 0 | L49: 0 | M49: 0
A50: 47 | B50: 1970 | C50: Load Management Controls Customer Premises | D50: 0 | E50: 0 | F50: 0 | G50: 0 | I50: 0 | J50: 0 | K50: 0 | L50: 0 | M50: 0
A51: 47 | B51: 1975 | C51: Load Management Controls Utility Premises | D51: 0 | E51: 0 | F51: 0 | G51: 0 | I51: 0 | J51: 0 | K51: 0 | L51: 0 | M51: 0
A52: 47 | B52: 1980 | C52: System Supervisor Equipment | D52: 0 | F52: 0 | G52: 0 | I52: 0 | J52: 0 | K52: 0 | L52: 0 | M52: 0
A53: 47 | B53: 1985 | C53: Miscellaneous Fixed Assets | D53: 0 | E53: 0 | F53: 0 | G53: 0 | I53: 0 | J53: 0 | K53: 0 | L53: 0 | M53: 0
A54: 47 | B54: 1990 | C54: Other Tangible Property | D54: 0 | E54: 0 | F54: 0 | G54: 0 | I54: 0 | J54: 0 | K54: 0 | L54: 0 | M54: 0
A55: 47 | B55: 1995 | C55: Contributions & Grants | D55: -909103 | E55: -32413.1 | F55: 0 | G55: -941516.1 | I55: 202492.43 | J55: 37608.67 | K55: 0 | L55: 240101.1 | M55: -701415
A56: 47 | B56: 2440 | C56: Deferred Revenue5 | D56: 0 | E56: 0 | F56: 0 | G56: 0 | I56: 0 | J56: 0 | K56: 0 | L56: 0 | M56: 0
B57: 2055 | C57: Construction in Process | D57: 15508 | E57: 101962 | F57: 0 | G57: 117470 | I57: 0 | J57: 0 | K57: 0 | L57: 0 | M57: 117470
C58: Sub-Total | D58: =SUM(D17:D57) -> 11365702.56 | E58: =SUM(E17:E57) -> 454122.03 | F58: =SUM(F17:F57) -> -3372169.32 | G58: =SUM(G17:G57) -> 8447655.27 | I58: =SUM(I17:I57) -> -7400061.82 | J58: =SUM(J17:J57) -> -427864.42 | K58: =SUM(K17:K57) -> 3372386.7 | L58: =SUM(L17:L57) -> -4455539.54 | M58: =SUM(M17:M57) -> 3992115.73
C59: Less Socialized Renewable Energy Generation Investments (input as negative) | G59: =D59+E59+F59 -> 0 | L59: =I59+J59+K59 -> 0 | M59: =G59+L59 -> 0
C60: Less Other Non Rate-Regulated Utility Assets (input as negative) | G60: =D60+E60+F60 -> 0 | L60: =I60+J60+K60 -> 0 | M60: =G60+L60 -> 0
C61: Total PP&E | D61: =SUM(D58:D60) -> 11365702.56 | E61: =SUM(E58:E60) -> 454122.03 | F61: =SUM(F58:F60) -> -3372169.32 | G61: =SUM(G58:G60) -> 8447655.27 | I61: =SUM(I58:I60) -> -7400061.82 | J61: =SUM(J58:J60) -> -427864.42 | K61: =SUM(K58:K60) -> 3372386.7 | L61: =SUM(L58:L60) -> -4455539.54 | M61: =SUM(M58:M60) -> 3992115.73
C62: Depreciation Expense adj. from gain or loss on the retirement of assets (pool of like assets), if applicable6
C63: Total | J63: =J61+J62 -> -427864.42
I65: Less: Fully Allocated Depreciation
A66: 10 | C66: Transportation | I66: Transportation | K66: =J42 -> -41132.04
A67: 8 | C67: Stores Equipment | I67: Stores Equipment
I68: Net Depreciation | K68: =J63-K66-K67 -> -386732.38
A70: Notes:
A72: 1 | B72: Tables in the format outlined above covering all fixed asset accounts should be submitted for the Test Year, Bridge Year and all relevant historical years. At a minimum , the applicant must provide data for the earlier of: 1) all historical years back to its last rebasing; or 2) at least three years of historical actuals, in addition to Bridge Year and Test Year forecasts.
A75: 2 | B75: The "CCA Class" for fixed assets should agree with the CCA Class used for tax purposes in Tax Returns. Fixed Assets sub-components may be used where the underlying asset components are classified under multiple CCA Classes for tax purposes. If an applicant uses any different classes from those shown in the table, an explanation should be provided. (also see note 3).
A78: 3 | B78: The table may need to be customized for a utility's asset categories or for any new asset accounts announced or authorized by the Board.
A80: 4 | B80: The additions in column (E) must not include construction work in progress (CWIP).
A82: 5 | B82: Effective on the date of IFRS adoption, customer contributions will no longer be recorded in Account 1995 Contributions & Grants, but will be recorded in Account 2440, Deferred Revenues.
A84: 6 | B84: The applicant must ensure that all asset disposals have been clearly identified in the Chapter 2 Appendices for all historic, bridge and test years. Where a distributor for general financial reporting purposes under IFRS has accounted for the amount of gain or loss on the retirement of assets in a pool of like assets as a charge or credit to income, for reporting and rate application filings, the distributor shall reclassify such gains and losses as depreciation expense, and disclose the amount separately.

Sheet App.2-BA_FA Cont 2013PS
L1: File Number: | M1: =EBNUMBER -> 0
L2: Exhibit: | M2: 2
L3: Tab: | M3: Table 11
L4: Schedule:
L5: Page: | M5: 17
L7: Date: | M7: 2019-03-21
A9: Appendix 2-BA
A10: Fixed Asset Continuity Schedule 1
E12: Accounting Standard | F12: CGAAP
D13: Parry Sound ONLY | E13: Year | F13: 2013
D15: Cost | J15: Accumulated Depreciation
A16: CCA Class 2 | B16: OEB Account 3 | C16: Description 3 | D16: Opening Balance | E16: Additions 4 | F16: Disposals 6 | G16: Closing Balance | I16: Opening Balance | J16: Additions | K16: Disposals 6 | L16: Closing Balance | M16: Net Book Value
B17: 1609 | C17: Capital Contributions Paid | G17: =D17+E17+F17 -> 0 | L17: =I17+J17+K17 -> 0 | M17: =G17+L17 -> 0
A18: 12 | B18: 1611 | C18: Computer Software (Formally known as Account 1925) | D18: 221364.6 | E18: 151262.21 | F18: 0 | G18: 372626.81 | I18: -121289.77 | J18: -65523.16 | K18: 0 | L18: -186812.93 | M18: 185813.88
A19: CEC | B19: 1612 | C19: Land Rights (Formally known as Account 1906) | D19: 35048 | F19: 0 | G19: 35048 | I19: -34728.05 | J19: -20 | K19: 0 | L19: -34748.05 | M19: 299.95
A20: N/A | B20: 1805 | C20: Land | D20: 74305 | F20: 0 | G20: 74305 | I20: 0 | J20: 0 | K20: 0 | L20: 0 | M20: 74305
A21: 47 | B21: 1808 | C21: Buildings | F21: 0 | G21: 0 | I21: 0 | J21: 0 | K21: 0 | L21: 0 | M21: 0
A22: 13 | B22: 1810 | C22: Leasehold Improvements | D22: 0 | E22: 0 | F22: 0 | G22: 0 | I22: 0 | J22: 0 | K22: 0 | L22: 0 | M22: 0
A23: 47 | B23: 1815 | C23: Transformer Station Equipment >50 kV | D23: 0 | E23: 0 | F23: 0 | G23: 0 | I23: 0 | J23: 0 | K23: 0 | L23: 0 | M23: 0
A24: 47 | B24: 1820 | C24: Distribution Station Equipment <50 kV | D24: 1845850.93 | E24: 31963 | F24: 0 | G24: 1877813.93 | I24: -1151218.12 | J24: -24130.15 | K24: 0 | L24: -1175348.27 | M24: 702465.66
A25: 47 | B25: 1825 | C25: Storage Battery Equipment | D25: 0 | E25: 0 | F25: 0 | G25: 0 | I25: 0 | J25: 0 | K25: 0 | L25: 0 | M25: 0
A26: 47 | B26: 1830 | C26: Poles, Towers & Fixtures | D26: 1047533.59 | E26: 67610 | F26: 0 | G26: 1115143.59 | I26: -264080.27 | J26: -47862.18 | K26: 0 | L26: -311942.45 | M26: 803201.14
A27: 47 | B27: 1835 | C27: Overhead Conductors & Devices | D27: 1233429.53 | E27: 67589.95 | F27: 0 | G27: 1301019.48 | I27: -436305.67 | J27: -36803.45 | K27: 0 | L27: -473109.12 | M27: 827910.36
A28: 47 | B28: 1840 | C28: Underground Conduit | D28: 429654.07 | E28: 22153.07 | F28: 0 | G28: 451807.14 | I28: -230746.41 | J28: -8590.02 | K28: 0 | L28: -239336.43 | M28: 212470.71
A29: 47 | B29: 1845 | C29: Underground Conductors & Devices | D29: 399631.05 | E29: 28044.97 | F29: 0 | G29: 427676.02 | I29: -105057.79 | J29: -18855.59 | K29: 0 | L29: -123913.38 | M29: 303762.64
A30: 47 | B30: 1850 | C30: Line Transformers | D30: 1943973.65 | E30: 39421.52 | F30: 0 | G30: 1983395.17 | I30: -1140662.34 | J30: -50053.41 | K30: 0 | L30: -1190715.75 | M30: 792679.42
A31: 47 | B31: 1855 | C31: Services (Overhead & Underground) | D31: 1358704.91 | E31: 33626.58 | F31: 0 | G31: 1392331.49 | I31: -981146.6 | J31: -29110.64 | K31: 0 | L31: -1010257.24 | M31: 382074.25
A32: 47 | B32: 1860 | C32: Meters | D32: 284141.88 | E32: 889083.71 | F32: 0 | G32: 1173225.59 | I32: -92250.49 | J32: -74087.29 | K32: =-187711.92-J32 -> -113624.63 | L32: -279962.41 | M32: 893263.18
A33: 47 | B33: 1860 | C33: Meters (Smart Meters) | D33: 0 | E33: 0 | F33: 0 | G33: 0 | I33: 0 | J33: 0 | K33: 0 | L33: 0 | M33: 0
A34: N/A | B34: 1905 | C34: Land | D34: 0 | E34: 0 | F34: 0 | G34: 0 | I34: 0 | J34: 0 | K34: 0 | L34: 0 | M34: 0
A35: 47 | B35: 1908 | C35: Buildings & Fixtures | E35: 0 | F35: 0 | G35: 0 | I35: 0 | J35: 0 | K35: 0 | L35: 0 | M35: 0
A36: 13 | B36: 1910 | C36: Leasehold Improvements | D36: 47252 | E36: 69346 | F36: 0 | G36: 116598 | I36: 0 | J36: 0 | K36: 0 | L36: 0 | M36: 116598
A37: 8 | B37: 1915 | C37: Office Furniture & Equipment (10 years) | D37: 15479.85 | E37: 0 | F37: 0 | G37: 15479.85 | I37: -5824.11 | J37: -2554.16 | K37: 0 | L37: -8378.27 | M37: 7101.58
A38: 8 | B38: 1915 | C38: Office Furniture & Equipment (5 years) | D38: 0 | E38: 0 | F38: 0 | G38: 0 | I38: 0 | J38: 0 | K38: 0 | L38: 0 | M38: 0
A39: 10 | B39: 1920 | C39: Computer Equipment - Hardware | D39: 40468.59 | E39: 100564.18 | F39: 0 | G39: 141032.77 | I39: -22771.91 | J39: -16917.44 | K39: =-82025.71-J39 -> -65108.27 | L39: -104797.62 | M39: 36235.15
A40: 45 | B40: 1920 | C40: Computer Equip.-Hardware(Post Mar. 22/04) | D40: 0 | E40: 0 | F40: 0 | G40: 0 | I40: 0 | J40: 0 | K40: 0 | L40: 0 | M40: 0
A41: 45.1 | B41: 1920 | C41: Computer Equip.-Hardware(Post Mar. 19/07) | D41: 0 | E41: 0 | F41: 0 | G41: 0 | I41: 0 | J41: 0 | K41: 0 | L41: 0 | M41: 0
A42: 10 | B42: 1930 | C42: Transportation Equipment | D42: 292908.69 | E42: 90593 | F42: 0 | G42: 383501.69 | I42: -108581.81 | J42: -40108.8 | K42: 0 | L42: -148690.61 | M42: 234811.08
A43: 8 | B43: 1935 | C43: Stores Equipment | D43: 0 | E43: 0 | F43: 0 | G43: 0 | I43: 0 | J43: 0 | K43: 0 | L43: 0 | M43: 0
A44: 8 | B44: 1940 | C44: Tools, Shop & Garage Equipment | D44: 1954.56 | E44: 0 | F44: 0 | G44: 1954.56 | I44: -977.29 | J44: -390.96 | K44: 0 | L44: -1368.25 | M44: 586.31
A45: 8 | B45: 1945 | C45: Measurement & Testing Equipment | D45: 0 | E45: 0 | F45: 0 | G45: 0 | I45: 0 | J45: 0 | K45: 0 | L45: 0 | M45: 0
A46: 8 | B46: 1950 | C46: Power Operated Equipment | D46: 0 | E46: 0 | F46: 0 | G46: 0 | I46: 0 | J46: 0 | K46: 0 | L46: 0 | M46: 0
A47: 8 | B47: 1955 | C47: Communications Equipment | F47: 0 | G47: 0 | I47: 0 | J47: 0 | K47: 0 | L47: 0 | M47: 0
A48: 8 | B48: 1955 | C48: Communication Equipment (Smart Meters) | F48: 0 | G48: 0 | I48: 0 | J48: 0 | K48: 0 | L48: 0 | M48: 0
A49: 8 | B49: 1960 | C49: Miscellaneous Equipment | D49: 0 | E49: 0 | F49: 0 | G49: 0 | I49: 0 | J49: 0 | K49: 0 | L49: 0 | M49: 0
A50: 47 | B50: 1970 | C50: Load Management Controls Customer Premises | D50: 0 | E50: 0 | F50: 0 | G50: 0 | I50: 0 | J50: 0 | K50: 0 | L50: 0 | M50: 0
A51: 47 | B51: 1975 | C51: Load Management Controls Utility Premises | D51: 0 | E51: 0 | F51: 0 | G51: 0 | I51: 0 | J51: 0 | K51: 0 | L51: 0 | M51: 0
A52: 47 | B52: 1980 | C52: System Supervisor Equipment | D52: 0 | F52: 0 | G52: 0 | I52: 0 | J52: 0 | K52: 0 | L52: 0 | M52: 0
A53: 47 | B53: 1985 | C53: Miscellaneous Fixed Assets | D53: 0 | E53: 0 | F53: 0 | G53: 0 | I53: 0 | J53: 0 | K53: 0 | L53: 0 | M53: 0
A54: 47 | B54: 1990 | C54: Other Tangible Property | D54: 0 | E54: 0 | F54: 0 | G54: 0 | I54: 0 | J54: 0 | K54: 0 | L54: 0 | M54: 0
A55: 47 | B55: 1995 | C55: Contributions & Grants | D55: -941515.98 | E55: -53427.85 | F55: 0 | G55: -994943.83 | I55: 240101.1 | J55: 20108.16 | K55: 0 | L55: 260209.26 | M55: -734734.57
A56: 47 | B56: 2440 | C56: Deferred Revenue5 | D56: 0 | E56: 0 | F56: 0 | G56: 0 | I56: 0 | J56: 0 | K56: 0 | L56: 0 | M56: 0
B57: 2055 | C57: Construction in Process | D57: 117470 | E57: 30184 | F57: 0 | G57: 147654 | I57: 0 | J57: 0 | K57: 0 | L57: 0 | M57: 147654
C58: Sub-Total | D58: =SUM(D17:D57) -> 8447654.92 | E58: =SUM(E17:E57) -> 1568014.34 | F58: =SUM(F17:F57) -> 0 | G58: =SUM(G17:G57) -> 10015669.26 | I58: =SUM(I17:I57) -> -4455539.53 | J58: =SUM(J17:J57) -> -394899.09 | K58: =SUM(K17:K57) -> -178732.9 | L58: =SUM(L17:L57) -> -5029171.52 | M58: =SUM(M17:M57) -> 4986497.74
C59: Less Socialized Renewable Energy Generation Investments (input as negative) | G59: =D59+E59+F59 -> 0 | L59: =I59+J59+K59 -> 0 | M59: =G59+L59 -> 0
C60: Less Other Non Rate-Regulated Utility Assets (input as negative) | G60: =D60+E60+F60 -> 0 | L60: =I60+J60+K60 -> 0 | M60: =G60+L60 -> 0
C61: Total PP&E | D61: =SUM(D58:D60) -> 8447654.92 | E61: =SUM(E58:E60) -> 1568014.34 | F61: =SUM(F58:F60) -> 0 | G61: =SUM(G58:G60) -> 10015669.26 | I61: =SUM(I58:I60) -> -4455539.53 | J61: =SUM(J58:J60) -> -394899.09 | K61: =SUM(K58:K60) -> -178732.9 | L61: =SUM(L58:L60) -> -5029171.52 | M61: =SUM(M58:M60) -> 4986497.74
C62: Depreciation Expense adj. from gain or loss on the retirement of assets (pool of like assets), if applicable6
C63: Total | J63: =J61+J62 -> -394899.09
I65: Less: Fully Allocated Depreciation
A66: 10 | C66: Transportation | I66: Transportation | K66: =J42 -> -40108.8
A67: 8 | C67: Stores Equipment | I67: Stores Equipment
I68: Net Depreciation | K68: =J63-K66-K67 -> -354790.29
A70: Notes:
A72: 1 | B72: Tables in the format outlined above covering all fixed asset accounts should be submitted for the Test Year, Bridge Year and all relevant historical years. At a minimum , the applicant must provide data for the earlier of: 1) all historical years back to its last rebasing; or 2) at least three years of historical actuals, in addition to Bridge Year and Test Year forecasts.
A75: 2 | B75: The "CCA Class" for fixed assets should agree with the CCA Class used for tax purposes in Tax Returns. Fixed Assets sub-components may be used where the underlying asset components are classified under multiple CCA Classes for tax purposes. If an applicant uses any different classes from those shown in the table, an explanation should be provided. (also see note 3).
A78: 3 | B78: The table may need to be customized for a utility's asset categories or for any new asset accounts announced or authorized by the Board.
A80: 4 | B80: The additions in column (E) must not include construction work in progress (CWIP).
A82: 5 | B82: Effective on the date of IFRS adoption, customer contributions will no longer be recorded in Account 1995 Contributions & Grants, but will be recorded in Account 2440, Deferred Revenues.
A84: 6 | B84: The applicant must ensure that all asset disposals have been clearly identified in the Chapter 2 Appendices for all historic, bridge and test years. Where a distributor for general financial reporting purposes under IFRS has accounted for the amount of gain or loss on the retirement of assets in a pool of like assets as a charge or credit to income, for reporting and rate application filings, the distributor shall reclassify such gains and losses as depreciation expense, and disclose the amount separately.

Sheet App.2-BA_FA Cont 2013 LP
L1: File Number: | M1: =EBNUMBER -> 0
L2: Exhibit: | M2: 2
L3: Tab: | M3: Table 12
L4: Schedule:
L5: Page: | M5: 18
L7: Date: | M7: 2019-03-21
A9: Appendix 2-BA
A10: Fixed Asset Continuity Schedule 1
E12: Accounting Standard | F12: CGAAP
D13: LAKELAND ONLY | E13: Year | F13: 2013
D15: Cost | J15: Accumulated Depreciation
A16: CCA Class 2 | B16: OEB Account 3 | C16: Description 3 | D16: Opening Balance | E16: Additions 4 | F16: Disposals 6 | G16: Closing Balance | I16: Opening Balance | J16: Additions | K16: Disposals 6 | L16: Closing Balance | M16: Net Book Value
B17: 1609 | C17: Capital Contributions Paid | G17: =D17+E17+F17 -> 0 | L17: =I17+J17+K17 -> 0 | M17: =G17+L17 -> 0
A18: 12 | B18: 1611 | C18: Computer Software (Formally known as Account 1925) | D18: 503929.46 | E18: 38352 | F18: 0 | G18: 542281.46 | I18: -300050.45 | J18: -77750.73 | K18: 0 | L18: -377801.18 | M18: 164480.28
A19: CEC | B19: 1612 | C19: Land Rights (Formally known as Account 1906) | D19: 516004.01 | E19: 4031.24 | F19: 0 | G19: 520035.25 | I19: -15146.51 | J19: 0 | K19: 0 | L19: -15146.51 | M19: 504888.74
A20: N/A | B20: 1805 | C20: Land | F20: 0 | G20: 0 | I20: 0 | J20: 0 | K20: 0 | L20: 0 | M20: 0
A21: 47 | B21: 1808 | C21: Buildings | D21: 1838810.37 | E21: 2996 | F21: 0 | G21: 1841806.37 | I21: -242964.56 | J21: -66938.65 | K21: 0 | L21: -309903.21 | M21: 1531903.16
A22: 13 | B22: 1810 | C22: Leasehold Improvements | D22: 0 | E22: 0 | F22: 0 | G22: 0 | I22: 0 | J22: 0 | K22: 0 | L22: 0 | M22: 0
A23: 47 | B23: 1815 | C23: Transformer Station Equipment >50 kV | D23: 0 | E23: 0 | F23: 0 | G23: 0 | I23: 0 | J23: 0 | K23: 0 | L23: 0 | M23: 0
A24: 47 | B24: 1820 | C24: Distribution Station Equipment <50 kV | D24: 3268437.05 | E24: 86854.22 | F24: 0 | G24: 3355291.27 | I24: -958600.01 | J24: -70010.9 | K24: 0 | L24: -1028610.91 | M24: 2326680.36
A25: 47 | B25: 1825 | C25: Storage Battery Equipment | D25: 0 | E25: 0 | F25: 0 | G25: 0 | I25: 0 | J25: 0 | K25: 0 | L25: 0 | M25: 0
A26: 47 | B26: 1830 | C26: Poles, Towers & Fixtures | D26: 6184783.41 | E26: 308171.79 | F26: 0 | G26: 6492955.2 | I26: -2986305.26 | J26: -127759.99 | K26: 0 | L26: -3114065.25 | M26: 3378889.95
A27: 47 | B27: 1835 | C27: Overhead Conductors & Devices | D27: 3609945.47 | E27: 236980.69 | F27: 0 | G27: 3846926.16 | I27: -1110463.41 | J27: -79499.01 | K27: 0 | L27: -1189962.42 | M27: 2656963.74
A28: 47 | B28: 1840 | C28: Underground Conduit | D28: 3345310.99 | E28: 86586.84 | F28: 0 | G28: 3431897.83 | I28: -1554216.81 | J28: -68128.34 | K28: 0 | L28: -1622345.15 | M28: 1809552.68
A29: 47 | B29: 1845 | C29: Underground Conductors & Devices | D29: 2329453.44 | E29: 199229.26 | F29: 0 | G29: 2528682.7 | I29: -580755.44 | J29: -63218.27 | K29: 0 | L29: -643973.71 | M29: 1884708.99
A30: 47 | B30: 1850 | C30: Line Transformers | D30: 6717845.44 | E30: 294132.96 | F30: 0 | G30: 7011978.4 | I30: -2402829.57 | J30: -150525.31 | K30: 0 | L30: -2553354.88 | M30: 4458623.52
A31: 47 | B31: 1855 | C31: Services (Overhead & Underground) | D31: 702568.9 | E31: 80356.34 | F31: 0 | G31: 782925.24 | I31: -134756.69 | J31: -15127.75 | K31: 0 | L31: -149884.44 | M31: 633040.8
A32: 47 | B32: 1860 | C32: Meters | D32: 1905681.12 | E32: 44720.29 | F32: 0 | G32: 1950401.41 | I32: -340333.73 | J32: -126225.64 | K32: 0 | L32: -466559.37 | M32: 1483842.04
A33: 47 | B33: 1860 | C33: Meters (Smart Meters) | D33: 0 | E33: 0 | F33: 0 | G33: 0 | I33: 0 | J33: 0 | K33: 0 | L33: 0 | M33: 0
A34: N/A | B34: 1905 | C34: Land | D34: 278455.26 | E34: 0 | F34: 0 | G34: 278455.26 | I34: 0 | J34: 0 | K34: 0 | L34: 0 | M34: 278455.26
A35: 47 | B35: 1908 | C35: Buildings & Fixtures | D35: 179606.28 | E35: 0 | F35: 0 | G35: 179606.28 | I35: -60816.96 | J35: -9665.6 | K35: 0 | L35: -70482.56 | M35: 109123.72
A36: 13 | B36: 1910 | C36: Leasehold Improvements | D36: 0 | E36: 0 | F36: 0 | G36: 0 | I36: 0 | J36: 0 | K36: 0 | L36: 0 | M36: 0
A37: 8 | B37: 1915 | C37: Office Furniture & Equipment (10 years) | D37: 232042.97 | E37: 0 | F37: 0 | G37: 232042.97 | I37: -140357.73 | J37: -14196.41 | K37: 0 | L37: -154554.14 | M37: 77488.83
A38: 8 | B38: 1915 | C38: Office Furniture & Equipment (5 years) | D38: 0 | E38: 0 | F38: 0 | G38: 0 | I38: 0 | J38: 0 | K38: 0 | L38: 0 | M38: 0
A39: 10 | B39: 1920 | C39: Computer Equipment - Hardware | D39: 418858.69 | E39: 8361.05 | F39: 0 | G39: 427219.74 | I39: -376386.34 | J39: -19230.46 | K39: 0 | L39: -395616.8 | M39: 31602.94
A40: 45 | B40: 1920 | C40: Computer Equip.-Hardware(Post Mar. 22/04) | D40: 0 | E40: 0 | F40: 0 | G40: 0 | I40: 0 | J40: 0 | K40: 0 | L40: 0 | M40: 0
A41: 45.1 | B41: 1920 | C41: Computer Equip.-Hardware(Post Mar. 19/07) | D41: 0 | E41: 0 | F41: 0 | G41: 0 | I41: 0 | J41: 0 | K41: 0 | L41: 0 | M41: 0
A42: 10 | B42: 1930 | C42: Transportation Equipment | D42: 1210262.31 | E42: 281650 | F42: 0 | G42: 1491912.31 | I42: -783322.06 | J42: -96661.64 | K42: 0 | L42: -879983.7 | M42: 611928.61
A43: 8 | B43: 1935 | C43: Stores Equipment | D43: 10960.38 | E43: 0 | F43: 0 | G43: 10960.38 | I43: -9396.03 | J43: -819.89 | K43: 0 | L43: -10215.92 | M43: 744.46
A44: 8 | B44: 1940 | C44: Tools, Shop & Garage Equipment | D44: 261627.61 | E44: 0 | F44: 0 | G44: 261627.61 | I44: -188133.79 | J44: -12670.14 | K44: 0 | L44: -200803.93 | M44: 60823.68
A45: 8 | B45: 1945 | C45: Measurement & Testing Equipment | D45: 0 | E45: 0 | F45: 0 | G45: 0 | I45: 0 | J45: 0 | K45: 0 | L45: 0 | M45: 0
A46: 8 | B46: 1950 | C46: Power Operated Equipment | D46: 0 | E46: 0 | F46: 0 | G46: 0 | I46: 0 | J46: 0 | K46: 0 | L46: 0 | M46: 0
A47: 8 | B47: 1955 | C47: Communications Equipment | D47: 188720.87 | E47: 644.78 | F47: 0 | G47: 189365.65 | I47: -140991.3 | J47: -12262.04 | K47: 0 | L47: -153253.34 | M47: 36112.31
A48: 8 | B48: 1955 | C48: Communication Equipment (Smart Meters) | D48: 410583.25 | E48: 0 | F48: 0 | G48: 410583.25 | I48: -205291.63 | J48: -82116.65 | K48: 0 | L48: -287408.28 | M48: 123174.97
A49: 8 | B49: 1960 | C49: Miscellaneous Equipment | D49: 0 | E49: 0 | F49: 0 | G49: 0 | I49: 0 | J49: 0 | K49: 0 | L49: 0 | M49: 0
A50: 47 | B50: 1970 | C50: Load Management Controls Customer Premises | D50: 0 | E50: 0 | F50: 0 | G50: 0 | I50: 0 | J50: 0 | K50: 0 | L50: 0 | M50: 0
A51: 47 | B51: 1975 | C51: Load Management Controls Utility Premises | D51: 0 | E51: 0 | F51: 0 | G51: 0 | I51: 0 | J51: 0 | K51: 0 | L51: 0 | M51: 0
A52: 47 | B52: 1980 | C52: System Supervisor Equipment | D52: 0 | E52: 176033.08 | F52: 0 | G52: 176033.08 | I52: 0 | J52: -8801.65 | K52: 0 | L52: -8801.65 | M52: 167231.43
A53: 47 | B53: 1985 | C53: Miscellaneous Fixed Assets | D53: 0 | E53: 0 | F53: 0 | G53: 0 | I53: 0 | J53: 0 | K53: 0 | L53: 0 | M53: 0
A54: 47 | B54: 1990 | C54: Other Tangible Property | D54: 0 | E54: 0 | F54: 0 | G54: 0 | I54: 0 | J54: 0 | K54: 0 | L54: 0 | M54: 0
A55: 47 | B55: 1995 | C55: Contributions & Grants | D55: -6117716.02 | E55: -156275.18 | F55: 0 | G55: -6273991.2 | I55: 1193124.04 | J55: 134014.74 | K55: 0 | L55: 1327138.78 | M55: -4946852.42
A56: 47 | B56: 2440 | C56: Deferred Revenue5 | D56: 0 | E56: 0 | F56: 0 | G56: 0 | I56: 0 | J56: 0 | K56: 0 | L56: 0 | M56: 0
B57: 2055 | C57: Construction in Process | D57: 0 | E57: 0 | F57: 0 | G57: 0 | I57: 0 | J57: 0 | K57: 0 | L57: 0 | M57: 0
C58: Sub-Total | D58: =SUM(D17:D57) -> 27996171.26 | E58: =SUM(E17:E57) -> 1692825.36 | F58: =SUM(F17:F57) -> 0 | G58: =SUM(G17:G57) -> 29688996.62 | I58: =SUM(I17:I57) -> -11337994.24 | J58: =SUM(J17:J57) -> -967594.33 | K58: =SUM(K17:K57) -> 0 | L58: =SUM(L17:L57) -> -12305588.57 | M58: =SUM(M17:M57) -> 17383408.05
C59: Less Socialized Renewable Energy Generation Investments (input as negative) | G59: =D59+E59+F59 -> 0 | L59: =I59+J59+K59 -> 0 | M59: =G59+L59 -> 0
C60: Less Other Non Rate-Regulated Utility Assets (input as negative) | G60: =D60+E60+F60 -> 0 | L60: =I60+J60+K60 -> 0 | M60: =G60+L60 -> 0
C61: Total PP&E | D61: =SUM(D58:D60) -> 27996171.26 | E61: =SUM(E58:E60) -> 1692825.36 | F61: =SUM(F58:F60) -> 0 | G61: =SUM(G58:G60) -> 29688996.62 | I61: =SUM(I58:I60) -> -11337994.24 | J61: =SUM(J58:J60) -> -967594.33 | K61: =SUM(K58:K60) -> 0 | L61: =SUM(L58:L60) -> -12305588.57 | M61: =SUM(M58:M60) -> 17383408.05
C62: Depreciation Expense adj. from gain or loss on the retirement of assets (pool of like assets), if applicable6
C63: Total | J63: =J61+J62 -> -967594.33
I65: Less: Fully Allocated Depreciation
A66: 10 | C66: Transportation | I66: Transportation | K66: =J42 -> -96661.64
A67: 8 | C67: Stores Equipment | I67: Stores Equipment
I68: Net Depreciation | K68: =J63-K66-K67 -> -870932.69
A70: Notes:
A72: 1 | B72: Tables in the format outlined above covering all fixed asset accounts should be submitted for the Test Year, Bridge Year and all relevant historical years. At a minimum , the applicant must provide data for the earlier of: 1) all historical years back to its last rebasing; or 2) at least three years of historical actuals, in addition to Bridge Year and Test Year forecasts.
A75: 2 | B75: The "CCA Class" for fixed assets should agree with the CCA Class used for tax purposes in Tax Returns. Fixed Assets sub-components may be used where the underlying asset components are classified under multiple CCA Classes for tax purposes. If an applicant uses any different classes from those shown in the table, an explanation should be provided. (also see note 3).
A78: 3 | B78: The table may need to be customized for a utility's asset categories or for any new asset accounts announced or authorized by the Board.
A80: 4 | B80: The additions in column (E) must not include construction work in progress (CWIP).
A82: 5 | B82: Effective on the date of IFRS adoption, customer contributions will no longer be recorded in Account 1995 Contributions & Grants, but will be recorded in Account 2440, Deferred Revenues.
A84: 6 | B84: The applicant must ensure that all asset disposals have been clearly identified in the Chapter 2 Appendices for all historic, bridge and test years. Where a distributor for general financial reporting purposes under IFRS has accounted for the amount of gain or loss on the retirement of assets in a pool of like assets as a charge or credit to income, for reporting and rate application filings, the distributor shall reclassify such gains and losses as depreciation expense, and disclose the amount separately.

Sheet App.2-BA_FA Cont 2013 MERGED
L1: File Number: | M1: =EBNUMBER -> 0
L2: Exhibit: | M2: 2
L3: Tab: | M3: Table 13
L4: Schedule:
L5: Page: | M5: 19
L7: Date: | M7: 2019-03-21
A9: Appendix 2-BA
A10: Fixed Asset Continuity Schedule 1
E12: Accounting Standard | F12: CGAAP
D13: MERGED | E13: Year | F13: 2013
D15: Cost | J15: Accumulated Depreciation
A16: CCA Class 2 | B16: OEB Account 3 | C16: Description 3 | D16: Opening Balance | E16: Additions 4 | F16: Disposals 6 | G16: Closing Balance | I16: Opening Balance | J16: Additions | K16: Disposals 6 | L16: Closing Balance | M16: Net Book Value
B17: 1609 | C17: Capital Contributions Paid | G17: =D17+E17+F17 -> 0 | L17: =I17+J17+K17 -> 0 | M17: =G17+L17 -> 0
A18: 12 | B18: 1611 | C18: Computer Software (Formally known as Account 1925) | D18: 725294.06 | E18: 189614.21 | F18: 0 | G18: 914908.27 | I18: -421340.22 | J18: -143273.89 | K18: 0 | L18: -564614.11 | M18: 350294.16
A19: CEC | B19: 1612 | C19: Land Rights (Formally known as Account 1906) | D19: 551052.01 | E19: 4031.24 | F19: 0 | G19: 555083.25 | I19: -49874.56 | J19: -20 | K19: 0 | L19: -49894.56 | M19: 505188.69
A20: N/A | B20: 1805 | C20: Land | D20: 74305 | F20: 0 | G20: 74305 | I20: 0 | J20: 0 | K20: 0 | L20: 0 | M20: 74305
A21: 47 | B21: 1808 | C21: Buildings | D21: 1838810.37 | E21: 2996 | F21: 0 | G21: 1841806.37 | I21: -242964.56 | J21: -66938.65 | K21: 0 | L21: -309903.21 | M21: 1531903.16
A22: 13 | B22: 1810 | C22: Leasehold Improvements | D22: 0 | E22: 0 | F22: 0 | G22: 0 | I22: 0 | J22: 0 | K22: 0 | L22: 0 | M22: 0
A23: 47 | B23: 1815 | C23: Transformer Station Equipment >50 kV | D23: 0 | E23: 0 | F23: 0 | G23: 0 | I23: 0 | J23: 0 | K23: 0 | L23: 0 | M23: 0
A24: 47 | B24: 1820 | C24: Distribution Station Equipment <50 kV | D24: 5114288 | E24: 118817.22 | F24: 0 | G24: 5233105.22 | I24: -2109818.13 | J24: -94141.05 | K24: 0 | L24: -2203959.18 | M24: 3029146.04
A25: 47 | B25: 1825 | C25: Storage Battery Equipment | D25: 0 | E25: 0 | F25: 0 | G25: 0 | I25: 0 | J25: 0 | K25: 0 | L25: 0 | M25: 0
A26: 47 | B26: 1830 | C26: Poles, Towers & Fixtures | D26: 7232317 | E26: 375782 | F26: 0 | G26: 7608099 | I26: -3250385.53 | J26: -175622.17 | K26: 0 | L26: -3426007.7 | M26: 4182091.3
A27: 47 | B27: 1835 | C27: Overhead Conductors & Devices | D27: 4843375 | E27: 304570 | F27: 0 | G27: 5147945 | I27: -1546769.08 | J27: -116302.46 | K27: 0 | L27: -1663071.54 | M27: 3484873.46
A28: 47 | B28: 1840 | C28: Underground Conduit | D28: 3774965 | E28: 108740 | F28: 0 | G28: 3883705 | I28: -1784963.26 | J28: -76718.36 | K28: 0 | L28: -1861681.62 | M28: 2022023.38
A29: 47 | B29: 1845 | C29: Underground Conductors & Devices | D29: 2729084 | E29: 227275 | F29: 0 | G29: 2956359 | I29: -685813.23 | J29: -82073.86 | K29: 0 | L29: -767887.09 | M29: 2188471.91
A30: 47 | B30: 1850 | C30: Line Transformers | D30: 8661819 | E30: 333555 | F30: 0 | G30: 8995374 | I30: -3543491.91 | J30: -200578.72 | K30: 0 | L30: -3744070.63 | M30: 5251303.37
A31: 47 | B31: 1855 | C31: Services (Overhead & Underground) | D31: 2061274 | E31: 113983 | F31: 0 | G31: 2175257 | I31: -1115903.29 | J31: -44238.39 | K31: 0 | L31: -1160141.68 | M31: 1015115.32
A32: 47 | B32: 1860 | C32: Meters | D32: 2189823 | E32: 933804 | F32: 0 | G32: 3123627 | I32: -432584.22 | J32: -313937.56 | K32: 0 | L32: -746521.78 | M32: 2377105.22
A33: 47 | B33: 1860 | C33: Meters (Smart Meters) | D33: 0 | E33: 0 | F33: 0 | G33: 0 | I33: 0 | J33: 0 | K33: 0 | L33: 0 | M33: 0
A34: N/A | B34: 1905 | C34: Land | D34: 278455.26 | E34: 0 | F34: 0 | G34: 278455.26 | I34: 0 | J34: 0 | K34: 0 | L34: 0 | M34: 278455.26
A35: 47 | B35: 1908 | C35: Buildings & Fixtures | D35: 179606.28 | E35: 0 | F35: 0 | G35: 179606.28 | I35: -60816.96 | J35: -9665.6 | K35: 0 | L35: -70482.56 | M35: 109123.72
A36: 13 | B36: 1910 | C36: Leasehold Improvements | D36: 47252 | E36: 69346 | F36: 0 | G36: 116598 | I36: 0 | J36: 0 | K36: 0 | L36: 0 | M36: 116598
A37: 8 | B37: 1915 | C37: Office Furniture & Equipment (10 years) | D37: 247523 | E37: 0 | F37: 0 | G37: 247523 | I37: -146181.84 | J37: -16750.57 | K37: 0 | L37: -162932.41 | M37: 84590.59
A38: 8 | B38: 1915 | C38: Office Furniture & Equipment (5 years) | D38: 0 | E38: 0 | F38: 0 | G38: 0 | I38: 0 | J38: 0 | K38: 0 | L38: 0 | M38: 0
A39: 10 | B39: 1920 | C39: Computer Equipment - Hardware | D39: 459327 | E39: 108926 | F39: 0 | G39: 568253 | I39: -399158.25 | J39: -101256.17 | K39: 0 | L39: -500414.42 | M39: 67838.58
A40: 45 | B40: 1920 | C40: Computer Equip.-Hardware(Post Mar. 22/04) | D40: 0 | E40: 0 | F40: 0 | G40: 0 | I40: 0 | J40: 0 | K40: 0 | L40: 0 | M40: 0
A41: 45.1 | B41: 1920 | C41: Computer Equip.-Hardware(Post Mar. 19/07) | D41: 0 | E41: 0 | F41: 0 | G41: 0 | I41: 0 | J41: 0 | K41: 0 | L41: 0 | M41: 0
A42: 10 | B42: 1930 | C42: Transportation Equipment | D42: 1503171 | E42: 372243 | F42: 0 | G42: 1875414 | I42: -891903.87 | J42: -136770.44 | K42: 0 | L42: -1028674.31 | M42: 846739.69
A43: 8 | B43: 1935 | C43: Stores Equipment | D43: 10960.38 | E43: 0 | F43: 0 | G43: 10960.38 | I43: -9396.03 | J43: -819.89 | K43: 0 | L43: -10215.92 | M43: 744.46
A44: 8 | B44: 1940 | C44: Tools, Shop & Garage Equipment | D44: 263582 | E44: 0 | F44: 0 | G44: 263582 | I44: -189111.08 | J44: -13061.1 | K44: 0 | L44: -202172.18 | M44: 61409.82
A45: 8 | B45: 1945 | C45: Measurement & Testing Equipment | D45: 0 | E45: 0 | F45: 0 | G45: 0 | I45: 0 | J45: 0 | K45: 0 | L45: 0 | M45: 0
A46: 8 | B46: 1950 | C46: Power Operated Equipment | D46: 0 | E46: 0 | F46: 0 | G46: 0 | I46: 0 | J46: 0 | K46: 0 | L46: 0 | M46: 0
A47: 8 | B47: 1955 | C47: Communications Equipment | D47: 188720.87 | E47: 644.78 | F47: 0 | G47: 189365.65 | I47: -140991.3 | J47: -12262.04 | K47: 0 | L47: -153253.34 | M47: 36112.31
A48: 8 | B48: 1955 | C48: Communication Equipment (Smart Meters) | D48: 410583.25 | E48: 0 | F48: 0 | G48: 410583.25 | I48: -205291.63 | J48: -82116.65 | K48: 0 | L48: -287408.28 | M48: 123174.97
A49: 8 | B49: 1960 | C49: Miscellaneous Equipment | D49: 0 | E49: 0 | F49: 0 | G49: 0 | I49: 0 | J49: 0 | K49: 0 | L49: 0 | M49: 0
A50: 47 | B50: 1970 | C50: Load Management Controls Customer Premises | D50: 0 | E50: 0 | F50: 0 | G50: 0 | I50: 0 | J50: 0 | K50: 0 | L50: 0 | M50: 0
A51: 47 | B51: 1975 | C51: Load Management Controls Utility Premises | D51: 0 | E51: 0 | F51: 0 | G51: 0 | I51: 0 | J51: 0 | K51: 0 | L51: 0 | M51: 0
A52: 47 | B52: 1980 | C52: System Supervisor Equipment | D52: 0 | E52: 176033.08 | F52: 0 | G52: 176033.08 | I52: 0 | J52: -8801.65 | K52: 0 | L52: -8801.65 | M52: 167231.43
A53: 47 | B53: 1985 | C53: Miscellaneous Fixed Assets | D53: 0 | E53: 0 | F53: 0 | G53: 0 | I53: 0 | J53: 0 | K53: 0 | L53: 0 | M53: 0
A54: 47 | B54: 1990 | C54: Other Tangible Property | D54: 0 | E54: 0 | F54: 0 | G54: 0 | I54: 0 | J54: 0 | K54: 0 | L54: 0 | M54: 0
A55: 47 | B55: 1995 | C55: Contributions & Grants | D55: -7059232 | E55: -209703 | F55: 0 | G55: -7268935 | I55: 1433225.14 | J55: 154122.9 | K55: 0 | L55: 1587348.04 | M55: -5681586.96
A56: 47 | B56: 2440 | C56: Deferred Revenue5 | D56: 0 | E56: 0 | F56: 0 | G56: 0 | I56: 0 | J56: 0 | K56: 0 | L56: 0 | M56: 0
B57: 2055 | C57: Construction in Process | D57: 117470.12 | E57: 30183.88 | F57: 0 | G57: 147654 | I57: 0 | J57: 0 | K57: 0 | L57: 0 | M57: 147654
C58: Sub-Total | D58: =SUM(D17:D57) -> 36443825.6 | E58: =SUM(E17:E57) -> 3260841.41 | F58: =SUM(F17:F57) -> 0 | G58: =SUM(G17:G57) -> 39704667.01 | I58: =SUM(I17:I57) -> -15793533.81 | J58: =SUM(J17:J57) -> -1541226.32 | K58: =SUM(K17:K57) -> 0 | L58: =SUM(L17:L57) -> -17334760.13 | M58: =SUM(M17:M57) -> 22369906.88
C59: Less Socialized Renewable Energy Generation Investments (input as negative) | G59: =D59+E59+F59 -> 0 | L59: =I59+J59+K59 -> 0 | M59: =G59+L59 -> 0
C60: Less Other Non Rate-Regulated Utility Assets (input as negative) | G60: =D60+E60+F60 -> 0 | L60: =I60+J60+K60 -> 0 | M60: =G60+L60 -> 0
C61: Total PP&E | D61: =SUM(D58:D60) -> 36443825.6 | E61: =SUM(E58:E60) -> 3260841.41 | F61: =SUM(F58:F60) -> 0 | G61: =SUM(G58:G60) -> 39704667.01 | I61: =SUM(I58:I60) -> -15793533.81 | J61: =SUM(J58:J60) -> -1541226.32 | K61: =SUM(K58:K60) -> 0 | L61: =SUM(L58:L60) -> -17334760.13 | M61: =SUM(M58:M60) -> 22369906.88
C62: Depreciation Expense adj. from gain or loss on the retirement of assets (pool of like assets), if applicable6
C63: Total | J63: =J61+J62 -> -1541226.32
I65: Less: Fully Allocated Depreciation
A66: 10 | C66: Transportation | I66: Transportation | K66: =J42 -> -136770.44
A67: 8 | C67: Stores Equipment | I67: Stores Equipment | L67: Trial Balance
I68: Net Depreciation | K68: =J63-K66-K67 -> -1404455.88 | L68: 1444564.68 | M68: 40108.8
A70: Notes:
A72: 1 | B72: Tables in the format outlined above covering all fixed asset accounts should be submitted for the Test Year, Bridge Year and all relevant historical years. At a minimum , the applicant must provide data for the earlier of: 1) all historical years back to its last rebasing; or 2) at least three years of historical actuals, in addition to Bridge Year and Test Year forecasts.
A75: 2 | B75: The "CCA Class" for fixed assets should agree with the CCA Class used for tax purposes in Tax Returns. Fixed Assets sub-components may be used where the underlying asset components are classified under multiple CCA Classes for tax purposes. If an applicant uses any different classes from those shown in the table, an explanation should be provided. (also see note 3).
A78: 3 | B78: The table may need to be customized for a utility's asset categories or for any new asset accounts announced or authorized by the Board.
A80: 4 | B80: The additions in column (E) must not include construction work in progress (CWIP).
A82: 5 | B82: Effective on the date of IFRS adoption, customer contributions will no longer be recorded in Account 1995 Contributions & Grants, but will be recorded in Account 2440, Deferred Revenues.
A84: 6 | B84: The applicant must ensure that all asset disposals have been clearly identified in the Chapter 2 Appendices for all historic, bridge and test years. Where a distributor for general financial reporting purposes under IFRS has accounted for the amount of gain or loss on the retirement of assets in a pool of like assets as a charge or credit to income, for reporting and rate application filings, the distributor shall reclassify such gains and losses as depreciation expense, and disclose the amount separately.

Sheet App.2-BA_FA Cont 2014
L1: File Number: | M1: =EBNUMBER -> 0
L2: Exhibit: | M2: 2
L3: Tab: | M3: Table 14
L4: Schedule:
L5: Page: | M5: 20
L7: Date: | M7: 2019-03-21
A9: Appendix 2-BA
A10: Fixed Asset Continuity Schedule 1
E12: Accounting Standard | F12: MIFRS
E13: Year | F13: 2014
D15: Cost | J15: Accumulated Depreciation
A16: CCA Class 2 | B16: OEB Account 3 | C16: Description 3 | D16: Opening Balance | E16: Additions 4 | F16: Disposals 6 | G16: Closing Balance | I16: Opening Balance | J16: Additions | K16: Disposals 6 | L16: Closing Balance | M16: Net Book Value
B17: 1609 | C17: Capital Contributions Paid | G17: =D17+E17+F17 -> 0 | L17: =I17+J17+K17 -> 0 | M17: =G17+L17 -> 0
A18: 12 | B18: 1611 | C18: Computer Software (Formally known as Account 1925) | D18: 914908.27 | E18: -12733.11 | F18: 0 | G18: 902175.16 | I18: -564614.11 | J18: -119173.81 | K18: 0 | L18: -683787.92 | M18: =G18+L18 -> 218387.24
A19: CEC | B19: 1612 | C19: Land Rights (Formally known as Account 1906) | D19: 555083.25 | E19: 2226.6 | F19: 0 | G19: 557309.85 | I19: -49894.56 | J19: -20.01 | K19: 0 | L19: -49914.57 | M19: 507395.28
A20: N/A | B20: 1805 | C20: Land | D20: 74305 | E20: 0 | F20: 0 | G20: 74305 | I20: 0 | J20: 0 | K20: 0 | L20: 0 | M20: 74305
A21: 47 | B21: 1808 | C21: Buildings | D21: 1841806.37 | E21: 4534 | F21: 0 | G21: 1846340.37 | I21: -309903.21 | J21: -67013.95 | K21: 0 | L21: -376917.16 | M21: 1469423.21
A22: 13 | B22: 1810 | C22: Leasehold Improvements | D22: 0 | E22: 0 | F22: 0 | G22: 0 | I22: 0 | J22: 0 | K22: 0 | L22: 0 | M22: 0
A23: 47 | B23: 1815 | C23: Transformer Station Equipment >50 kV | D23: 0 | E23: 0 | F23: 0 | G23: 0 | I23: 0 | J23: 0 | K23: 0 | L23: 0 | M23: 0
A24: 47 | B24: 1820 | C24: Distribution Station Equipment <50 kV | D24: 5233105.22 | E24: 459436.14 | F24: 0 | G24: 5692541.36 | I24: -2203959.18 | J24: -100115.01 | K24: 0 | L24: -2304074.19 | M24: 3388467.17
A25: 47 | B25: 1825 | C25: Storage Battery Equipment | D25: 0 | E25: 0 | F25: 0 | G25: 0 | I25: 0 | J25: 0 | K25: 0 | L25: 0 | M25: 0
A26: 47 | B26: 1830 | C26: Poles, Towers & Fixtures | D26: 7608099 | E26: 420606.76 | F26: 0 | G26: 8028705.76 | I26: -3426007.7 | J26: -184470.93 | K26: 0 | L26: -3610478.63 | M26: 4418227.13
A27: 47 | B27: 1835 | C27: Overhead Conductors & Devices | D27: 5147945 | E27: 341516.67 | F27: 0 | G27: 5489461.67 | I27: -1663071.54 | J27: -121686.52 | K27: 0 | L27: -1784758.06 | M27: 3704703.61
A28: 47 | B28: 1840 | C28: Underground Conduit | D28: 3883705 | E28: 310613.56 | F28: 0 | G28: 4194318.56 | I28: -1861681.62 | J28: -81960.29 | K28: 0 | L28: -1943641.91 | M28: 2250676.65
A29: 47 | B29: 1845 | C29: Underground Conductors & Devices | D29: 2956359 | E29: 116021.94 | F29: 0 | G29: 3072380.94 | I29: -767887.09 | J29: -85888.27 | K29: 0 | L29: -853775.36 | M29: 2218605.58
A30: 47 | B30: 1850 | C30: Line Transformers | D30: 8995374 | E30: 405415.38 | F30: 0 | G30: 9400789.38 | I30: -3744070.63 | J30: -209815.85 | K30: 0 | L30: -3953886.48 | M30: 5446902.9
A31: 47 | B31: 1855 | C31: Services (Overhead & Underground) | D31: 2175257 | E31: 34293.84 | F31: 0 | G31: 2209550.84 | I31: -1160141.68 | J31: -26425.01 | K31: 0 | L31: -1186566.69 | M31: 1022984.15
A32: 47 | B32: 1860 | C32: Meters | D32: 3123627 | E32: 199787.9 | F32: 0 | G32: 3323414.9 | I32: -746521.78 | J32: -205066.85 | K32: 0 | L32: -951588.63 | M32: 2371826.27
A33: 47 | B33: 1860 | C33: Meters (Smart Meters) | D33: 0 | E33: 0 | F33: 0 | G33: 0 | I33: 0 | J33: 0 | K33: 0 | L33: 0 | M33: 0
A34: N/A | B34: 1905 | C34: Land | D34: 278455.26 | E34: 0 | F34: 0 | G34: 278455.26 | I34: 0 | J34: 0 | K34: 0 | L34: 0 | M34: 278455.26
A35: 47 | B35: 1908 | C35: Buildings & Fixtures | D35: 179606.28 | E35: 21045 | F35: 0 | G35: 200651.28 | I35: -70482.56 | J35: -9876.05 | K35: 0 | L35: -80358.61 | M35: 120292.67
A36: 13 | B36: 1910 | C36: Leasehold Improvements | D36: 116598 | E36: 24941.82 | F36: 0 | G36: 141539.82 | I36: 0 | J36: -14154.02 | K36: 0 | L36: -14154.02 | M36: 127385.8
A37: 8 | B37: 1915 | C37: Office Furniture & Equipment (10 years) | D37: 247523 | E37: 3558 | F37: 0 | G37: 251081 | I37: -162932.41 | J37: -16584.32 | K37: 0 | L37: -179516.73 | M37: 71564.27
A38: 8 | B38: 1915 | C38: Office Furniture & Equipment (5 years) | D38: 0 | E38: 0 | F38: 0 | G38: 0 | I38: 0 | J38: 0 | K38: 0 | L38: 0 | M38: 0
A39: 10 | B39: 1920 | C39: Computer Equipment - Hardware | D39: 568253 | E39: -7060 | F39: 0 | G39: 561193 | I39: -500414.42 | J39: -32025.82 | K39: 0 | L39: -532440.24 | M39: 28752.76
A40: 45 | B40: 1920 | C40: Computer Equip.-Hardware(Post Mar. 22/04) | D40: 0 | E40: 0 | F40: 0 | G40: 0 | I40: 0 | J40: 0 | K40: 0 | L40: 0 | M40: 0
A41: 45.1 | B41: 1920 | C41: Computer Equip.-Hardware(Post Mar. 19/07) | D41: 0 | E41: 0 | F41: 0 | G41: 0 | I41: 0 | J41: 0 | K41: 0 | L41: 0 | M41: 0
A42: 10 | B42: 1930 | C42: Transportation Equipment | D42: 1875414 | E42: 149923.82 | F42: -238522.52 | G42: 1786815.3 | I42: -1028674.31 | J42: -162235.2 | K42: 238522.52 | L42: -952386.99 | M42: 834428.31
A43: 8 | B43: 1935 | C43: Stores Equipment | D43: 10960.38 | E43: 0 | F43: 0 | G43: 10960.38 | I43: -10215.92 | J43: -577.21 | K43: 0 | L43: -10793.13 | M43: 167.25
A44: 8 | B44: 1940 | C44: Tools, Shop & Garage Equipment | D44: 263582 | E44: 20059.63 | F44: 0 | G44: 283641.63 | I44: -202172.18 | J44: -13629.89 | K44: 0 | L44: -215802.07 | M44: 67839.56
A45: 8 | B45: 1945 | C45: Measurement & Testing Equipment | D45: 0 | E45: 0 | F45: 0 | G45: 0 | I45: 0 | J45: 0 | K45: 0 | L45: 0 | M45: 0
A46: 8 | B46: 1950 | C46: Power Operated Equipment | D46: 0 | E46: 0 | F46: 0 | G46: 0 | I46: 0 | J46: 0 | K46: 0 | L46: 0 | M46: 0
A47: 8 | B47: 1955 | C47: Communications Equipment | D47: 189365.65 | E47: 295.5 | F47: 0 | G47: 189661.15 | I47: -153253.34 | J47: -10031.23 | K47: 0 | L47: -163284.57 | M47: 26376.58
A48: 8 | B48: 1955 | C48: Communication Equipment (Smart Meters) | D48: 410583.25 | F48: 0 | G48: 410583.25 | I48: -287408.28 | J48: -82116.65 | K48: 0 | L48: -369524.93 | M48: 41058.32
A49: 8 | B49: 1960 | C49: Miscellaneous Equipment | D49: 0 | E49: 0 | F49: 0 | G49: 0 | I49: 0 | J49: 0 | K49: 0 | L49: 0 | M49: 0
A50: 47 | B50: 1970 | C50: Load Management Controls Customer Premises | D50: 0 | E50: 0 | F50: 0 | G50: 0 | I50: 0 | J50: 0 | K50: 0 | L50: 0 | M50: 0
A51: 47 | B51: 1975 | C51: Load Management Controls Utility Premises | D51: 0 | E51: 0 | F51: 0 | G51: 0 | I51: 0 | J51: 0 | K51: 0 | L51: 0 | M51: 0
A52: 47 | B52: 1980 | C52: System Supervisor Equipment | D52: 176033.08 | E52: 52982.2 | F52: 0 | G52: 229015.28 | I52: -8801.65 | J52: -20252.42 | K52: 0 | L52: -29054.07 | M52: 199961.21
A53: 47 | B53: 1985 | C53: Miscellaneous Fixed Assets | D53: 0 | E53: 0 | F53: 0 | G53: 0 | I53: 0 | J53: 0 | K53: 0 | L53: 0 | M53: 0
A54: 47 | B54: 1990 | C54: Other Tangible Property | D54: 0 | E54: 0 | F54: 0 | G54: 0 | I54: 0 | J54: 0 | K54: 0 | L54: 0 | M54: 0
A55: 47 | B55: 1995 | C55: Contributions & Grants | D55: -7268935 | E55: -281051.61 | F55: 0 | G55: -7549986.61 | I55: 1587348.04 | J55: 159896.48 | K55: 0 | L55: 1747244.52 | M55: -5802742.09
A56: 47 | B56: 2440 | C56: Deferred Revenue5 | D56: 0 | E56: 0 | F56: 0 | G56: 0 | I56: 0 | J56: 0 | K56: 0 | L56: 0 | M56: 0
B57: 2055 | C57: Construction in Process | D57: 147654 | E57: -54453.84 | G57: 93200.16 | I57: 0 | J57: 0 | K57: 0 | L57: 0 | M57: 93200.16
C58: Sub-Total | D58: =SUM(D17:D57) -> 39704667.01 | E58: =SUM(E17:E57) -> 2211960.2 | F58: =SUM(F17:F57) -> -238522.52 | G58: =SUM(G17:G57) -> 41678104.69 | I58: =SUM(I17:I57) -> -17334760.13 | J58: =SUM(J17:J57) -> -1403222.83 | K58: =SUM(K17:K57) -> 238522.52 | L58: =SUM(L17:L57) -> -18499460.44 | M58: =SUM(M17:M57) -> 23178644.25
C59: Less Socialized Renewable Energy Generation Investments (input as negative) | G59: =D59+E59+F59 -> 0 | L59: =I59+J59+K59 -> 0 | M59: =G59+L59 -> 0
C60: Less Other Non Rate-Regulated Utility Assets (input as negative) | G60: =D60+E60+F60 -> 0 | L60: =I60+J60+K60 -> 0 | M60: =G60+L60 -> 0
C61: Total PP&E | D61: =SUM(D58:D60) -> 39704667.01 | E61: =SUM(E58:E60) -> 2211960.2 | F61: =SUM(F58:F60) -> -238522.52 | G61: =SUM(G58:G60) -> 41678104.69 | I61: =SUM(I58:I60) -> -17334760.13 | J61: =SUM(J58:J60) -> -1403222.83 | K61: =SUM(K58:K60) -> 238522.52 | L61: =SUM(L58:L60) -> -18499460.44 | M61: =SUM(M58:M60) -> 23178644.25
C62: Depreciation Expense adj. from gain or loss on the retirement of assets (pool of like assets), if applicable6
C63: Total | J63: =J61+J62 -> -1403222.83
I65: Less: Fully Allocated Depreciation
A66: 10 | C66: Transportation | I66: Transportation | K66: =J42 -> -162235.2
A67: 8 | C67: Stores Equipment | I67: Stores Equipment
I68: Net Depreciation | K68: =J63-K66-K67 -> -1240987.63
A70: Notes:
A72: 1 | B72: Tables in the format outlined above covering all fixed asset accounts should be submitted for the Test Year, Bridge Year and all relevant historical years. At a minimum , the applicant must provide data for the earlier of: 1) all historical years back to its last rebasing; or 2) at least three years of historical actuals, in addition to Bridge Year and Test Year forecasts.
A75: 2 | B75: The "CCA Class" for fixed assets should agree with the CCA Class used for tax purposes in Tax Returns. Fixed Assets sub-components may be used where the underlying asset components are classified under multiple CCA Classes for tax purposes. If an applicant uses any different classes from those shown in the table, an explanation should be provided. (also see note 3).
A78: 3 | B78: The table may need to be customized for a utility's asset categories or for any new asset accounts announced or authorized by the Board.
A80: 4 | B80: The additions in column (E) must not include construction work in progress (CWIP).
A82: 5 | B82: Effective on the date of IFRS adoption, customer contributions will no longer be recorded in Account 1995 Contributions & Grants, but will be recorded in Account 2440, Deferred Revenues.
A84: 6 | B84: The applicant must ensure that all asset disposals have been clearly identified in the Chapter 2 Appendices for all historic, bridge and test years. Where a distributor for general financial reporting purposes under IFRS has accounted for the amount of gain or loss on the retirement of assets in a pool of like assets as a charge or credit to income, for reporting and rate application filings, the distributor shall reclassify such gains and losses as depreciation expense, and disclose the amount separately.

Sheet App.2-BA_FA Cont 2015
L1: File Number: | M1: =EBNUMBER -> 0
L2: Exhibit: | M2: 2
L3: Tab:
L4: Schedule: | M4: Table 15
L5: Page: | M5: 21
L7: Date: | M7: 2019-03-21
A9: Appendix 2-BA
A10: Fixed Asset Continuity Schedule 1
E12: Accounting Standard | F12: MIFRS
E13: Year | F13: 2015
D15: Cost | J15: Accumulated Depreciation
A16: CCA Class 2 | B16: OEB Account 3 | C16: Description 3 | D16: Opening Balance | E16: Additions 4 | F16: Disposals 6 | G16: Closing Balance | I16: Opening Balance | J16: Additions | K16: Disposals 6 | L16: Closing Balance | M16: Net Book Value
B17: 1609 | C17: Capital Contributions Paid | G17: =D17+E17+F17 -> 0 | L17: =I17+J17+K17 -> 0 | M17: =G17+L17 -> 0
A18: 12 | B18: 1611 | C18: Computer Software (Formally known as Account 1925) | D18: 902175.16 | E18: 22771.38 | F18: 0 | G18: 924946.54 | I18: -683787.92 | J18: -85847.4 | K18: 0 | L18: -769635.32 | M18: 155311.22
A19: CEC | B19: 1612 | C19: Land Rights (Formally known as Account 1906) | D19: 557309.85 | E19: 18121.02 | F19: 0 | G19: 575430.87 | I19: -49914.57 | J19: -20 | K19: 0 | L19: -49934.57 | M19: 525496.3
A20: N/A | B20: 1805 | C20: Land | D20: 74305 | E20: 0 | F20: 0 | G20: 74305 | I20: 0 | J20: 0 | K20: 0 | L20: 0 | M20: 74305
A21: 47 | B21: 1808 | C21: Buildings | D21: 1846340.37 | E21: 341649.66 | F21: 0 | G21: 2187990.03 | I21: -376917.16 | J21: -92809.6 | K21: 0 | L21: -469726.76 | M21: 1718263.27
A22: 13 | B22: 1810 | C22: Leasehold Improvements | D22: 0 | E22: 0 | F22: 0 | G22: 0 | I22: 0 | J22: 0 | K22: 0 | L22: 0 | M22: 0
A23: 47 | B23: 1815 | C23: Transformer Station Equipment >50 kV | D23: 0 | E23: 0 | F23: 0 | G23: 0 | I23: 0 | J23: 0 | K23: 0 | L23: 0 | M23: 0
A24: 47 | B24: 1820 | C24: Distribution Station Equipment <50 kV | D24: 5692541.36 | E24: 642738.89 | F24: 0 | G24: 6335280.25 | I24: -2304074.19 | J24: -113892.19 | K24: 0 | L24: -2417966.38 | M24: 3917313.87
A25: 47 | B25: 1825 | C25: Storage Battery Equipment | D25: 0 | E25: 0 | F25: 0 | G25: 0 | I25: 0 | J25: 0 | K25: 0 | L25: 0 | M25: 0
A26: 47 | B26: 1830 | C26: Poles, Towers & Fixtures | D26: 8028705.76 | E26: 712111.39 | F26: 0 | G26: 8740817.15 | I26: -3610478.63 | J26: -191510.64 | K26: 0 | L26: -3801989.27 | M26: 4938827.88
A27: 47 | B27: 1835 | C27: Overhead Conductors & Devices | D27: 5489461.67 | E27: 290371.22 | F27: 0 | G27: 5779832.89 | I27: -1784758.06 | J27: -124341.77 | K27: 0 | L27: -1909099.83 | M27: 3870733.06
A28: 47 | B28: 1840 | C28: Underground Conduit | D28: 4194318.56 | E28: 230253.32 | F28: 0 | G28: 4424571.88 | I28: -1943641.91 | J28: -87335.37 | K28: 0 | L28: -2030977.28 | M28: 2393594.6
A29: 47 | B29: 1845 | C29: Underground Conductors & Devices | D29: 3072380.94 | E29: 192567.39 | F29: 0 | G29: 3264948.33 | I29: -853775.36 | J29: -90102.1 | K29: 0 | L29: -943877.46 | M29: 2321070.87
A30: 47 | B30: 1850 | C30: Line Transformers | D30: 9400789.38 | E30: 279896.22 | F30: 0 | G30: 9680685.6 | I30: -3953886.48 | J30: -212464.07 | K30: 0 | L30: -4166350.55 | M30: 5514335.05
A31: 47 | B31: 1855 | C31: Services (Overhead & Underground) | D31: 2209550.84 | E31: 17567.93 | F31: 0 | G31: 2227118.77 | I31: -1186566.69 | J31: -27796.86 | K31: 0 | L31: -1214363.55 | M31: 1012755.22
A32: 47 | B32: 1860 | C32: Meters | D32: 3323414.9 | E32: 100065.96 | F32: 0 | G32: 3423480.86 | I32: -951588.63 | J32: -206685.33 | K32: 0 | L32: -1158273.96 | M32: 2265206.9
A33: 47 | B33: 1860 | C33: Meters (Smart Meters) | D33: 0 | E33: 0 | F33: 0 | G33: 0 | I33: 0 | J33: 0 | K33: 0 | L33: 0 | M33: 0
A34: N/A | B34: 1905 | C34: Land | D34: 278455.26 | E34: 25345.56 | F34: 0 | G34: 303800.82 | I34: 0 | J34: 0 | K34: 0 | L34: 0 | M34: 303800.82
A35: 47 | B35: 1908 | C35: Buildings & Fixtures | D35: 200651.28 | E35: 22118.52 | F35: 0 | G35: 222769.8 | I35: -80358.61 | J35: -10307.68 | K35: 0 | L35: -90666.29 | M35: 132103.51
A36: 13 | B36: 1910 | C36: Leasehold Improvements | D36: 141539.82 | E36: -141540.21 | F36: 0 | G36: -0.39 | I36: -14154.02 | J36: 14154.02 | K36: 0 | L36: 0 | M36: -0.39 | N36: Accumulated depreciated was reclassified to building (1808)
A37: 8 | B37: 1915 | C37: Office Furniture & Equipment (10 years) | D37: 251081 | E37: 21523.6 | F37: 0 | G37: 272604.6 | I37: -179516.73 | J37: -16323.3 | K37: 0 | L37: -195840.03 | M37: 76764.57
A38: 8 | B38: 1915 | C38: Office Furniture & Equipment (5 years) | D38: 0 | E38: 0 | F38: 0 | G38: 0 | I38: 0 | J38: 0 | K38: 0 | L38: 0 | M38: 0
A39: 10 | B39: 1920 | C39: Computer Equipment - Hardware | D39: 561193 | E39: 4408.59 | F39: 0 | G39: 565601.59 | I39: -532440.24 | J39: -31510.19 | K39: 0 | L39: -563950.43 | M39: 1651.16
A40: 45 | B40: 1920 | C40: Computer Equip.-Hardware(Post Mar. 22/04) | D40: 0 | E40: 0 | F40: 0 | G40: 0 | I40: 0 | J40: 0 | K40: 0 | L40: 0 | M40: 0
A41: 45.1 | B41: 1920 | C41: Computer Equip.-Hardware(Post Mar. 19/07) | D41: 0 | E41: 0 | F41: 0 | G41: 0 | I41: 0 | J41: 0 | K41: 0 | L41: 0 | M41: 0
A42: 10 | B42: 1930 | C42: Transportation Equipment | D42: 1786815.3 | E42: 360945.85 | F42: -86594.66 | G42: 2061166.49 | I42: -952386.99 | J42: -192561.37 | K42: 86477.99 | L42: -1058470.37 | M42: 1002696.12
A43: 8 | B43: 1935 | C43: Stores Equipment | D43: 10960.38 | E43: 0 | F43: 0 | G43: 10960.38 | I43: -10793.13 | J43: -167.26 | K43: 0 | L43: -10960.39 | M43: -0.01
A44: 8 | B44: 1940 | C44: Tools, Shop & Garage Equipment | D44: 283641.63 | E44: 15770.12 | F44: 0 | G44: 299411.75 | I44: -215802.07 | J44: -14489 | K44: 0 | L44: -230291.07 | M44: 69120.68
A45: 8 | B45: 1945 | C45: Measurement & Testing Equipment | D45: 0 | E45: 0 | F45: 0 | G45: 0 | I45: 0 | J45: 0 | K45: 0 | L45: 0 | M45: 0
A46: 8 | B46: 1950 | C46: Power Operated Equipment | D46: 0 | E46: 0 | F46: 0 | G46: 0 | I46: 0 | J46: 0 | K46: 0 | L46: 0 | M46: 0
A47: 8 | B47: 1955 | C47: Communications Equipment | D47: 189661.15 | E47: 0 | F47: 0 | G47: 189661.15 | I47: -163284.57 | J47: -8985.8 | K47: 0 | L47: -172270.37 | M47: 17390.78
A48: 8 | B48: 1955 | C48: Communication Equipment (Smart Meters) | D48: 410583.25 | E48: 0 | F48: 0 | G48: 410583.25 | I48: -369524.93 | J48: -41058.33 | K48: 0 | L48: -410583.26 | M48: -0.01000000007
A49: 8 | B49: 1960 | C49: Miscellaneous Equipment | D49: 0 | E49: 0 | F49: 0 | G49: 0 | I49: 0 | J49: 0 | K49: 0 | L49: 0 | M49: 0
A50: 47 | B50: 1970 | C50: Load Management Controls Customer Premises | D50: 0 | E50: 0 | F50: 0 | G50: 0 | I50: 0 | J50: 0 | K50: 0 | L50: 0 | M50: 0
A51: 47 | B51: 1975 | C51: Load Management Controls Utility Premises | D51: 0 | E51: 0 | F51: 0 | G51: 0 | I51: 0 | J51: 0 | K51: 0 | L51: 0 | M51: 0
A52: 47 | B52: 1980 | C52: System Supervisor Equipment | D52: 229015.28 | E52: 25433.71 | F52: 0 | G52: 254448.99 | I52: -29054.07 | J52: -24173.21 | K52: 0 | L52: -53227.28 | M52: 201221.71
A53: 47 | B53: 1985 | C53: Miscellaneous Fixed Assets | D53: 0 | E53: 0 | F53: 0 | G53: 0 | I53: 0 | J53: 0 | K53: 0 | L53: 0 | M53: 0
A54: 47 | B54: 1990 | C54: Other Tangible Property | D54: 0 | E54: 0 | F54: 0 | G54: 0 | I54: 0 | J54: 0 | K54: 0 | L54: 0 | M54: 0
A55: 47 | B55: 1995 | C55: Contributions & Grants | D55: -7549986.61 | E55: -194049 | F55: 0 | G55: -7744035.61 | I55: 1747244.52 | J55: 165485.9 | K55: 0 | L55: 1912730.42 | M55: -5831305.19
A56: 47 | B56: 2440 | C56: Deferred Revenue5 | D56: 0 | E56: 0 | F56: 0 | G56: 0 | I56: 0 | J56: 0 | K56: 0 | L56: 0 | M56: 0
B57: 2055 | C57: Construction in Process | D57: 93200.16 | E57: -93200 | G57: 0.16 | I57: 0 | J57: 0 | K57: 0 | L57: 0 | M57: 0.16
C58: Sub-Total | D58: =SUM(D17:D57) -> 41678104.69 | E58: =SUM(E17:E57) -> 2894871.12 | F58: =SUM(F17:F57) -> -86594.66 | G58: =SUM(G17:G57) -> 44486381.15 | I58: =SUM(I17:I57) -> -18499460.44 | J58: =SUM(J17:J57) -> -1392741.55 | K58: =SUM(K17:K57) -> 86477.99 | L58: =SUM(L17:L57) -> -19805724 | M58: =SUM(M17:M57) -> 24680657.15
C59: Less Socialized Renewable Energy Generation Investments (input as negative) | G59: =D59+E59+F59 -> 0 | L59: =I59+J59+K59 -> 0 | M59: =G59+L59 -> 0
C60: Less Other Non Rate-Regulated Utility Assets (input as negative) | G60: =D60+E60+F60 -> 0 | L60: =I60+J60+K60 -> 0 | M60: =G60+L60 -> 0
C61: Total PP&E | D61: =SUM(D58:D60) -> 41678104.69 | E61: =SUM(E58:E60) -> 2894871.12 | F61: =SUM(F58:F60) -> -86594.66 | G61: =SUM(G58:G60) -> 44486381.15 | I61: =SUM(I58:I60) -> -18499460.44 | J61: =SUM(J58:J60) -> -1392741.55 | K61: =SUM(K58:K60) -> 86477.99 | L61: =SUM(L58:L60) -> -19805724 | M61: =SUM(M58:M60) -> 24680657.15
C62: Depreciation Expense adj. from gain or loss on the retirement of assets (pool of like assets), if applicable6
C63: Total | J63: =J61+J62 -> -1392741.55
I65: Less: Fully Allocated Depreciation
A66: 10 | C66: Transportation | I66: Transportation | K66: =J42 -> -192561.37
A67: 8 | C67: Stores Equipment | I67: Stores Equipment
I68: Net Depreciation | K68: =J63-K66-K67 -> -1200180.18
A70: Notes:
A72: 1 | B72: Tables in the format outlined above covering all fixed asset accounts should be submitted for the Test Year, Bridge Year and all relevant historical years. At a minimum , the applicant must provide data for the earlier of: 1) all historical years back to its last rebasing; or 2) at least three years of historical actuals, in addition to Bridge Year and Test Year forecasts.
A75: 2 | B75: The "CCA Class" for fixed assets should agree with the CCA Class used for tax purposes in Tax Returns. Fixed Assets sub-components may be used where the underlying asset components are classified under multiple CCA Classes for tax purposes. If an applicant uses any different classes from those shown in the table, an explanation should be provided. (also see note 3).
A78: 3 | B78: The table may need to be customized for a utility's asset categories or for any new asset accounts announced or authorized by the Board.
A80: 4 | B80: The additions in column (E) must not include construction work in progress (CWIP).
A82: 5 | B82: Effective on the date of IFRS adoption, customer contributions will no longer be recorded in Account 1995 Contributions & Grants, but will be recorded in Account 2440, Deferred Revenues.
A84: 6 | B84: The applicant must ensure that all asset disposals have been clearly identified in the Chapter 2 Appendices for all historic, bridge and test years. Where a distributor for general financial reporting purposes under IFRS has accounted for the amount of gain or loss on the retirement of assets in a pool of like assets as a charge or credit to income, for reporting and rate application filings, the distributor shall reclassify such gains and losses as depreciation expense, and disclose the amount separately.

Sheet App.2-BA_FA Cont 2016
L1: File Number: | M1: =EBNUMBER -> 0
L2: Exhibit: | M2: 2
L3: Tab:
L4: Schedule: | M4: Table 16
L5: Page: | M5: 22
L7: Date: | M7: 2019-03-21
A9: Appendix 2-BA
A10: Fixed Asset Continuity Schedule 1
E12: Accounting Standard | F12: MIFRS
E13: Year | F13: 2016
D15: Cost | J15: Accumulated Depreciation
A16: CCA Class 2 | B16: OEB Account 3 | C16: Description 3 | D16: Opening Balance | E16: Additions 4 | F16: Disposals 6 | G16: Closing Balance | I16: Opening Balance | J16: Additions | K16: Disposals 6 | L16: Closing Balance | M16: Net Book Value
B17: 1609 | C17: Capital Contributions Paid | G17: =D17+E17+F17 -> 0 | L17: =I17+J17+K17 -> 0 | M17: =G17+L17 -> 0
A18: 12 | B18: 1611 | C18: Computer Software (Formally known as Account 1925) | D18: 924946.54 | E18: 4625 | F18: 0 | G18: 929571.54 | I18: -769635.32 | J18: -54938.85 | K18: 0 | L18: -824574.17 | M18: 104997.37
A19: CEC | B19: 1612 | C19: Land Rights (Formally known as Account 1906) | D19: 575430.87 | E19: -7500 | G19: 567930.87 | I19: -49934.57 | J19: -20 | K19: 0 | L19: -49954.57 | M19: 517976.3
A20: N/A | B20: 1805 | C20: Land | D20: 74305 | E20: 0 | F20: 0 | G20: 74305 | I20: 0 | J20: 0 | K20: 0 | L20: 0 | M20: 74305
A21: 47 | B21: 1808 | C21: Buildings | D21: 2187990.03 | E21: 0 | F21: 0 | G21: 2187990.03 | I21: -469726.76 | J21: -81625.89 | K21: 0 | L21: -551352.65 | M21: 1636637.38
A22: 13 | B22: 1810 | C22: Leasehold Improvements | D22: 0 | E22: 0 | F22: 0 | G22: 0 | I22: 0 | J22: 0 | K22: 0 | L22: 0 | M22: 0
A23: 47 | B23: 1815 | C23: Transformer Station Equipment >50 kV | D23: 0 | E23: 0 | F23: 0 | G23: 0 | I23: 0 | J23: 0 | K23: 0 | L23: 0 | M23: 0
A24: 47 | B24: 1820 | C24: Distribution Station Equipment <50 kV | D24: 6335280.25 | E24: 85798.65 | F24: 0 | G24: 6421078.9 | I24: -2417966.38 | J24: -122998.91 | K24: 0 | L24: -2540965.29 | M24: 3880113.61
A25: 47 | B25: 1825 | C25: Storage Battery Equipment | D25: 0 | E25: 0 | F25: 0 | G25: 0 | I25: 0 | J25: 0 | K25: 0 | L25: 0 | M25: 0
A26: 47 | B26: 1830 | C26: Poles, Towers & Fixtures | D26: 8740817.15 | E26: 627551.31 | F26: 0 | G26: 9368368.46 | I26: -3801989.27 | J26: -206387.8 | K26: 0 | L26: -4008377.07 | M26: 5359991.39
A27: 47 | B27: 1835 | C27: Overhead Conductors & Devices | D27: 5779832.89 | E27: 510544.18 | F27: 0 | G27: 6290377.07 | I27: -1909099.83 | J27: -126761.53 | K27: 0 | L27: -2035861.36 | M27: 4254515.71
A28: 47 | B28: 1840 | C28: Underground Conduit | D28: 4424571.88 | E28: 114259.98 | F28: 0 | G28: 4538831.86 | I28: -2030977.28 | J28: -91641.79 | K28: 0 | L28: -2122619.07 | M28: 2416212.79
A29: 47 | B29: 1845 | C29: Underground Conductors & Devices | D29: 3264948.33 | E29: 299403.74 | F29: 0 | G29: 3564352.07 | I29: -943877.46 | J29: -92241.74 | K29: 0 | L29: -1036119.2 | M29: 2528232.87
A30: 47 | B30: 1850 | C30: Line Transformers | D30: 9680685.6 | E30: 404170.9 | F30: 0 | G30: 10084856.5 | I30: -4166350.55 | J30: -221014.92 | K30: 0 | L30: -4387365.47 | M30: 5697491.03
A31: 47 | B31: 1855 | C31: Services (Overhead & Underground) | D31: 2227118.77 | E31: 48053 | F31: 0 | G31: 2275171.77 | I31: -1214363.55 | J31: -28525.99 | K31: 0 | L31: -1242889.54 | M31: 1032282.23
A32: 47 | B32: 1860 | C32: Meters | D32: 3423480.86 | E32: 304330 | F32: 0 | G32: 3727810.86 | I32: -1158273.96 | J32: -218732.43 | K32: 0 | L32: -1377006.39 | M32: 2350804.47
A33: 47 | B33: 1860 | C33: Meters (Smart Meters) | D33: 0 | E33: 0 | F33: 0 | G33: 0 | I33: 0 | J33: 0 | K33: 0 | L33: 0 | M33: 0
A34: N/A | B34: 1905 | C34: Land | D34: 303800.82 | E34: 0 | F34: 0 | G34: 303800.82 | I34: 0 | J34: 0 | K34: 0 | L34: 0 | M34: 303800.82
A35: 47 | B35: 1908 | C35: Buildings & Fixtures | D35: 222769.8 | E35: 0 | F35: 0 | G35: 222769.8 | I35: -90666.29 | J35: -10528.87 | K35: 0 | L35: -101195.16 | M35: 121574.64
A36: 13 | B36: 1910 | C36: Leasehold Improvements | D36: -0.39 | E36: 0 | F36: 0 | G36: -0.39 | I36: 0 | J36: 0 | K36: 0 | L36: 0 | M36: -0.39
A37: 8 | B37: 1915 | C37: Office Furniture & Equipment (10 years) | D37: 272604.6 | E37: 0 | F37: 0 | G37: 272604.6 | I37: -195840.03 | J37: -16023.97 | K37: 0 | L37: -211864 | M37: 60740.6
A38: 8 | B38: 1915 | C38: Office Furniture & Equipment (5 years) | D38: 0 | E38: 0 | F38: 0 | G38: 0 | I38: 0 | J38: 0 | K38: 0 | L38: 0 | M38: 0
A39: 10 | B39: 1920 | C39: Computer Equipment - Hardware | D39: 565601.59 | E39: 6104.71 | G39: 571706.3 | I39: -563950.43 | J39: -25827.88 | K39: 0 | L39: -589778.31 | M39: -18072.01
A40: 45 | B40: 1920 | C40: Computer Equip.-Hardware(Post Mar. 22/04) | D40: 0 | E40: 0 | F40: 0 | G40: 0 | I40: 0 | J40: 0 | K40: 0 | L40: 0 | M40: 0
A41: 45.1 | B41: 1920 | C41: Computer Equip.-Hardware(Post Mar. 19/07) | D41: 0 | E41: 0 | F41: 0 | G41: 0 | I41: 0 | J41: 0 | K41: 0 | L41: 0 | M41: 0
A42: 10 | B42: 1930 | C42: Transportation Equipment | D42: 2061166.49 | E42: 26237.8 | F42: -170450.08 | G42: 1916954.21 | I42: -1058470.37 | J42: -183649.26 | K42: 152270.47 | L42: -1089849.16 | M42: 827105.05
A43: 8 | B43: 1935 | C43: Stores Equipment | D43: 10960.38 | E43: 0 | F43: 0 | G43: 10960.38 | I43: -10960.39 | J43: 0 | K43: 0 | L43: -10960.39 | M43: -0.01
A44: 8 | B44: 1940 | C44: Tools, Shop & Garage Equipment | D44: 299411.75 | E44: 0 | F44: 0 | G44: 299411.75 | I44: -230291.07 | J44: -14362.97 | K44: 0 | L44: -244654.04 | M44: 54757.71
A45: 8 | B45: 1945 | C45: Measurement & Testing Equipment | D45: 0 | E45: 0 | F45: 0 | G45: 0 | I45: 0 | J45: 0 | K45: 0 | L45: 0 | M45: 0
A46: 8 | B46: 1950 | C46: Power Operated Equipment | D46: 0 | E46: 0 | F46: 0 | G46: 0 | I46: 0 | J46: 0 | K46: 0 | L46: 0 | M46: 0
A47: 8 | B47: 1955 | C47: Communications Equipment | D47: 189661.15 | E47: 0 | F47: 0 | G47: 189661.15 | I47: -172270.37 | J47: -8985.8 | K47: 0 | L47: -181256.17 | M47: 8404.98
A48: 8 | B48: 1955 | C48: Communication Equipment (Smart Meters) | D48: 410583.25 | E48: 0 | F48: 0 | G48: 410583.25 | I48: -410583.26 | J48: 0 | K48: 0 | L48: -410583.26 | M48: -0.01000000007
A49: 8 | B49: 1960 | C49: Miscellaneous Equipment | D49: 0 | E49: 0 | F49: 0 | G49: 0 | I49: 0 | J49: 0 | K49: 0 | L49: 0 | M49: 0
A50: 47 | B50: 1970 | C50: Load Management Controls Customer Premises | D50: 0 | E50: 0 | F50: 0 | G50: 0 | I50: 0 | J50: 0 | K50: 0 | L50: 0 | M50: 0
A51: 47 | B51: 1975 | C51: Load Management Controls Utility Premises | D51: 0 | E51: 0 | F51: 0 | G51: 0 | I51: 0 | J51: 0 | K51: 0 | L51: 0 | M51: 0
A52: 47 | B52: 1980 | C52: System Supervisor Equipment | D52: 254448.99 | E52: 78666.17 | F52: 0 | G52: 333115.16 | I52: -53227.28 | J52: -29378.21 | K52: 0 | L52: -82605.49 | M52: 250509.67
A53: 47 | B53: 1985 | C53: Miscellaneous Fixed Assets | D53: 0 | E53: 0 | F53: 0 | G53: 0 | I53: 0 | J53: 0 | K53: 0 | L53: 0 | M53: 0
A54: 47 | B54: 1990 | C54: Other Tangible Property | D54: 0 | E54: 0 | F54: 0 | G54: 0 | I54: 0 | J54: 0 | K54: 0 | L54: 0 | M54: 0
A55: 47 | B55: 1995 | C55: Contributions & Grants | D55: -7744035.61 | E55: -551702.7 | F55: 0 | G55: -8295738.31 | I55: 1912730.42 | J55: 174304.73 | K55: 0 | L55: 2087035.15 | M55: -6208703.16
A56: 47 | B56: 2440 | C56: Deferred Revenue5 | D56: 0 | E56: 0 | F56: 0 | G56: 0 | I56: 0 | J56: 0 | K56: 0 | L56: 0 | M56: 0
B57: 2055 | C57: Construction in Process | D57: 0 | E57: 0 | F57: 0 | G57: 0 | I57: 0 | J57: 0 | K57: 0 | L57: 0 | M57: 0
C58: Sub-Total | D58: =SUM(D17:D57) -> 44486380.99 | E58: =SUM(E17:E57) -> 1950542.74 | F58: =SUM(F17:F57) -> -170450.08 | G58: =SUM(G17:G57) -> 46266473.65 | I58: =SUM(I17:I57) -> -19805724 | J58: =SUM(J17:J57) -> -1359342.08 | K58: =SUM(K17:K57) -> 152270.47 | L58: =SUM(L17:L57) -> -21012795.61 | M58: =SUM(M17:M57) -> 25253678.04
C59: Less Socialized Renewable Energy Generation Investments (input as negative) | G59: =D59+E59+F59 -> 0 | L59: =I59+J59+K59 -> 0 | M59: =G59+L59 -> 0
C60: Less Other Non Rate-Regulated Utility Assets (input as negative) | G60: =D60+E60+F60 -> 0 | L60: =I60+J60+K60 -> 0 | M60: =G60+L60 -> 0
C61: Total PP&E | D61: =SUM(D58:D60) -> 44486380.99 | E61: =SUM(E58:E60) -> 1950542.74 | F61: =SUM(F58:F60) -> -170450.08 | G61: =SUM(G58:G60) -> 46266473.65 | I61: =SUM(I58:I60) -> -19805724 | J61: =SUM(J58:J60) -> -1359342.08 | K61: =SUM(K58:K60) -> 152270.47 | L61: =SUM(L58:L60) -> -21012795.61 | M61: =SUM(M58:M60) -> 25253678.04
C62: Depreciation Expense adj. from gain or loss on the retirement of assets (pool of like assets), if applicable6
C63: Total | J63: =J61+J62 -> -1359342.08
I65: Less: Fully Allocated Depreciation
A66: 10 | C66: Transportation | I66: Transportation | K66: =J42 -> -183649.26
A67: 8 | C67: Stores Equipment | I67: Stores Equipment
I68: Net Depreciation | K68: =J63-K66-K67 -> -1175692.82
A70: Notes:
A72: 1 | B72: Tables in the format outlined above covering all fixed asset accounts should be submitted for the Test Year, Bridge Year and all relevant historical years. At a minimum , the applicant must provide data for the earlier of: 1) all historical years back to its last rebasing; or 2) at least three years of historical actuals, in addition to Bridge Year and Test Year forecasts.
A75: 2 | B75: The "CCA Class" for fixed assets should agree with the CCA Class used for tax purposes in Tax Returns. Fixed Assets sub-components may be used where the underlying asset components are classified under multiple CCA Classes for tax purposes. If an applicant uses any different classes from those shown in the table, an explanation should be provided. (also see note 3).
A78: 3 | B78: The table may need to be customized for a utility's asset categories or for any new asset accounts announced or authorized by the Board.
A80: 4 | B80: The additions in column (E) must not include construction work in progress (CWIP).
A82: 5 | B82: Effective on the date of IFRS adoption, customer contributions will no longer be recorded in Account 1995 Contributions & Grants, but will be recorded in Account 2440, Deferred Revenues.
A84: 6 | B84: The applicant must ensure that all asset disposals have been clearly identified in the Chapter 2 Appendices for all historic, bridge and test years. Where a distributor for general financial reporting purposes under IFRS has accounted for the amount of gain or loss on the retirement of assets in a pool of like assets as a charge or credit to income, for reporting and rate application filings, the distributor shall reclassify such gains and losses as depreciation expense, and disclose the amount separately.

Sheet App.2-BA_FA Cont 2017
L1: File Number: | M1: =EBNUMBER -> 0
L2: Exhibit: | M2: 2
L3: Tab:
L4: Schedule: | M4: Table 17
L5: Page: | M5: 23
L7: Date: | M7: 2019-03-21
A9: Appendix 2-BA
A10: Fixed Asset Continuity Schedule 1
E12: Accounting Standard | F12: MIFRS
E13: Year | F13: 2017
D15: Cost | J15: Accumulated Depreciation
A16: CCA Class 2 | B16: OEB Account 3 | C16: Description 3 | D16: Opening Balance | E16: Additions 4 | F16: Disposals 6 | G16: Closing Balance | I16: Opening Balance | J16: Additions | K16: Disposals 6 | L16: Closing Balance | M16: Net Book Value
B17: 1609 | C17: Capital Contributions Paid | G17: =D17+E17+F17 -> 0 | L17: =I17+J17+K17 -> 0 | M17: =G17+L17 -> 0
A18: 12 | B18: 1611 | C18: Computer Software (Formally known as Account 1925) | D18: 929571.54 | E18: 45266.15 | F18: 0 | G18: 974837.69 | I18: -824574.17 | J18: -49068.28 | K18: 0 | L18: -873642.45 | M18: 101195.24
A19: CEC | B19: 1612 | C19: Land Rights (Formally known as Account 1906) | D19: 567930.87 | E19: 0 | F19: 0 | G19: 567930.87 | I19: -49954.57 | J19: -20 | K19: 0 | L19: -49974.57 | M19: 517956.3
A20: N/A | B20: 1805 | C20: Land | D20: 74305 | E20: 0 | F20: 0 | G20: 74305 | I20: 0 | J20: 0 | K20: 0 | L20: 0 | M20: 74305
A21: 47 | B21: 1808 | C21: Buildings | D21: 2187990.03 | E21: -10000 | F21: 0 | G21: 2177990.03 | I21: -551352.65 | J21: -81625.89 | K21: 0 | L21: -632978.54 | M21: 1545011.49
A22: 13 | B22: 1810 | C22: Leasehold Improvements | D22: 0 | E22: 0 | F22: 0 | G22: 0 | I22: 0 | J22: 0 | K22: 0 | L22: 0 | M22: 0
A23: 47 | B23: 1815 | C23: Transformer Station Equipment >50 kV | D23: 0 | E23: 0 | F23: 0 | G23: 0 | I23: 0 | J23: 0 | K23: 0 | L23: 0 | M23: 0
A24: 47 | B24: 1820 | C24: Distribution Station Equipment <50 kV | D24: 6421078.9 | E24: 83672.39 | F24: 0 | G24: 6504751.29 | I24: -2540965.29 | J24: -125117.3 | K24: 0 | L24: -2666082.59 | M24: 3838668.7
A25: 47 | B25: 1825 | C25: Storage Battery Equipment | D25: 0 | E25: 0 | F25: 0 | G25: 0 | I25: 0 | J25: 0 | K25: 0 | L25: 0 | M25: 0
A26: 47 | B26: 1830 | C26: Poles, Towers & Fixtures | D26: 9368368.46 | E26: 720879.62 | F26: -20989 | G26: 10068259.08 | I26: -4008377.07 | J26: -219864.62 | K26: 0 | L26: -4228241.69 | M26: 5840017.39
A27: 47 | B27: 1835 | C27: Overhead Conductors & Devices | D27: 6290377.07 | E27: 273483.64 | F27: -12097.5 | G27: 6551763.21 | I27: -2035861.36 | J27: -141418.89 | K27: 0 | L27: -2177280.25 | M27: 4374482.96
A28: 47 | B28: 1840 | C28: Underground Conduit | D28: 4538831.86 | E28: 146186.73 | F28: 0 | G28: 4685018.59 | I28: -2122619.07 | J28: -94897.37 | K28: 0 | L28: -2217516.44 | M28: 2467502.15
A29: 47 | B29: 1845 | C29: Underground Conductors & Devices | D29: 3564352.07 | E29: 91274.47 | F29: 0 | G29: 3655626.54 | I29: -1036119.2 | J29: -103235.88 | K29: 0 | L29: -1139355.08 | M29: 2516271.46
A30: 47 | B30: 1850 | C30: Line Transformers | D30: 10084856.5 | E30: 652479.93 | F30: -30300 | G30: 10707036.43 | I30: -4387365.47 | J30: -232770.41 | K30: 0 | L30: -4620135.88 | M30: 6086900.55
A31: 47 | B31: 1855 | C31: Services (Overhead & Underground) | D31: 2275171.77 | E31: 17323.09 | F31: 0 | G31: 2292494.86 | I31: -1242889.54 | J31: -29252.39 | K31: 0 | L31: -1272141.93 | M31: 1020352.93
A32: 47 | B32: 1860 | C32: Meters | D32: 3727810.86 | E32: 169402.83 | F32: 0 | G32: 3897213.69 | I32: -1377006.39 | J32: -234238.49 | K32: 0 | L32: -1611244.88 | M32: 2285968.81
A33: 47 | B33: 1860 | C33: Meters (Smart Meters) | D33: 0 | E33: 0 | F33: 0 | G33: 0 | I33: 0 | J33: 0 | K33: 0 | L33: 0 | M33: 0
A34: N/A | B34: 1905 | C34: Land | D34: 303800.82 | E34: 0 | F34: 0 | G34: 303800.82 | I34: 0 | J34: 0 | K34: 0 | L34: 0 | M34: 303800.82
A35: 47 | B35: 1908 | C35: Buildings & Fixtures | D35: 222769.8 | E35: 81696.88 | F35: 0 | G35: 304466.68 | I35: -101195.16 | J35: -11345.84 | K35: 0 | L35: -112541 | M35: 191925.68
A36: 13 | B36: 1910 | C36: Leasehold Improvements | D36: -0.39 | E36: 0 | F36: 0 | G36: -0.39 | I36: 0 | J36: 0 | K36: 0 | L36: 0 | M36: -0.39
A37: 8 | B37: 1915 | C37: Office Furniture & Equipment (10 years) | D37: 272604.6 | E37: 0 | F37: 0 | G37: 272604.6 | I37: -211864 | J37: -14806.33 | K37: 0 | L37: -226670.33 | M37: 45934.27
A38: 8 | B38: 1915 | C38: Office Furniture & Equipment (5 years) | D38: 0 | E38: 0 | F38: 0 | G38: 0 | I38: 0 | J38: 0 | K38: 0 | L38: 0 | M38: 0
A39: 10 | B39: 1920 | C39: Computer Equipment - Hardware | D39: 571706.3 | E39: 3421.41 | F39: 0 | G39: 575127.71 | I39: -589778.31 | J39: -23737.42 | K39: 0 | L39: -613515.73 | M39: -38388.02
A40: 45 | B40: 1920 | C40: Computer Equip.-Hardware(Post Mar. 22/04) | D40: 0 | E40: 0 | F40: 0 | G40: 0 | I40: 0 | J40: 0 | K40: 0 | L40: 0 | M40: 0
A41: 45.1 | B41: 1920 | C41: Computer Equip.-Hardware(Post Mar. 19/07) | D41: 0 | E41: 0 | F41: 0 | G41: 0 | I41: 0 | J41: 0 | K41: 0 | L41: 0 | M41: 0
A42: 10 | B42: 1930 | C42: Transportation Equipment | D42: 1916954.21 | E42: 127912.6 | F42: -231856.76 | G42: 1813010.05 | I42: -1089849.16 | J42: -180374.1 | K42: 119266.54 | L42: -1150956.72 | M42: 662053.33
A43: 8 | B43: 1935 | C43: Stores Equipment | D43: 10960.38 | E43: 0 | F43: 0 | G43: 10960.38 | I43: -10960.39 | J43: 0 | K43: 0 | L43: -10960.39 | M43: -0.01
A44: 8 | B44: 1940 | C44: Tools, Shop & Garage Equipment | D44: 299411.75 | E44: 0 | F44: 0 | G44: 299411.75 | I44: -244654.04 | J44: -13285.16 | K44: 0 | L44: -257939.2 | M44: 41472.55
A45: 8 | B45: 1945 | C45: Measurement & Testing Equipment | D45: 0 | E45: 0 | F45: 0 | G45: 0 | I45: 0 | J45: 0 | K45: 0 | L45: 0 | M45: 0
A46: 8 | B46: 1950 | C46: Power Operated Equipment | D46: 0 | E46: 0 | F46: 0 | G46: 0 | I46: 0 | J46: 0 | K46: 0 | L46: 0 | M46: 0
A47: 8 | B47: 1955 | C47: Communications Equipment | D47: 189661.15 | E47: 0 | F47: 0 | G47: 189661.15 | I47: -181256.17 | J47: -6047.67 | K47: 0 | L47: -187303.84 | M47: 2357.31
A48: 8 | B48: 1955 | C48: Communication Equipment (Smart Meters) | D48: 410583.25 | E48: 0 | F48: 0 | G48: 410583.25 | I48: -410583.26 | J48: 0 | K48: 0 | L48: -410583.26 | M48: -0.01000000007
A49: 8 | B49: 1960 | C49: Miscellaneous Equipment | D49: 0 | E49: 0 | F49: 0 | G49: 0 | I49: 0 | J49: 0 | K49: 0 | L49: 0 | M49: 0
A50: 47 | B50: 1970 | C50: Load Management Controls Customer Premises | D50: 0 | E50: 0 | F50: 0 | G50: 0 | I50: 0 | J50: 0 | K50: 0 | L50: 0 | M50: 0
A51: 47 | B51: 1975 | C51: Load Management Controls Utility Premises | D51: 0 | E51: 0 | F51: 0 | G51: 0 | I51: 0 | J51: 0 | K51: 0 | L51: 0 | M51: 0
A52: 47 | B52: 1980 | C52: System Supervisor Equipment | D52: 333115.16 | E52: 5999.97 | F52: 0 | G52: 339115.13 | I52: -82605.49 | J52: -33611.51 | K52: 0 | L52: -116217 | M52: 222898.13
A53: 47 | B53: 1985 | C53: Miscellaneous Fixed Assets | D53: 0 | E53: 0 | F53: 0 | G53: 0 | I53: 0 | J53: 0 | K53: 0 | L53: 0 | M53: 0
A54: 47 | B54: 1990 | C54: Other Tangible Property | D54: 0 | E54: 0 | F54: 0 | G54: 0 | I54: 0 | J54: 0 | K54: 0 | L54: 0 | M54: 0
A55: 47 | B55: 1995 | C55: Contributions & Grants | D55: -8295738.31 | E55: -365697.72 | F55: 0 | G55: -8661436.03 | I55: 2087035.15 | J55: 185052.4 | K55: 0 | L55: 2272087.55 | M55: -6389348.48
A56: 47 | B56: 2440 | C56: Deferred Revenue5 | D56: 0 | E56: 0 | F56: 0 | G56: 0 | I56: 0 | J56: 0 | K56: 0 | L56: 0 | M56: 0
B57: 2055 | C57: Construction in Process | D57: 0 | E57: 0 | F57: 0 | G57: 0 | I57: 0 | J57: 0 | K57: 0 | L57: 0 | M57: 0
C58: Sub-Total | D58: =SUM(D17:D57) -> 46266473.65 | E58: =SUM(E17:E57) -> 2043301.99 | F58: =SUM(F17:F57) -> -295243.26 | G58: =SUM(G17:G57) -> 48014532.38 | I58: =SUM(I17:I57) -> -21012795.61 | J58: =SUM(J17:J57) -> -1409665.15 | K58: =SUM(K17:K57) -> 119266.54 | L58: =SUM(L17:L57) -> -22303194.22 | M58: =SUM(M17:M57) -> 25711338.16
C59: Less Socialized Renewable Energy Generation Investments (input as negative) | G59: =D59+E59+F59 -> 0 | L59: =I59+J59+K59 -> 0 | M59: =G59+L59 -> 0
C60: Less Other Non Rate-Regulated Utility Assets (input as negative) | G60: =D60+E60+F60 -> 0 | L60: =I60+J60+K60 -> 0 | M60: =G60+L60 -> 0
C61: Total PP&E | D61: =SUM(D58:D60) -> 46266473.65 | E61: =SUM(E58:E60) -> 2043301.99 | F61: =SUM(F58:F60) -> -295243.26 | G61: =SUM(G58:G60) -> 48014532.38 | I61: =SUM(I58:I60) -> -21012795.61 | J61: =SUM(J58:J60) -> -1409665.15 | K61: =SUM(K58:K60) -> 119266.54 | L61: =SUM(L58:L60) -> -22303194.22 | M61: =SUM(M58:M60) -> 25711338.16
C62: Depreciation Expense adj. from gain or loss on the retirement of assets (pool of like assets), if applicable6
C63: Total | J63: =J61+J62 -> -1409665.15
I65: Less: Fully Allocated Depreciation
A66: 10 | C66: Transportation | I66: Transportation | K66: =J42 -> -180374.1
A67: 8 | C67: Stores Equipment | I67: Stores Equipment
I68: Net Depreciation | K68: =J63-K66-K67 -> -1229291.05
A70: Notes:
A72: 1 | B72: Tables in the format outlined above covering all fixed asset accounts should be submitted for the Test Year, Bridge Year and all relevant historical years. At a minimum , the applicant must provide data for the earlier of: 1) all historical years back to its last rebasing; or 2) at least three years of historical actuals, in addition to Bridge Year and Test Year forecasts.
A75: 2 | B75: The "CCA Class" for fixed assets should agree with the CCA Class used for tax purposes in Tax Returns. Fixed Assets sub-components may be used where the underlying asset components are classified under multiple CCA Classes for tax purposes. If an applicant uses any different classes from those shown in the table, an explanation should be provided. (also see note 3).
A78: 3 | B78: The table may need to be customized for a utility's asset categories or for any new asset accounts announced or authorized by the Board.
A80: 4 | B80: The additions in column (E) must not include construction work in progress (CWIP).
A82: 5 | B82: Effective on the date of IFRS adoption, customer contributions will no longer be recorded in Account 1995 Contributions & Grants, but will be recorded in Account 2440, Deferred Revenues.
A84: 6 | B84: The applicant must ensure that all asset disposals have been clearly identified in the Chapter 2 Appendices for all historic, bridge and test years. Where a distributor for general financial reporting purposes under IFRS has accounted for the amount of gain or loss on the retirement of assets in a pool of like assets as a charge or credit to income, for reporting and rate application filings, the distributor shall reclassify such gains and losses as depreciation expense, and disclose the amount separately.

Sheet App.2-BA_FA Cont 2018
L1: File Number: | M1: =EBNUMBER -> 0
L2: Exhibit: | M2: 2
L3: Tab:
L4: Schedule: | M4: Table 18
L5: Page: | M5: 25
L7: Date: | M7: 2019-03-21
A9: Appendix 2-BA
A10: Fixed Asset Continuity Schedule 1
E12: Accounting Standard | F12: MIFRS
E13: Year | F13: 2018
D15: Cost | J15: Accumulated Depreciation
A16: CCA Class 2 | B16: OEB Account 3 | C16: Description 3 | D16: Opening Balance | E16: Additions 4 | F16: Disposals 6 | G16: Closing Balance | I16: Opening Balance | J16: Additions | K16: Disposals 6 | L16: Closing Balance | M16: Net Book Value
B17: 1609 | C17: Capital Contributions Paid | G17: =D17+E17+F17 -> 0 | L17: =I17+J17+K17 -> 0 | M17: =G17+L17 -> 0
A18: 12 | B18: 1611 | C18: Computer Software (Formally known as Account 1925) | D18: 974837.69 | E18: 5006.57 | F18: 0 | G18: 979844.26 | I18: -873642.45 | J18: -46887.08 | K18: 0 | L18: -920529.53 | M18: 59314.73
A19: CEC | B19: 1612 | C19: Land Rights (Formally known as Account 1906) | D19: 567930.87 | E19: 0 | F19: 0 | G19: 567930.87 | I19: -49974.57 | J19: -20 | K19: 0 | L19: -49994.57 | M19: 517936.3
A20: N/A | B20: 1805 | C20: Land | D20: 74305 | E20: 0 | F20: 0 | G20: 74305 | I20: 0 | J20: 0 | K20: 0 | L20: 0 | M20: 74305
A21: 47 | B21: 1808 | C21: Buildings | D21: 2177990.03 | E21: -14153 | F21: 0 | G21: 2163837.03 | I21: -632978.54 | J21: -80846.78 | K21: 0 | L21: -713825.32 | M21: 1450011.71
A22: 13 | B22: 1810 | C22: Leasehold Improvements | D22: 0 | E22: 0 | F22: 0 | G22: 0 | I22: 0 | J22: 0 | K22: 0 | L22: 0 | M22: 0
A23: 47 | B23: 1815 | C23: Transformer Station Equipment >50 kV | D23: 0 | E23: 0 | F23: 0 | G23: 0 | I23: 0 | J23: 0 | K23: 0 | L23: 0 | M23: 0
A24: 47 | B24: 1820 | C24: Distribution Station Equipment <50 kV | D24: 6504751.29 | E24: 0 | F24: 0 | G24: 6504751.29 | I24: -2666082.59 | J24: -126163 | K24: 0 | L24: -2792245.59 | M24: 3712505.7
A25: 47 | B25: 1825 | C25: Storage Battery Equipment | D25: 0 | E25: 0 | F25: 0 | G25: 0 | I25: 0 | J25: 0 | K25: 0 | L25: 0 | M25: 0
A26: 47 | B26: 1830 | C26: Poles, Towers & Fixtures | D26: 10068259.08 | E26: 756453.03 | F26: 0 | G26: 10824712.11 | I26: -4228241.69 | J26: -236224.52 | K26: 0 | L26: -4464466.21 | M26: 6360245.9
A27: 47 | B27: 1835 | C27: Overhead Conductors & Devices | D27: 6551763.21 | E27: 333422.98 | F27: 0 | G27: 6885186.19 | I27: -2177280.25 | J27: -142164.8 | K27: 0 | L27: -2319445.05 | M27: 4565741.14
A28: 47 | B28: 1840 | C28: Underground Conduit | D28: 4685018.59 | E28: 200923.55 | F28: 0 | G28: 4885942.14 | I28: -2217516.44 | J28: -99236.25 | K28: 0 | L28: -2316752.69 | M28: 2569189.45
A29: 47 | B29: 1845 | C29: Underground Conductors & Devices | D29: 3655626.54 | E29: 235448.38 | F29: 0 | G29: 3891074.92 | I29: -1139355.08 | J29: -103539.58 | K29: 0 | L29: -1242894.66 | M29: 2648180.26
A30: 47 | B30: 1850 | C30: Line Transformers | D30: 10707036.43 | E30: 454800.81 | F30: 0 | G30: 11161837.24 | I30: -4620135.88 | J30: -246403.87 | K30: 0 | L30: -4866539.75 | M30: 6295297.49
A31: 47 | B31: 1855 | C31: Services (Overhead & Underground) | D31: 2292494.86 | E31: 45821.37 | F31: 0 | G31: 2338316.23 | I31: -1272141.93 | J31: -29954 | K31: 0 | L31: -1302095.93 | M31: 1036220.3
A32: 47 | B32: 1860 | C32: Meters | D32: 3897213.69 | E32: 260213.9 | F32: 0 | G32: 4157427.59 | I32: -1611244.88 | J32: -248455.9 | K32: 0 | L32: -1859700.78 | M32: 2297726.81
A33: 47 | B33: 1860 | C33: Meters (Smart Meters) | D33: 0 | E33: 0 | F33: 0 | G33: 0 | I33: 0 | J33: 0 | K33: 0 | L33: 0 | M33: 0
A34: N/A | B34: 1905 | C34: Land | D34: 303800.82 | E34: 0 | F34: 0 | G34: 303800.82 | I34: 0 | J34: 0 | K34: 0 | L34: 0 | M34: 303800.82
A35: 47 | B35: 1908 | C35: Buildings & Fixtures | D35: 304466.68 | E35: 10270.95 | F35: -17500 | G35: 297237.63 | I35: -112541 | J35: =-11973.85-K35 -> -12907.18 | K35: 933.33 | L35: -124514.85 | M35: 172722.78
A36: 13 | B36: 1910 | C36: Leasehold Improvements | D36: -0.39 | E36: 0 | F36: 0 | G36: -0.39 | I36: 0 | J36: 0 | K36: 0 | L36: 0 | M36: -0.39
A37: 8 | B37: 1915 | C37: Office Furniture & Equipment (10 years) | D37: 272604.6 | E37: 11527.9 | F37: 0 | G37: 284132.5 | I37: -226670.33 | J37: -12505.77 | K37: 0 | L37: -239176.1 | M37: 44956.4
A38: 8 | B38: 1915 | C38: Office Furniture & Equipment (5 years) | D38: 0 | E38: 0 | F38: 0 | G38: 0 | I38: 0 | J38: 0 | K38: 0 | L38: 0 | M38: 0
A39: 10 | B39: 1920 | C39: Computer Equipment - Hardware | D39: 575127.71 | E39: 20216.17 | F39: 0 | G39: 595343.88 | I39: -613515.73 | J39: -17290.16 | K39: 0 | L39: -630805.89 | M39: -35462.01
A40: 45 | B40: 1920 | C40: Computer Equip.-Hardware(Post Mar. 22/04) | D40: 0 | E40: 0 | F40: 0 | G40: 0 | I40: 0 | J40: 0 | K40: 0 | L40: 0 | M40: 0
A41: 45.1 | B41: 1920 | C41: Computer Equip.-Hardware(Post Mar. 19/07) | D41: 0 | E41: 0 | F41: 0 | G41: 0 | I41: 0 | J41: 0 | K41: 0 | L41: 0 | M41: 0
A42: 10 | B42: 1930 | C42: Transportation Equipment | D42: 1813010.05 | E42: 29196.55 | F42: -128850.42 | G42: 1713356.18 | I42: -1150956.72 | J42: =-80333.48-K42 -> -127956.2 | K42: 47622.72 | L42: -1231290.2 | M42: 482065.98
A43: 8 | B43: 1935 | C43: Stores Equipment | D43: 10960.38 | E43: 64850 | F43: 0 | G43: 75810.38 | I43: -10960.39 | J43: -3242.5 | K43: 0 | L43: -14202.89 | M43: 61607.49
A44: 8 | B44: 1940 | C44: Tools, Shop & Garage Equipment | D44: 299411.75 | E44: 25633.31 | F44: -31590 | G44: 293455.06 | I44: -257939.2 | J44: -11654.29 | K44: 29220.75 | L44: -240372.74 | M44: 53082.32
A45: 8 | B45: 1945 | C45: Measurement & Testing Equipment | D45: 0 | E45: 0 | F45: 0 | G45: 0 | I45: 0 | J45: 0 | K45: 0 | L45: 0 | M45: 0
A46: 8 | B46: 1950 | C46: Power Operated Equipment | D46: 0 | E46: 0 | F46: 0 | G46: 0 | I46: 0 | J46: 0 | K46: 0 | L46: 0 | M46: 0
A47: 8 | B47: 1955 | C47: Communications Equipment | D47: 189661.15 | E47: 0 | F47: 0 | G47: 189661.15 | I47: -187303.84 | J47: -1753.2 | K47: 0 | L47: -189057.04 | M47: 604.11
A48: 8 | B48: 1955 | C48: Communication Equipment (Smart Meters) | D48: 410583.25 | E48: 0 | F48: 0 | G48: 410583.25 | I48: -410583.26 | J48: 0 | K48: 0 | L48: -410583.26 | M48: -0.01000000007
A49: 8 | B49: 1960 | C49: Miscellaneous Equipment | D49: 0 | E49: 0 | F49: 0 | G49: 0 | I49: 0 | J49: 0 | K49: 0 | L49: 0 | M49: 0
A50: 47 | B50: 1970 | C50: Load Management Controls Customer Premises | D50: 0 | E50: 0 | F50: 0 | G50: 0 | I50: 0 | J50: 0 | K50: 0 | L50: 0 | M50: 0
A51: 47 | B51: 1975 | C51: Load Management Controls Utility Premises | D51: 0 | E51: 0 | F51: 0 | G51: 0 | I51: 0 | J51: 0 | K51: 0 | L51: 0 | M51: 0
A52: 47 | B52: 1980 | C52: System Supervisor Equipment | D52: 339115.13 | E52: 506.21 | F52: 0 | G52: 339621.34 | I52: -116217 | J52: -33936.82 | K52: 0 | L52: -150153.82 | M52: 189467.52
A53: 47 | B53: 1985 | C53: Miscellaneous Fixed Assets | D53: 0 | E53: 0 | F53: 0 | G53: 0 | I53: 0 | J53: 0 | K53: 0 | L53: 0 | M53: 0
A54: 47 | B54: 1990 | C54: Other Tangible Property | D54: 0 | E54: 0 | F54: 0 | G54: 0 | I54: 0 | J54: 0 | K54: 0 | L54: 0 | M54: 0
A55: 47 | B55: 1995 | C55: Contributions & Grants | D55: -8661436.03 | E55: -347817.14 | F55: 0 | G55: -9009253.17 | I55: 2272087.55 | J55: 193446.69 | K55: 0 | L55: 2465534.24 | M55: -6543718.93
A56: 47 | B56: 2440 | C56: Deferred Revenue5 | D56: 0 | E56: 0 | F56: 0 | G56: 0 | I56: 0 | J56: 0 | K56: 0 | L56: 0 | M56: 0
B57: 2055 | C57: Construction in Process | D57: 0 | E57: 0 | F57: 0 | G57: 0 | I57: 0 | J57: 0 | K57: 0 | L57: 0 | M57: 0
C58: Sub-Total | D58: =SUM(D17:D57) -> 48014532.38 | E58: =SUM(E17:E57) -> 2092321.54 | F58: =SUM(F17:F57) -> -177940.42 | G58: =SUM(G17:G57) -> 49928913.5 | I58: =SUM(I17:I57) -> -22303194.22 | J58: =SUM(J17:J57) -> -1387695.21 | K58: =SUM(K17:K57) -> 77776.8 | L58: =SUM(L17:L57) -> -23613112.63 | M58: =SUM(M17:M57) -> 26315800.87
C59: Less Socialized Renewable Energy Generation Investments (input as negative) | G59: =D59+E59+F59 -> 0 | L59: =I59+J59+K59 -> 0 | M59: =G59+L59 -> 0
C60: Less Other Non Rate-Regulated Utility Assets (input as negative) | G60: =D60+E60+F60 -> 0 | L60: =I60+J60+K60 -> 0 | M60: =G60+L60 -> 0
C61: Total PP&E | D61: =SUM(D58:D60) -> 48014532.38 | E61: =SUM(E58:E60) -> 2092321.54 | F61: =SUM(F58:F60) -> -177940.42 | G61: =SUM(G58:G60) -> 49928913.5 | I61: =SUM(I58:I60) -> -22303194.22 | J61: =SUM(J58:J60) -> -1387695.21 | K61: =SUM(K58:K60) -> 77776.8 | L61: =SUM(L58:L60) -> -23613112.63 | M61: =SUM(M58:M60) -> 26315800.87
C62: Depreciation Expense adj. from gain or loss on the retirement of assets (pool of like assets), if applicable6
C63: Total | J63: =J61+J62 -> -1387695.21
I65: Less: Fully Allocated Depreciation
A66: 10 | C66: Transportation | I66: Transportation | K66: =J42 -> -127956.2
A67: 8 | C67: Stores Equipment | I67: Stores Equipment
I68: Net Depreciation | K68: =J63-K66-K67 -> -1259739.01
A70: Notes:
A72: 1 | B72: Tables in the format outlined above covering all fixed asset accounts should be submitted for the Test Year, Bridge Year and all relevant historical years. At a minimum , the applicant must provide data for the earlier of: 1) all historical years back to its last rebasing; or 2) at least three years of historical actuals, in addition to Bridge Year and Test Year forecasts.
A75: 2 | B75: The "CCA Class" for fixed assets should agree with the CCA Class used for tax purposes in Tax Returns. Fixed Assets sub-components may be used where the underlying asset components are classified under multiple CCA Classes for tax purposes. If an applicant uses any different classes from those shown in the table, an explanation should be provided. (also see note 3).
A78: 3 | B78: The table may need to be customized for a utility's asset categories or for any new asset accounts announced or authorized by the Board.
A80: 4 | B80: The additions in column (E) must not include construction work in progress (CWIP).
A82: 5 | B82: Effective on the date of IFRS adoption, customer contributions will no longer be recorded in Account 1995 Contributions & Grants, but will be recorded in Account 2440, Deferred Revenues.
A84: 6 | B84: The applicant must ensure that all asset disposals have been clearly identified in the Chapter 2 Appendices for all historic, bridge and test years. Where a distributor for general financial reporting purposes under IFRS has accounted for the amount of gain or loss on the retirement of assets in a pool of like assets as a charge or credit to income, for reporting and rate application filings, the distributor shall reclassify such gains and losses as depreciation expense, and disclose the amount separately.

Sheet App.2-BA_FA Cont 2019
L1: File Number: | M1: =EBNUMBER -> 0
L2: Exhibit: | M2: 2
L3: Tab:
L4: Schedule: | M4: Table 19
L5: Page: | M5: 26
L7: Date: | M7: 2019-03-21
A9: Appendix 2-BA
A10: Fixed Asset Continuity Schedule 1
E12: Accounting Standard | F12: MIFRS
E13: Year | F13: 2019
D15: Cost | J15: Accumulated Depreciation
A16: CCA Class 2 | B16: OEB Account 3 | C16: Description 3 | D16: Opening Balance | E16: Additions 4 | F16: Disposals 6 | G16: Closing Balance | I16: Opening Balance | J16: Additions | K16: Disposals 6 | L16: Closing Balance | M16: Net Book Value
B17: 1609 | C17: Capital Contributions Paid | G17: =D17+E17+F17 -> 0 | L17: =I17+J17+K17 -> 0 | M17: =G17+L17 -> 0
A18: 12 | B18: 1611 | C18: Computer Software (Formally known as Account 1925) | D18: =+'App.2-BA_FA Cont 2018'!G18 -> 979844.26 | E18: 325000 | F18: 0 | G18: 1304844.26 | I18: =+'App.2-BA_FA Cont 2018'!L18 -> -920529.53 | J18: -62012.43 | K18: 0 | L18: -982541.96 | M18: 322302.3
A19: CEC | B19: 1612 | C19: Land Rights (Formally known as Account 1906) | D19: =+'App.2-BA_FA Cont 2018'!G19 -> 567930.87 | E19: 0 | F19: 0 | G19: 567930.87 | I19: =+'App.2-BA_FA Cont 2018'!L19 -> -49994.57 | J19: -20 | K19: 0 | L19: -50014.57 | M19: 517916.3
A20: N/A | B20: 1805 | C20: Land | D20: =+'App.2-BA_FA Cont 2018'!G20 -> 74305 | E20: 0 | F20: 0 | G20: 74305 | I20: =+'App.2-BA_FA Cont 2018'!L20 -> 0 | J20: 0 | K20: 0 | L20: 0 | M20: 74305
A21: 47 | B21: 1808 | C21: Buildings | D21: =+'App.2-BA_FA Cont 2018'!G21 -> 2163837.03 | E21: 0 | F21: 0 | G21: 2163837.03 | I21: =+'App.2-BA_FA Cont 2018'!L21 -> -713825.32 | J21: -75383 | K21: 0 | L21: -789208.32 | M21: 1374628.71
A22: 13 | B22: 1810 | C22: Leasehold Improvements | D22: =+'App.2-BA_FA Cont 2018'!G22 -> 0 | E22: 0 | F22: 0 | G22: 0 | I22: =+'App.2-BA_FA Cont 2018'!L22 -> 0 | J22: 0 | K22: 0 | L22: 0 | M22: 0
A23: 47 | B23: 1815 | C23: Transformer Station Equipment >50 kV | D23: =+'App.2-BA_FA Cont 2018'!G23 -> 0 | E23: 0 | F23: 0 | G23: 0 | I23: =+'App.2-BA_FA Cont 2018'!L23 -> 0 | J23: 0 | K23: 0 | L23: 0 | M23: 0
A24: 47 | B24: 1820 | C24: Distribution Station Equipment <50 kV | D24: =+'App.2-BA_FA Cont 2018'!G24 -> 6504751.29 | E24: 0 | F24: 0 | G24: 6504751.29 | I24: =+'App.2-BA_FA Cont 2018'!L24 -> -2792245.59 | J24: -126163.2 | K24: 0 | L24: -2918408.79 | M24: 3586342.5
A25: 47 | B25: 1825 | C25: Storage Battery Equipment | D25: =+'App.2-BA_FA Cont 2018'!G25 -> 0 | E25: 0 | F25: 0 | G25: 0 | I25: =+'App.2-BA_FA Cont 2018'!L25 -> 0 | J25: 0 | K25: 0 | L25: 0 | M25: 0
A26: 47 | B26: 1830 | C26: Poles, Towers & Fixtures | D26: =+'App.2-BA_FA Cont 2018'!G26 -> 10824712.11 | E26: 583500 | F26: 0 | G26: 11408212.11 | I26: =+'App.2-BA_FA Cont 2018'!L26 -> -4464466.21 | J26: -252225 | K26: 0 | L26: -4716691.21 | M26: 6691520.9
A27: 47 | B27: 1835 | C27: Overhead Conductors & Devices | D27: =+'App.2-BA_FA Cont 2018'!G27 -> 6885186.19 | E27: 329000 | F27: 0 | G27: 7214186.19 | I27: =+'App.2-BA_FA Cont 2018'!L27 -> -2319445.05 | J27: -146852 | K27: 0 | L27: -2466297.05 | M27: 4747889.14
A28: 47 | B28: 1840 | C28: Underground Conduit | D28: =+'App.2-BA_FA Cont 2018'!G28 -> 4885942.14 | E28: 135250 | F28: 0 | G28: 5021192.14 | I28: =+'App.2-BA_FA Cont 2018'!L28 -> -2316752.69 | J28: -103438 | K28: 0 | L28: -2420190.69 | M28: 2601001.45
A29: 47 | B29: 1845 | C29: Underground Conductors & Devices | D29: =+'App.2-BA_FA Cont 2018'!G29 -> 3891074.92 | E29: 102750 | F29: 0 | G29: 3993824.92 | I29: =+'App.2-BA_FA Cont 2018'!L29 -> -1242894.66 | J29: -107297 | K29: 0 | L29: -1350191.66 | M29: 2643633.26
A30: 47 | B30: 1850 | C30: Line Transformers | D30: =+'App.2-BA_FA Cont 2018'!G30 -> 11161837.24 | E30: 400500 | F30: 0 | G30: 11562337.24 | I30: =+'App.2-BA_FA Cont 2018'!L30 -> -4866539.75 | J30: -257096 | K30: 0 | L30: -5123635.75 | M30: 6438701.49
A31: 47 | B31: 1855 | C31: Services (Overhead & Underground) | D31: =+'App.2-BA_FA Cont 2018'!G31 -> 2338316.23 | E31: 60500 | F31: 0 | G31: 2398816.23 | I31: =+'App.2-BA_FA Cont 2018'!L31 -> -1302095.93 | J31: -31135 | K31: 0 | L31: -1333230.93 | M31: 1065585.3
A32: 47 | B32: 1860 | C32: Meters | D32: =+'App.2-BA_FA Cont 2018'!G32 -> 4157427.59 | E32: 288500 | F32: 0 | G32: 4445927.59 | I32: =+'App.2-BA_FA Cont 2018'!L32 -> -1859700.78 | J32: -266793 | K32: 0 | L32: -2126493.78 | M32: 2319433.81
A33: 47 | B33: 1860 | C33: Meters (Smart Meters) | D33: =+'App.2-BA_FA Cont 2018'!G33 -> 0 | E33: 0 | F33: 0 | G33: 0 | I33: =+'App.2-BA_FA Cont 2018'!L33 -> 0 | J33: 0 | K33: 0 | L33: 0 | M33: 0
A34: N/A | B34: 1905 | C34: Land | D34: =+'App.2-BA_FA Cont 2018'!G34 -> 303800.82 | E34: 0 | F34: 0 | G34: 303800.82 | I34: =+'App.2-BA_FA Cont 2018'!L34 -> 0 | J34: 0 | K34: 0 | L34: 0 | M34: 303800.82
A35: 47 | B35: 1908 | C35: Buildings & Fixtures | D35: =+'App.2-BA_FA Cont 2018'!G35 -> 297237.63 | E35: 50000 | F35: 0 | G35: 347237.63 | I35: =+'App.2-BA_FA Cont 2018'!L35 -> -124514.85 | J35: -11585 | K35: 0 | L35: -136099.85 | M35: 211137.78
A36: 13 | B36: 1910 | C36: Leasehold Improvements | D36: =+'App.2-BA_FA Cont 2018'!G36 -> -0.39 | E36: 0 | F36: 0 | G36: -0.39 | I36: =+'App.2-BA_FA Cont 2018'!L36 -> 0 | J36: 0 | K36: 0 | L36: 0 | M36: -0.39
A37: 8 | B37: 1915 | C37: Office Furniture & Equipment (10 years) | D37: =+'App.2-BA_FA Cont 2018'!G37 -> 284132.5 | E37: 0 | F37: 0 | G37: 284132.5 | I37: =+'App.2-BA_FA Cont 2018'!L37 -> -239176.1 | J37: -11004 | K37: 0 | L37: -250180.1 | M37: 33952.4
A38: 8 | B38: 1915 | C38: Office Furniture & Equipment (5 years) | D38: =+'App.2-BA_FA Cont 2018'!G38 -> 0 | E38: 0 | F38: 0 | G38: 0 | I38: =+'App.2-BA_FA Cont 2018'!L38 -> 0 | J38: 0 | K38: 0 | L38: 0 | M38: 0
A39: 10 | B39: 1920 | C39: Computer Equipment - Hardware | D39: =+'App.2-BA_FA Cont 2018'!G39 -> 595343.88 | E39: 50000 | F39: 0 | G39: 645343.88 | I39: =+'App.2-BA_FA Cont 2018'!L39 -> -630805.89 | J39: -14403 | K39: 0 | L39: -645208.89 | M39: 134.99
A40: 45 | B40: 1920 | C40: Computer Equip.-Hardware(Post Mar. 22/04) | D40: =+'App.2-BA_FA Cont 2018'!G40 -> 0 | E40: 0 | F40: 0 | G40: 0 | I40: =+'App.2-BA_FA Cont 2018'!L40 -> 0 | J40: 0 | K40: 0 | L40: 0 | M40: 0
A41: 45.1 | B41: 1920 | C41: Computer Equip.-Hardware(Post Mar. 19/07) | D41: =+'App.2-BA_FA Cont 2018'!G41 -> 0 | E41: 0 | F41: 0 | G41: 0 | I41: =+'App.2-BA_FA Cont 2018'!L41 -> 0 | J41: 0 | K41: 0 | L41: 0 | M41: 0
A42: 10 | B42: 1930 | C42: Transportation Equipment | D42: =+'App.2-BA_FA Cont 2018'!G42 -> 1713356.18 | E42: 200000 | F42: -257985 | G42: 1655371.18 | I42: =+'App.2-BA_FA Cont 2018'!L42 -> -1231290.2 | J42: -104645 | K42: 247676.8 | L42: -1088258.4 | M42: 567112.78
A43: 8 | B43: 1935 | C43: Stores Equipment | D43: =+'App.2-BA_FA Cont 2018'!G43 -> 75810.38 | E43: 0 | F43: 0 | G43: 75810.38 | I43: =+'App.2-BA_FA Cont 2018'!L43 -> -14202.89 | J43: -6485 | K43: 0 | L43: -20687.89 | M43: 55122.49
A44: 8 | B44: 1940 | C44: Tools, Shop & Garage Equipment | D44: =+'App.2-BA_FA Cont 2018'!G44 -> 293455.06 | E44: 25000 | F44: 0 | G44: 318455.06 | I44: =+'App.2-BA_FA Cont 2018'!L44 -> -240372.74 | J44: -10186 | K44: 0 | L44: -250558.74 | M44: 67896.32
A45: 8 | B45: 1945 | C45: Measurement & Testing Equipment | D45: =+'App.2-BA_FA Cont 2018'!G45 -> 0 | E45: 0 | F45: 0 | G45: 0 | I45: =+'App.2-BA_FA Cont 2018'!L45 -> 0 | J45: 0 | K45: 0 | L45: 0 | M45: 0
A46: 8 | B46: 1950 | C46: Power Operated Equipment | D46: =+'App.2-BA_FA Cont 2018'!G46 -> 0 | E46: 0 | F46: 0 | G46: 0 | I46: =+'App.2-BA_FA Cont 2018'!L46 -> 0 | J46: 0 | K46: 0 | L46: 0 | M46: 0
A47: 8 | B47: 1955 | C47: Communications Equipment | D47: =+'App.2-BA_FA Cont 2018'!G47 -> 189661.15 | E47: 0 | F47: 0 | G47: 189661.15 | I47: =+'App.2-BA_FA Cont 2018'!L47 -> -189057.04 | J47: -245.44 | K47: 0 | L47: -189302.48 | M47: 358.67
A48: 8 | B48: 1955 | C48: Communication Equipment (Smart Meters) | D48: =+'App.2-BA_FA Cont 2018'!G48 -> 410583.25 | E48: 0 | F48: 0 | G48: 410583.25 | I48: =+'App.2-BA_FA Cont 2018'!L48 -> -410583.26 | J48: 0 | K48: 0 | L48: -410583.26 | M48: -0.01000000007
A49: 8 | B49: 1960 | C49: Miscellaneous Equipment | D49: =+'App.2-BA_FA Cont 2018'!G49 -> 0 | E49: 0 | F49: 0 | G49: 0 | I49: =+'App.2-BA_FA Cont 2018'!L49 -> 0 | J49: 0 | K49: 0 | L49: 0 | M49: 0
A50: 47 | B50: 1970 | C50: Load Management Controls Customer Premises | D50: =+'App.2-BA_FA Cont 2018'!G50 -> 0 | E50: 0 | F50: 0 | G50: 0 | I50: =+'App.2-BA_FA Cont 2018'!L50 -> 0 | J50: 0 | K50: 0 | L50: 0 | M50: 0
A51: 47 | B51: 1975 | C51: Load Management Controls Utility Premises | D51: =+'App.2-BA_FA Cont 2018'!G51 -> 0 | E51: 0 | F51: 0 | G51: 0 | I51: =+'App.2-BA_FA Cont 2018'!L51 -> 0 | J51: 0 | K51: 0 | L51: 0 | M51: 0
A52: 47 | B52: 1980 | C52: System Supervisor Equipment | D52: =+'App.2-BA_FA Cont 2018'!G52 -> 339621.34 | E52: 75000 | F52: 0 | G52: 414621.34 | I52: =+'App.2-BA_FA Cont 2018'!L52 -> -150153.82 | J52: -37712 | K52: 0 | L52: -187865.82 | M52: 226755.52
A53: 47 | B53: 1985 | C53: Miscellaneous Fixed Assets | D53: =+'App.2-BA_FA Cont 2018'!G53 -> 0 | E53: 0 | F53: 0 | G53: 0 | I53: =+'App.2-BA_FA Cont 2018'!L53 -> 0 | J53: 0 | K53: 0 | L53: 0 | M53: 0
A54: 47 | B54: 1990 | C54: Other Tangible Property | D54: =+'App.2-BA_FA Cont 2018'!G54 -> 0 | E54: 0 | F54: 0 | G54: 0 | I54: =+'App.2-BA_FA Cont 2018'!L54 -> 0 | J54: 0 | K54: 0 | L54: 0 | M54: 0
A55: 47 | B55: 1995 | C55: Contributions & Grants | D55: =+'App.2-BA_FA Cont 2018'!G55 -> -9009253.17 | E55: -250000 | F55: 0 | G55: -9259253.17 | I55: =+'App.2-BA_FA Cont 2018'!L55 -> 2465534.24 | J55: 200480 | K55: 0 | L55: 2666014.24 | M55: -6593238.93
A56: 47 | B56: 2440 | C56: Deferred Revenue5 | D56: =+'App.2-BA_FA Cont 2018'!G56 -> 0 | E56: 0 | F56: 0 | G56: 0 | I56: 0 | J56: 0 | K56: 0 | L56: 0 | M56: 0
B57: 2055 | C57: Construction in Process | D57: =+'App.2-BA_FA Cont 2018'!G57 -> 0 | E57: 0 | F57: 0 | G57: 0 | I57: 0 | J57: 0 | K57: 0 | L57: 0 | M57: 0
C58: Sub-Total | D58: =SUM(D17:D57) -> 49928913.5 | E58: =SUM(E17:E57) -> 2375000 | F58: =SUM(F17:F57) -> -257985 | G58: =SUM(G17:G57) -> 52045928.5 | I58: =SUM(I17:I57) -> -23613112.63 | J58: =SUM(J17:J57) -> -1424200.07 | K58: =SUM(K17:K57) -> 247676.8 | L58: =SUM(L17:L57) -> -24789635.9 | M58: =SUM(M17:M57) -> 27256292.6
C59: Less Socialized Renewable Energy Generation Investments (input as negative) | G59: =D59+E59+F59 -> 0 | L59: =I59+J59+K59 -> 0 | M59: =G59+L59 -> 0
C60: Less Other Non Rate-Regulated Utility Assets (input as negative) | G60: =D60+E60+F60 -> 0 | L60: =I60+J60+K60 -> 0 | M60: =G60+L60 -> 0
C61: Total PP&E | D61: =SUM(D58:D60) -> 49928913.5 | E61: =SUM(E58:E60) -> 2375000 | F61: =SUM(F58:F60) -> -257985 | G61: =SUM(G58:G60) -> 52045928.5 | I61: =SUM(I58:I60) -> -23613112.63 | J61: =SUM(J58:J60) -> -1424200.07 | K61: =SUM(K58:K60) -> 247676.8 | L61: =SUM(L58:L60) -> -24789635.9 | M61: =SUM(M58:M60) -> 27256292.6
C62: Depreciation Expense adj. from gain or loss on the retirement of assets (pool of like assets), if applicable6
C63: Total | J63: =J61+J62 -> -1424200.07
I65: Less: Fully Allocated Depreciation
A66: 10 | C66: Transportation | I66: Transportation | K66: =J42 -> -104645
A67: 8 | C67: Stores Equipment | I67: Stores Equipment
I68: Net Depreciation | K68: =J63-K66-K67 -> -1319555.07
A70: Notes:
A72: 1 | B72: Tables in the format outlined above covering all fixed asset accounts should be submitted for the Test Year, Bridge Year and all relevant historical years. At a minimum , the applicant must provide data for the earlier of: 1) all historical years back to its last rebasing; or 2) at least three years of historical actuals, in addition to Bridge Year and Test Year forecasts.
A75: 2 | B75: The "CCA Class" for fixed assets should agree with the CCA Class used for tax purposes in Tax Returns. Fixed Assets sub-components may be used where the underlying asset components are classified under multiple CCA Classes for tax purposes. If an applicant uses any different classes from those shown in the table, an explanation should be provided. (also see note 3).
A78: 3 | B78: The table may need to be customized for a utility's asset categories or for any new asset accounts announced or authorized by the Board.
A80: 4 | B80: The additions in column (E) must not include construction work in progress (CWIP).
A82: 5 | B82: Effective on the date of IFRS adoption, customer contributions will no longer be recorded in Account 1995 Contributions & Grants, but will be recorded in Account 2440, Deferred Revenues.
A84: 6 | B84: The applicant must ensure that all asset disposals have been clearly identified in the Chapter 2 Appendices for all historic, bridge and test years. Where a distributor for general financial reporting purposes under IFRS has accounted for the amount of gain or loss on the retirement of assets in a pool of like assets as a charge or credit to income, for reporting and rate application filings, the distributor shall reclassify such gains and losses as depreciation expense, and disclose the amount separately.

Sheet Appendix 2-BB Service Life
N1: File Number: | P1: 0
N2: Exhibit: | P2: 2
N3: Tab:
N4: Schedule:
N5: Page:
N7: Date: | P7: 2019-03-21
A9: Appendix 2-BB
A10: Service Life Comparison
A11: Table F-1 from Kinetrics Report1
C15: Asset Details | F15: Useful Life | J15: USoA Account Number | K15: USoA Account Description | L15: Current | N15: Proposed | P15: Outside Range of Min, Max TUL?
A16: Parent* | B16: # | C16: Category| Component | Type | F16: MIN UL | G16: TUL | H16: MAX UL | L16: Years | M16: Rate | N16: Years | O16: Rate | P16: Below Min TUL | Q16: Above Max TUL
A17: OH | B17: 1 | C17: Fully Dressed Wood Poles | D17: Overall | F17: 35 | G17: 45 | H17: 75 | J17: 1830 | K17: Poles, Towers & Fixtures | L17: 45 | M17: =IF(ISERROR(1/L17), "", 1/L17) -> 0.02222222222 | N17: 45 | O17: =IF(ISERROR(1/N17), "", 1/N17) -> 0.02222222222 | P17: =IF(ISBLANK(N17),"",IF(N17<F17,"Yes","No")) -> No | Q17: =IF(ISBLANK(N17),"",IF(N17>H17,"Yes","No")) -> No
D18: Cross Arm | E18: Wood | F18: 20 | G18: 40 | H18: 55 | M18: =IF(ISERROR(1/L18), "", 1/L18) ->  | O18: =IF(ISERROR(1/N18), "", 1/N18) ->  | P18: =IF(ISBLANK(N18),"",IF(N18<F18,"Yes","No")) ->  | Q18: =IF(ISBLANK(N18),"",IF(N18>H18,"Yes","No")) -> 
E19: Steel | F19: 30 | G19: 70 | H19: 95
B20: 2 | C20: Fully Dressed Concrete Poles | D20: Overall | F20: 50 | G20: 60 | H20: 80
D21: Cross Arm | E21: Wood | F21: 20 | G21: 40 | H21: 55
E22: Steel | F22: 30 | G22: 70 | H22: 95
B23: 3 | C23: Fully Dressed Steel Poles | D23: Overall | F23: 60 | G23: 60 | H23: 80
D24: Cross Arm | E24: Wood | F24: 20 | G24: 40 | H24: 55
E25: Steel | F25: 30 | G25: 70 | H25: 95
B26: 4 | C26: OH Line Switch | F26: 30 | G26: 45 | H26: 55
B27: 5 | C27: OH Line Switch Motor | F27: 15 | G27: 25 | H27: 25
B28: 6 | C28: OH Line Switch RTU | F28: 15 | G28: 20 | H28: 20
B29: 7 | C29: OH Integral Switches | F29: 35 | G29: 45 | H29: 60
B30: 8 | C30: OH Conductors | F30: 50 | G30: 60 | H30: 75 | J30: 1835 | K30: O/H Conductor and Devices | L30: 60 | M30: 0.01666666667 | N30: 60 | O30: 0.01666666667 | P30: No | Q30: No
B31: 9 | C31: OH Transformers & Voltage Regulators | F31: 30 | G31: 40 | H31: 60 | J31: 1850 | K31: Line Transformers | L31: 40 | M31: 0.025 | N31: 40 | O31: 0.025 | P31: No | Q31: No
B32: 10 | C32: OH Shunt Capacitor Banks | F32: 25 | G32: 30 | H32: 40
B33: 11 | C33: Reclosers | F33: 25 | G33: 40 | H33: 55
A34: TS & MS | B34: 12 | C34: Power Transformers | D34: Overall | F34: 30 | G34: 45 | H34: 60 | J34: 1820 | K34: Distribution Station Equipment | L34: 40 | M34: 0.025 | N34: 40 | O34: 0.025 | P34: No | Q34: No
D35: Bushing | F35: 10 | G35: 20 | H35: 30
D36: Tap Changer | F36: 20 | G36: 30 | H36: 60
B37: 13 | C37: Station Service Transformer | F37: 30 | G37: 45 | H37: 55
B38: 14 | C38: Station Grounding Transformer | F38: 30 | G38: 40 | H38: 40
B39: 15 | C39: Station DC System | D39: Overall | F39: 10 | G39: 20 | H39: 30
D40: Battery Bank | F40: 10 | G40: 15 | H40: 15
D41: Charger | F41: 20 | G41: 20 | H41: 30
B42: 16 | C42: Station Metal Clad Switchgear | D42: Overall | F42: 30 | G42: 40 | H42: 60
D43: Removable Breaker | F43: 25 | G43: 40 | H43: 60
B44: 17 | C44: Station Independent Breakers | F44: 35 | G44: 45 | H44: 65
B45: 18 | C45: Station Switch | F45: 30 | G45: 50 | H45: 60
B46: 19 | C46: Electromechanical Relays | F46: 25 | G46: 35 | H46: 50
B47: 20 | C47: Solid State Relays | F47: 10 | G47: 30 | H47: 45
B48: 21 | C48: Digital & Numeric Relays | F48: 15 | G48: 20 | H48: 20
B49: 22 | C49: Rigid Busbars | F49: 30 | G49: 55 | H49: 60
B50: 23 | C50: Steel Structure | F50: 35 | G50: 50 | H50: 90
A51: UG | B51: 24 | C51: Primary Paper Insulated Lead Covered (PILC) Cables | F51: 60 | G51: 65 | H51: 75
B52: 25 | C52: Primary Ethylene-Propylene Rubber (EPR) Cables | F52: 20 | G52: 25 | H52: 25
B53: 26 | C53: Primary Non-Tree Retardant (TR) Cross Linked Polyethylene (XLPE) Cables Direct Buried | F53: 20 | G53: 25 | H53: 30
B54: 27 | C54: Primary Non-TR XLPE Cables in Duct | F54: 20 | G54: 25 | H54: 30
B55: 29 | C55: Primary TR XLPE Cables in Duct | F55: 35 | G55: 40 | H55: 55 | J55: 1845 | K55: UG Conductors and Devices | L55: 45 | M55: 0.02222222222 | N55: 45 | O55: 0.02222222222 | P55: No | Q55: No
B56: 30 | C56: Secondary PILC Cables | F56: 70 | G56: 75 | H56: 80
B57: 31 | C57: Secondary Cables Direct Buried | F57: 25 | G57: 35 | H57: 40
B58: 32 | C58: Secondary Cables in Duct | F58: 35 | G58: 40 | H58: 60 | J58: 1855 | K58: UG Secondary Services | L58: 45 | M58: 0.02222222222 | N58: 45 | O58: 0.02222222222 | P58: No | Q58: No
B59: 33 | C59: Network Tranformers | D59: Overall | F59: 20 | G59: 35 | H59: 50
D60: Protector | F60: 20 | G60: 35 | H60: 40
B61: 34 | C61: Pad-Mounted Transformers | F61: 25 | G61: 40 | H61: 45
B62: 35 | C62: Submersible/Vault Transformers | F62: 25 | G62: 35 | H62: 45
B63: 36 | C63: UG Foundation | F63: 35 | G63: 55 | H63: 70
B64: 37 | C64: UG Vaults | D64: Overall | F64: 40 | G64: 60 | H64: 80
D65: Roof | F65: 20 | G65: 30 | H65: 45
B66: 38 | C66: UG Vault Switches | F66: 20 | G66: 35 | H66: 50
B67: 39 | C67: Pad-Mounted Switchgear | F67: 20 | G67: 30 | H67: 45
B68: 40 | C68: Ducts | F68: 30 | G68: 50 | H68: 85 | J68: 1840 | K68: UG Conduit | L68: 40 | M68: 0.025 | N68: 40 | O68: 0.025 | P68: No | Q68: No
B69: 41 | C69: Concrete Encased Duct Banks | F69: 35 | G69: 55 | H69: 80
B70: 42 | C70: Cable Chambers | F70: 50 | G70: 60 | H70: 80
A71: S | B71: 43 | C71: Remote SCADA | F71: 15 | G71: 20 | H71: 30 | J71: 1980 | K71: System Supervisory Equipment | L71: 10 | M71: 0.1 | N71: 10 | O71: 0.1 | P71: Yes | Q71: No
A74: Table F-2 from Kinetrics Report1
C76: Asset Details | F76: Useful Life Range | J76: USoA Account Number | K76: USoA Account Description | L76: Current | N76: Proposed | P76: Outside Range of Min, Max TUL?
B77: # | C77: Category| Component | Type | L77: Years | M77: Rate | N77: Years | O77: Rate | P77: Below Min Range | Q77: Above Max Range
B78: 1 | C78: Office Equipment | F78: 5 | G78: 15 | J78: 1915 | K78: Office Furniture and Equipment | L78: 10 | M78: =IF(ISERROR(1/L78), "", 1/L78) -> 0.1 | N78: 10 | O78: =IF(ISERROR(1/N78), "", 1/N78) -> 0.1 | P78: =IF(ISBLANK(N78),"",IF(N78<F78,"Yes","No")) -> No | Q78: =IF(ISBLANK(N78),"",IF(N78>G78,"Yes","No")) -> No
B79: 2 | C79: Vehicles | D79: Trucks & Buckets | F79: 5 | G79: 15 | J79: 1930 | K79: Transportation Equipment - Trucks/Buckets | L79: 5-8 | M79: =IF(ISERROR(1/L79), "", 1/L79) -> 2.289272469e-05 | N79: 5-8 | O79: =IF(ISERROR(1/N79), "", 1/N79) -> 2.289272469e-05 | P79: =IF(ISBLANK(N79),"",IF(N79<F79,"Yes","No")) -> No | Q79: =IF(ISBLANK(N79),"",IF(N79>G79,"Yes","No")) -> Yes
D80: Trailers | F80: 5 | G80: 20 | J80: 1930 | K80: Transportation Equipment - Trailers | L80: 10 | M80: 0.1 | N80: 10 | O80: 0.1 | P80: No | Q80: No
D81: Vans | F81: 5 | G81: 10
B82: 3 | C82: Administrative Buildings | F82: 50 | G82: 75 | J82: 1908 | K82: Buildings - Office | L82: 50 | M82: 0.02 | N82: 50 | O82: 0.02 | P82: No | Q82: No
B83: 4 | C83: Leasehold Improvements | F83: Lease dependent | J83: 1810 | K83: Leasehold Improvements | L83: 25 | M83: 0.04 | N83: 25 | O83: 0.04
B84: 5 | C84: Station Buildings | D84: Station Buildings | F84: 50 | G84: 75
D85: Parking | F85: 25 | G85: 30
D86: Fence | F86: 25 | G86: 60
D87: Roof | F87: 20 | G87: 30
B88: 6 | C88: Computer Equipment | D88: Hardware | F88: 3 | G88: 5 | J88: 1920 | K88: Computer Hardware | L88: 5 | M88: 0.2 | N88: 5 | O88: 0.2 | P88: No | Q88: No
D89: Software | F89: 2 | G89: 5 | J89: 1611 | K89: Computer Software | L89: 5 | M89: 0.2 | N89: 5 | O89: 0.2 | P89: No | Q89: No
B90: 7 | C90: Equipment | D90: Power Operated | F90: 5 | G90: 10
D91: Stores | F91: 5 | G91: 10 | J91: 1935 | K91: Stores Equipment | L91: 10 | M91: 0.1 | N91: 10 | O91: 0.1 | P91: No | Q91: No
D92: Tools, Shop, Garage Equipment | F92: 5 | G92: 10 | J92: 1940 | K92: Tools, Shop, Garage Equipment | L92: 10 | M92: 0.1 | N92: 10 | O92: 0.1 | P92: No | Q92: No
D93: Measurement & Testing Equipment | F93: 5 | G93: 10
B94: 8 | C94: Communication | D94: Towers | F94: 60 | G94: 70
D95: Wireless | F95: 2 | G95: 10 | J95: 1955 | K95: Communication | L95: 5-10 | M95: 2.286080059e-05 | N95: 5-10 | O95: 2.286080059e-05 | P95: No | Q95: Yes
B96: 9 | C96: Residential Energy Meters | F96: 25 | G96: 35 | J96: 1860 | K96: Stranded Meters | L96: 25 | M96: 0.04 | N96: 25 | O96: 0.04 | P96: No | Q96: No
B97: 10 | C97: Industrial/Commercial Energy Meters | F97: 25 | G97: 35
B98: 11 | C98: Wholesale Energy Meters | F98: 15 | G98: 30
B99: 12 | C99: Current & Potential Transformer (CT & PT) | F99: 35 | G99: 50
B100: 13 | C100: Smart Meters | F100: 5 | G100: 15 | J100: 1860 | K100: Smart Meters | L100: 15 | M100: 0.06666666667 | N100: 15 | O100: 0.06666666667 | P100: No | Q100: No
B101: 14 | C101: Repeaters - Smart Metering | F101: 10 | G101: 15
B102: 15 | C102: Data Collectors - Smart Metering | F102: 15 | G102: 20
A105: * TS & MS = Transformer and Municipal Stations UG = Underground Systems S = Monitoring and Control Systems
A107: Note 1: | B107: Tables F-1 and F-2 above are to be used as a reference in order to complete columns J, K, L and N.
B108: See pages 17-19 of Kinetrics Report

Sheet App.2-C_DepExp2014
A9: Appendix 2-C | Y9: CGAAP
A10: Depreciation and Amortization Expense | Y10: Revised CGAAP
Y11: MIFRS
A12: This appendix is to be completed in conjunction with the accounting instructions in Appendix 2-B
A14: Scenario that applies | C14: Applicable Years and Accounting Standard | R14: Year Reflected in Schedule Below | S14: Accounting Standard Reflected in Schedule Below | Y14: 2012
A15: Rebasing for the first time with depreciation policy changes made in 2012. | C15: This appendix must be duplicated and completed for the years 2012 to 2018. The appendix for 2012 is to be completed under CGAAP (prior to changes in depreciation policies). The appendix for 2012 to 2014 must be completed under Revised CGAAP (after changes in depreciation policies). The appendix for 2014 to 2018 is to be completed under MIFRS (2014 if changes to MIFRS are material). | Y15: 2013
A16: Rebasing for the first time with depreciation policy changes made in 2013. | C16: This appendix must be duplicated and completed for the years 2013 to 2018. The appendix for 2013 is to be completed under CGAAP (prior to changes in depreciation policies). The appendix for 2013 to 2014 must be completed under Revised CGAAP (after changes in depreciation policies). The appendix for 2014 to 2018 is to be completed under MIFRS (2014 if changes to MIFRS are material). | Y16: 2014
A17: Already rebased with depreciation policy changes in a prior rate application | C17: This appendix must be completed for 2014 to 2018. The appendix for 2014 is to be completed under Revised CGAAP (after changes in depreciation policies). The appendix for 2014 to 2018 is to be completed under MIFRS (2014 if changes to MIFRS are material). | R17: 2014 | S17: MIFRS | Y17: 2015
Y18: 2016
Y19: 2017
C20: Book Values | J20: Service Lives | N20: Depreciation Expense | Y20: 2018
A21: Account | B21: Description | C21: Opening Net Book Value of Existing Assets as at Date of Policy Change (Jan. 1) 1 | D21: Less Fully Depreciated 7 | E21: Net Amount of Existing Assets Before Policy Change to be Depreciated | F21: Opening Gross Book Value of Assets Acquired After Policy Change 2 | G21: Less Fully Depreciated 8 | H21: Net Amount of Assets Acquired After Policy Change to be Depreciated | I21: Current Year Additions | J21: Average Remaining Life of Assets Existing Before Policy Change 3 | K21: Depreciation Rate Assets Acquired After Policy Change | L21: Life of Assets Acquired After Policy Change 4 | M21: Depreciation Rate on New Additions | N21: Depreciation Expense on Assets Existing Before Policy Change | O21: Depreciation Expense on Assets Acquired After Policy Change | P21: Depreciation Expense on Current Year Additions 5 | Q21: Total Current Year Depreciation Expense | R21: Depreciation Expense per Appendix 2-BA Fixed Assets, Column J | S21: Variance 6
D22: b | E22: c = a-b | F22: d | G22: e | H22: f = d- e | I22: g | J22: h | K22: i = 1/h | L22: j | M22: k = 1/j | N22: l = c/h | O22: m = f/j | P22: n = g*0.5/j | Q22: o = l+m+n | R22: p | S22: q = p-o
A23: 1611 | B23: Computer Software (Formally known as Account 1925) | C23: ='App.2-BA_FA Cont 2012PS.'!M18+101982.95 -> 202058.09 | D23: 2897.96 | E23: =C23-D23 -> 199160.13 | F23: ='App.2-BA_FA Cont 2013PS'!E18+273573.27 -> 424835.48 | G23: 0 | H23: =F23-G23 -> 424835.48 | I23: ='App.2-BA_FA Cont 2014'!E18 -> -12733.11 | J23: 4.04 | K23: =IF(J23=0,0,1/J23) -> 0.2475247525 | L23: 5 | M23: =IF(L23=0,0,1/L23) -> 0.2 | N23: =IF(J23=0,0,+E23/J23) -> 49297.06188 | O23: =IF(L23=0,0,+H23/L23) -> 84967.096 | P23: =IF(L23=0,0,+(I23*0.5)/L23) -> -1273.311 | Q23: =IF(ISERROR(+N23+O23+P23), 0, +N23+O23+P23) -> 132990.8469 | R23: =-'App.2-BA_FA Cont 2014'!J18 -> 119173.81 | S23: =IF(ISERROR(+R23-122), 0, +R23-Q23) -> -13817.03688 | T23: 2014 Parry Sound Current Year additions depreciated over 1.5 years instead of .5 half year
A24: 1612 | B24: Land Rights (Formally known as Account 1906) | C24: ='App.2-BA_FA Cont 2012PS.'!M19+500857.5 -> 501177.48 | E24: =C24-D24 -> 501177.48 | F24: ='App.2-BA_FA Cont 2013PS'!E19+4031.24 -> 4031.24 | G24: 0 | H24: =F24-G24 -> 4031.24 | I24: =2226.6 -> 2226.6 | J24: 17 | K24: =IF(J24=0,0,1/J24) -> 0.05882352941 | L24: 0 | M24: =IF(L24=0,0,1/L24) -> 0 | N24: =IF(J24=0,0,+E24/J24) -> 29481.02824 | O24: =IF(L24=0,0,+H24/L24) -> 0 | P24: =IF(L24=0,0,+(I24*0.5)/L24) -> 0 | Q24: =IF(ISERROR(+N24+O24+P24), 0, +N24+O24+P24) -> 29481.02824 | R24: =-'App.2-BA_FA Cont 2014'!J19 -> 20.01 | S24: =IF(ISERROR(+R24-122), 0, +R24-Q24) -> -29461.01824 | T24: No depreciation has been taken since 2003 on $516,004 LP amount since it's an intangible asset… reviewed annually
A25: 1805 | B25: Land | C25: ='App.2-BA_FA Cont 2012PS.'!M20 -> 74305 | D25: 0 | E25: 74305 | F25: ='App.2-BA_FA Cont 2013PS'!E20 -> 0 | G25: 0 | H25: 0 | I25: 0 | K25: 0 | L25: 0 | M25: 0 | N25: 0 | O25: =IF(L25=0,0,+H25/L25) -> 0 | P25: 0 | Q25: 0 | R25: =-'App.2-BA_FA Cont 2014'!J20 -> 0 | S25: 0
A26: 1808 | B26: Buildings | C26: ='App.2-BA_FA Cont 2012PS.'!M21+1664949.74 -> 1664949.74 | D26: 0 | E26: 1664949.74 | F26: ='App.2-BA_FA Cont 2013PS'!E21+822.49 -> 822.49 | G26: 0 | H26: 822.49 | I26: 4534 | J26: 24.86775236 | K26: 0.0402127215 | L26: 50 | M26: 0.02 | N26: 66952.1602 | O26: 16.4498 | P26: 45.34 | Q26: 67013.95 | R26: =-'App.2-BA_FA Cont 2014'!J21 -> 67013.95 | S26: 0
A27: 1810 | B27: Leasehold Improvements | C27: ='App.2-BA_FA Cont 2012PS.'!M22 -> 0 | E27: 0 | F27: ='App.2-BA_FA Cont 2013PS'!E22 -> 0 | H27: 0 | K27: 0 | M27: 0 | N27: 0 | O27: 0 | P27: 0 | Q27: 0 | R27: =-'App.2-BA_FA Cont 2014'!J22 -> 0 | S27: 0
A28: 1815 | B28: Transformer Station Equipment >50 kV | C28: ='App.2-BA_FA Cont 2012PS.'!M23 -> 0 | E28: 0 | F28: ='App.2-BA_FA Cont 2013PS'!E23 -> 0 | H28: 0 | K28: 0 | M28: 0 | N28: 0 | O28: 0 | P28: 0 | Q28: 0 | R28: =-'App.2-BA_FA Cont 2014'!J23 -> 0 | S28: 0
A29: 1820 | B29: Distribution Station Equipment <50 kV | C29: ='App.2-BA_FA Cont 2012PS.'!M24+2332467 -> 3027099.81 | D29: 0 | E29: 3027099.81 | F29: ='App.2-BA_FA Cont 2013PS'!E24+45723.11+86854.22 -> 164540.33 | H29: 164540.33 | I29: ='App.2-BA_FA Cont 2014'!E24 -> 459436.14 | J29: 33.53809484 | K29: 0.02981683977 | L29: 40 | M29: 0.025 | N29: =IF(J29=0,0,+E29/J29) -> 90258.55 | O29: =IF(L29=0,0,+H29/L29) -> 4113.50825 | P29: =IF(L29=0,0,+(I29*0.5)/L29) -> 5742.95175 | Q29: =IF(ISERROR(+N29+O29+P29), 0, +N29+O29+P29) -> 100115.01 | R29: =-'App.2-BA_FA Cont 2014'!J24 -> 100115.01 | S29: 2.910383046e-11
A30: 1825 | B30: Storage Battery Equipment | C30: ='App.2-BA_FA Cont 2012PS.'!M25 -> 0 | E30: 0 | F30: ='App.2-BA_FA Cont 2013PS'!E25 -> 0 | H30: 0 | K30: 0 | M30: 0 | N30: 0 | O30: 0 | P30: 0 | Q30: 0 | R30: =-'App.2-BA_FA Cont 2014'!J25 -> 0 | S30: 0
A31: 1830 | B31: Poles, Towers & Fixtures | C31: ='App.2-BA_FA Cont 2012PS.'!M26+3027588 -> 3811041.8 | D31: 0 | E31: 3811041.8 | F31: ='App.2-BA_FA Cont 2013PS'!E26+291990.75+308171.79 -> 667772.54 | H31: 667772.54 | I31: ='App.2-BA_FA Cont 2014'!E26 -> 420606.76 | J31: 23.10308536 | K31: 0.043284262 | L31: 45 | M31: 0.02222222222 | N31: =IF(J31=0,0,+E31/J31) -> 164958.1318 | O31: =IF(L31=0,0,+H31/L31) -> 14839.38978 | P31: 4673.408444 | Q31: =IF(ISERROR(+N31+O31+P31), 0, +N31+O31+P31) -> 184470.93 | R31: =-'App.2-BA_FA Cont 2014'!J26 -> 184470.93 | S31: 0
A32: 1835 | B32: Overhead Conductors & Devices | C32: ='App.2-BA_FA Cont 2012PS.'!M27+2342799.16 -> 3139922.86 | E32: 3139922.86 | F32: ='App.2-BA_FA Cont 2013PS'!E27+232271.48+236980.69 -> 536842.12 | H32: 536842.12 | I32: ='App.2-BA_FA Cont 2014'!E27 -> 341516.67 | J32: 28.57250001 | K32: 0.03499868754 | L32: 60 | M32: 0.01666666667 | N32: 109893.1791 | O32: =IF(L32=0,0,+H32/L32) -> 8947.368667 | P32: 2845.97225 | Q32: 121686.52 | R32: =-'App.2-BA_FA Cont 2014'!J27 -> 121686.52 | S32: 0
A33: 1840 | B33: Underground Conduit | C33: ='App.2-BA_FA Cont 2012PS.'!M28+1620528.96 -> 1819436.57 | D33: 0 | E33: 1819436.57 | F33: ='App.2-BA_FA Cont 2013PS'!E28+321264.6 -> 343417.67 | H33: 343417.67 | I33: ='App.2-BA_FA Cont 2014'!E28 -> 310613.56 | J33: 26.18188986 | K33: 0.03819433988 | L33: 40 | M33: 0.025 | N33: 69492.17875 | O33: 8585.44175 | P33: 3882.6695 | Q33: 81960.29 | R33: =-'App.2-BA_FA Cont 2014'!J28 -> 81960.29 | S33: 0
A34: 1845 | B34: Underground Conductors & Devices | C34: ='App.2-BA_FA Cont 2012PS.'!M29+1343672.55 -> 1638245.81 | D34: 0 | E34: 1638245.81 | F34: ='App.2-BA_FA Cont 2013PS'!E29+660138.12 -> 688183.09 | H34: 688183.09 | I34: ='App.2-BA_FA Cont 2014'!E29 -> 116021.94 | J34: 23.63780279 | K34: 0.04230511646 | L34: 45 | M34: 0.02222222222 | N34: 69306.17978 | O34: 15292.95756 | P34: 1289.132667 | Q34: 85888.27 | R34: =-'App.2-BA_FA Cont 2014'!J29 -> 85888.27 | S34: 0
A35: 1850 | B35: Line Transformers | C35: ='App.2-BA_FA Cont 2012PS.'!M30+3647540.27 -> 4450851.58 | D35: 0 | E35: 4450851.58 | F35: ='App.2-BA_FA Cont 2013PS'!E30+1098403.82 -> 1137825.34 | H35: 1137825.34 | I35: ='App.2-BA_FA Cont 2014'!E30 -> 405415.38 | J35: 25.24553519 | K35: 0.03961096457 | L35: 40 | M35: 0.025 | N35: 176302.5242 | O35: 28445.6335 | P35: 5067.69225 | Q35: 209815.85 | R35: =-'App.2-BA_FA Cont 2014'!J30 -> 209815.85 | S35: 0
A36: 1855 | B36: Services (Overhead & Underground) | C36: ='App.2-BA_FA Cont 2012PS.'!M31+439514.52 -> 817072.83 | D36: 0 | E36: 817072.83 | F36: ='App.2-BA_FA Cont 2013PS'!E31+221322.64 -> 254949.22 | G36: 0 | H36: 254949.22 | I36: ='App.2-BA_FA Cont 2014'!E31 -> 34293.84 | J36: 40.095 | K36: 0.02494076568 | L36: 45 | M36: 0.02222222222 | N36: 20378.422 | O36: 5665.538222 | P36: 381.0426667 | Q36: 26425.00289 | R36: =-'App.2-BA_FA Cont 2014'!J31 -> 26425.01 | S36: 0.007113355779 | T36: $1,294 deprecition wasn't taken in 2014 on PS amounts because the formulas were setup incorrectly
A37: 1860 | B37: Meters | C37: ='App.2-BA_FA Cont 2012PS.'!M32+207286.94 -> 399178.01 | D37: =30208.7 -> 30208.7 | E37: 368969.31 | F37: ='App.2-BA_FA Cont 2013PS'!E32+1683460.55 -> 2572544.26 | G37: 0 | H37: 2572544.26 | I37: ='App.2-BA_FA Cont 2014'!E32 -> 199787.9 | J37: 13.7141 | K37: 0.07291765409 | L37: 15 | M37: 0.06666666667 | N37: 26904.37652 | O37: 171502.9507 | P37: 6659.596667 | Q37: 205066.9239 | R37: =-'App.2-BA_FA Cont 2014'!J32 -> 205066.85 | S37: -0.07385093201
A38: 1860 | B38: Meters (Smart Meters) | C38: ='App.2-BA_FA Cont 2012PS.'!M33 -> 0 | D38: 0 | E38: 0 | F38: ='App.2-BA_FA Cont 2013PS'!E33 -> 0 | G38: 0 | H38: 0 | I38: ='App.2-BA_FA Cont 2014'!E33 -> 0 | K38: 0 | L38: 0 | M38: 0 | N38: 0 | O38: 0 | P38: 0 | Q38: 0 | R38: =-'App.2-BA_FA Cont 2014'!J33 -> 0 | S38: 0
A39: 1905 | B39: Land | C39: ='App.2-BA_FA Cont 2012PS.'!M34+278455 -> 278455 | D39: 0 | E39: 278455 | F39: ='App.2-BA_FA Cont 2013PS'!E34 -> 0 | G39: 0 | H39: 0 | I39: ='App.2-BA_FA Cont 2014'!E34 -> 0 | K39: 0 | L39: 0 | M39: 0 | N39: 0 | O39: 0 | P39: 0 | Q39: 0 | R39: =-'App.2-BA_FA Cont 2014'!J34 -> 0 | S39: 0
A40: 1908 | B40: Buildings & Fixtures | C40: ='App.2-BA_FA Cont 2012PS.'!M35+123184 -> 123184 | D40: 0 | E40: 123184 | F40: ='App.2-BA_FA Cont 2013PS'!E35+5219.93 -> 5219.93 | G40: 0 | H40: 5219.93 | I40: ='App.2-BA_FA Cont 2014'!E35 -> 21045 | J40: 12.88373656 | K40: 0.07761723438 | L40: 50 | M40: 0.02 | N40: 9561.2014 | O40: 104.3986 | P40: 210.45 | Q40: 9876.05 | R40: =-'App.2-BA_FA Cont 2014'!J35 -> 9876.05 | S40: 0
A41: 1910 | B41: Leasehold Improvements | C41: ='App.2-BA_FA Cont 2012PS.'!M36 -> 47252.17 | D41: 0 | E41: 47252.17 | F41: ='App.2-BA_FA Cont 2013PS'!E36 -> 69346 | G41: 0 | H41: 69346 | I41: ='App.2-BA_FA Cont 2014'!E36 -> 24941.82 | J41: 50 | K41: 0.02 | L41: 25 | M41: 0.04 | N41: 945.0434 | O41: 2773.84 | P41: 498.8364 | Q41: 4217.7198 | R41: =-'App.2-BA_FA Cont 2014'!J36 -> 14154.02 | S41: 9936.3002 | T41: No depreciation was taken until 2014 - depreciated 5 years in 2014 so the numbers are different
A42: 1915 | B42: Office Furniture & Equipment (10 years) | C42: ='App.2-BA_FA Cont 2012PS.'!M37+105943.64 -> 115599.38 | D42: 61.99 | E42: 115537.39 | F42: ='App.2-BA_FA Cont 2013PS'!E37 -> 0 | G42: 0 | H42: 0 | I42: ='App.2-BA_FA Cont 2014'!E37 -> 3558 | J42: 7.0422 | K42: 0.1420010792 | L42: 10 | M42: 0.1 | N42: 16406.43407 | O42: 0 | P42: 177.9 | Q42: 16584.33407 | R42: =-'App.2-BA_FA Cont 2014'!J37 -> 16584.32 | S42: -0.01406889892
A43: 1915 | B43: Office Furniture & Equipment (5 years) | C43: ='App.2-BA_FA Cont 2012PS.'!M38 -> 0 | E43: 0 | F43: ='App.2-BA_FA Cont 2013PS'!E38 -> 0 | H43: 0 | I43: ='App.2-BA_FA Cont 2014'!E38 -> 0 | K43: 0 | M43: 0 | N43: 0 | O43: 0 | P43: 0 | Q43: 0 | R43: =-'App.2-BA_FA Cont 2014'!J38 -> 0 | S43: 0
A44: 1920 | B44: Computer Equipment - Hardware | C44: ='App.2-BA_FA Cont 2012PS.'!M39+27089.09 -> 44785.77 | D44: =10556.78 -> 10556.78 | E44: 34228.99 | F44: ='App.2-BA_FA Cont 2013PS'!E39+61079.86 -> 161644.04 | G44: 0 | H44: 161644.04 | I44: ='App.2-BA_FA Cont 2014'!E39 -> -7060 | J44: 3.8934 | K44: 0.256844917 | L44: 5 | M44: 0.2 | N44: 8791.542097 | O44: 32328.808 | P44: -706 | Q44: 40414.3501 | R44: =-'App.2-BA_FA Cont 2014'!J39 -> 32025.82 | S44: =IF(ISERROR(+R44-122), 0, +R44-Q44) -> -8388.530097 | T44: depreciated $6,557 more during 2014 due to PS Classification error
A45: 1920 | B45: Computer Equip.-Hardware(Post Mar. 22/04) | C45: ='App.2-BA_FA Cont 2012PS.'!M40 -> 0 | E45: 0 | F45: ='App.2-BA_FA Cont 2013PS'!E40 -> 0 | H45: 0 | I45: ='App.2-BA_FA Cont 2014'!E40 -> 0 | K45: 0 | M45: 0 | N45: 0 | O45: 0 | P45: 0 | Q45: 0 | R45: =-'App.2-BA_FA Cont 2014'!J40 -> 0 | S45: 0
A46: 1920 | B46: Computer Equip.-Hardware(Post Mar. 19/07) | C46: ='App.2-BA_FA Cont 2012PS.'!M41 -> 0 | E46: 0 | F46: ='App.2-BA_FA Cont 2013PS'!E41 -> 0 | H46: 0 | I46: ='App.2-BA_FA Cont 2014'!E41 -> 0 | K46: 0 | M46: 0 | N46: 0 | O46: 0 | P46: 0 | Q46: 0 | R46: =-'App.2-BA_FA Cont 2014'!J41 -> 0 | S46: 0
A47: 1930 | B47: Transportation Equipment | C47: ='App.2-BA_FA Cont 2012PS.'!M42+410639.35 -> 594966.23 | D47: =14693.44 -> 14693.44 | E47: 580272.79 | F47: ='App.2-BA_FA Cont 2013PS'!E42+316400.24 -> 406993.24 | G47: 0 | H47: 406993.24 | I47: ='App.2-BA_FA Cont 2014'!E42 -> 149923.82 | J47: 5.68946174 | K47: 0.1757635512 | L47: 8 | M47: 0.125 | N47: 101990.8062 | O47: 50874.155 | P47: 9370.23875 | Q47: 162235.2 | R47: =-'App.2-BA_FA Cont 2014'!J42 -> 162235.2 | S47: 0
A48: 1935 | B48: Stores Equipment | C48: 2384.23 | E48: 2384.23 | F48: ='App.2-BA_FA Cont 2013PS'!E43 -> 0 | G48: 0 | H48: 0 | I48: ='App.2-BA_FA Cont 2014'!E43+'App.2-BA_FA Cont 2014'!F43 -> 0 | J48: 4.1306 | K48: 0.2420955793 | L48: 10 | M48: 0.1 | N48: 577.2115431 | O48: 0 | P48: 0 | Q48: 577.2115431 | R48: =-'App.2-BA_FA Cont 2014'!J43 -> 577.21 | S48: -0.001543117223
A49: 1940 | B49: Tools, Shop & Garage Equipment | C49: ='App.2-BA_FA Cont 2012PS.'!M44+78319.34 -> 79296.61 | D49: 2528.27 | E49: 76768.34 | F49: ='App.2-BA_FA Cont 2013PS'!E44+9878.95 -> 9878.95 | G49: 0 | H49: 9878.95 | I49: ='App.2-BA_FA Cont 2014'!E44+'App.2-BA_FA Cont 2014'!F44 -> 20059.63 | J49: 6.5958 | K49: 0.1516116316 | L49: 10 | M49: 0.1 | N49: 11638.97329 | O49: 987.895 | P49: 1002.9815 | Q49: 13629.84979 | R49: =-'App.2-BA_FA Cont 2014'!J44 -> 13629.89 | S49: 0.04021396949
A50: 1945 | B50: Measurement & Testing Equipment | C50: ='App.2-BA_FA Cont 2012PS.'!M45 -> 0 | E50: 0 | F50: ='App.2-BA_FA Cont 2013PS'!E45 -> 0 | H50: 0 | I50: ='App.2-BA_FA Cont 2014'!E45+'App.2-BA_FA Cont 2014'!F45 -> 0 | K50: 0 | M50: 0 | N50: 0 | O50: 0 | P50: 0 | Q50: 0 | R50: =-'App.2-BA_FA Cont 2014'!J45 -> 0 | S50: 0
A51: 1950 | B51: Power Operated Equipment | C51: ='App.2-BA_FA Cont 2012PS.'!M46 -> 0 | E51: 0 | F51: ='App.2-BA_FA Cont 2013PS'!E46 -> 0 | H51: 0 | I51: ='App.2-BA_FA Cont 2014'!E46+'App.2-BA_FA Cont 2014'!F46 -> 0 | K51: 0 | M51: 0 | N51: 0 | O51: 0 | P51: 0 | Q51: 0 | R51: =-'App.2-BA_FA Cont 2014'!J46 -> 0 | S51: 0
A52: 1955 | B52: Communications Equipment | C52: 59959.36 | D52: 2435.22 | E52: 57524.14 | F52: ='App.2-BA_FA Cont 2013PS'!E47+644.78 -> 644.78 | G52: 0 | H52: 644.78 | I52: ='App.2-BA_FA Cont 2014'!E47+'App.2-BA_FA Cont 2014'!F47 -> 295.5 | J52: 5.7802 | K52: 0.1730043943 | L52: 10 | M52: 0.1 | N52: 9951.928999 | O52: =IF(L52=0,0,+H52/L52) -> 64.478 | P52: 14.775 | Q52: 10031.182 | R52: =-'App.2-BA_FA Cont 2014'!J47 -> 10031.23 | S52: =IF(ISERROR(+R52-122), 0, +R52-Q52) -> 0.04800100343
A53: 1955 | B53: Communication Equipment (Smart Meters) | C53: ='App.2-BA_FA Cont 2012PS.'!M48 -> 0 | D53: 0 | E53: 0 | F53: ='App.2-BA_FA Cont 2013PS'!E48+410583 -> 410583 | G53: 0 | H53: 410583 | I53: ='App.2-BA_FA Cont 2014'!E48+'App.2-BA_FA Cont 2014'!F48 -> 0 | J53: 0 | K53: 0 | L53: 5 | M53: 0.2 | N53: 0 | O53: 82116.6 | P53: 0 | Q53: 82116.6 | R53: =-'App.2-BA_FA Cont 2014'!J48 -> 82116.65 | S53: =IF(ISERROR(+R53-122), 0, +R53-Q53) -> 0.04999999999 | T53: PSP - Depreciated Smart meteres for 2.5 years in 2012 & the estimate depreciated it over 5 years.
A54: 1960 | B54: Miscellaneous Equipment | C54: ='App.2-BA_FA Cont 2012PS.'!M49 -> 0 | E54: 0 | F54: ='App.2-BA_FA Cont 2013PS'!E49 -> 0 | H54: 0 | I54: ='App.2-BA_FA Cont 2014'!E49+'App.2-BA_FA Cont 2014'!F49 -> 0 | K54: 0 | M54: 0 | N54: 0 | O54: 0 | P54: 0 | Q54: 0 | R54: =-'App.2-BA_FA Cont 2014'!J49 -> 0 | S54: 0
A55: 1970 | B55: Load Management Controls Customer Premises | C55: ='App.2-BA_FA Cont 2012PS.'!M50 -> 0 | E55: 0 | F55: ='App.2-BA_FA Cont 2013PS'!E50 -> 0 | H55: 0 | I55: ='App.2-BA_FA Cont 2014'!E50+'App.2-BA_FA Cont 2014'!F50 -> 0 | K55: 0 | M55: 0 | N55: 0 | O55: 0 | P55: 0 | Q55: 0 | R55: =-'App.2-BA_FA Cont 2014'!J50 -> 0 | S55: 0
A56: 1975 | B56: Load Management Controls Utility Premises | C56: ='App.2-BA_FA Cont 2012PS.'!M51 -> 0 | E56: 0 | F56: ='App.2-BA_FA Cont 2013PS'!E51 -> 0 | H56: 0 | I56: ='App.2-BA_FA Cont 2014'!E51+'App.2-BA_FA Cont 2014'!F51 -> 0 | K56: 0 | M56: 0 | N56: 0 | O56: 0 | P56: 0 | Q56: 0 | R56: =-'App.2-BA_FA Cont 2014'!J51 -> 0 | S56: 0
A57: 1980 | B57: System Supervisor Equipment | C57: ='App.2-BA_FA Cont 2012PS.'!M52 -> 0 | D57: 0 | E57: 0 | F57: ='App.2-BA_FA Cont 2013PS'!E52+176033 -> 176033 | G57: 0 | H57: 176033 | I57: ='App.2-BA_FA Cont 2014'!E52+'App.2-BA_FA Cont 2014'!F52 -> 52982.2 | J57: 0 | K57: 0 | L57: 10 | M57: 0.1 | N57: 0 | O57: 17603.3 | P57: 2649.11 | Q57: 20252.41 | R57: =-'App.2-BA_FA Cont 2014'!J52 -> 20252.42 | S57: 0.009999999998
A58: 1985 | B58: Miscellaneous Fixed Assets | C58: ='App.2-BA_FA Cont 2012PS.'!M53 -> 0 | E58: 0 | F58: ='App.2-BA_FA Cont 2013PS'!E53 -> 0 | H58: 0 | I58: ='App.2-BA_FA Cont 2014'!E53+'App.2-BA_FA Cont 2014'!F53 -> 0 | K58: 0 | M58: 0 | N58: 0 | O58: 0 | P58: 0 | Q58: 0 | R58: =-'App.2-BA_FA Cont 2014'!J53 -> 0 | S58: 0
A59: 1990 | B59: Other Tangible Property | C59: ='App.2-BA_FA Cont 2012PS.'!M54 -> 0 | E59: 0 | F59: ='App.2-BA_FA Cont 2013PS'!E54 -> 0 | H59: 0 | I59: ='App.2-BA_FA Cont 2014'!E54+'App.2-BA_FA Cont 2014'!F54 -> 0 | K59: 0 | M59: 0 | N59: 0 | O59: 0 | P59: 0 | Q59: 0 | R59: =-'App.2-BA_FA Cont 2014'!J54 -> 0 | S59: 0
A60: 1995 | B60: Contributions & Grants | C60: ='App.2-BA_FA Cont 2012PS.'!M55-3923063 -> -4624478 | D60: 0 | E60: =C60-D60 -> -4624478 | F60: ='App.2-BA_FA Cont 2013PS'!E55-1276753 -> -1330180.85 | G60: 0 | H60: =F60-G60 -> -1330180.85 | I60: ='App.2-BA_FA Cont 2014'!E55+'App.2-BA_FA Cont 2014'!F55 -> -281051.61 | J60: 36.90971584 | K60: =IF(J60=0,0,1/J60) -> 0.02709313733 | L60: 42.5 | M60: =IF(L60=0,0,1/L60) -> 0.02352941176 | N60: =IF(J60=0,0,+E60/J60) -> -125291.6175 | O60: =IF(L60=0,0,+H60/L60) -> -31298.37294 | P60: =IF(L60=0,0,+(I60*0.5)/L60) -> -3306.489529 | Q60: =IF(ISERROR(+N60+O60+P60), 0, +N60+O60+P60) -> -159896.48 | R60: =-'App.2-BA_FA Cont 2014'!J55 -> -159896.48 | S60: =IF(ISERROR(+R60-122), 0, +R60-Q60) -> 0
A61: 2055 | B61: Deferred Revenue | C61: ='App.2-BA_FA Cont 2012PS.'!M56 -> 0 | E61: =C61-D61 -> 0 | F61: ='App.2-BA_FA Cont 2013PS'!E56 -> 0 | H61: =F61-G61 -> 0 | I61: ='App.2-BA_FA Cont 2014'!E56+'App.2-BA_FA Cont 2014'!F56 -> 0 | K61: =IF(J61=0,0,1/J61) -> 0 | M61: =IF(L61=0,0,1/L61) -> 0 | N61: =IF(J61=0,0,+E61/J61) -> 0 | O61: =IF(L61=0,0,+H61/L61) -> 0 | P61: =IF(L61=0,0,+(I61*0.5)/L61) -> 0 | Q61: =IF(ISERROR(+N61+O61+P61), 0, +N61+O61+P61) -> 0 | R61: =-'App.2-BA_FA Cont 2014'!J56 -> 0 | S61: =IF(ISERROR(+R61-122), 0, +R61-Q61) -> 0
A62: 2055 | B62: Construction in Process | C62: ='App.2-BA_FA Cont 2012PS.'!M57 -> 117470 | D62: 0 | E62: 117470 | F62: ='App.2-BA_FA Cont 2013PS'!E57 -> 30184 | H62: 30184 | I62: ='App.2-BA_FA Cont 2014'!E57+'App.2-BA_FA Cont 2014'!F57 -> -54453.84 | K62: 0 | L62: 0 | M62: 0 | N62: 0 | O62: 0 | P62: 0 | Q62: 0 | R62: =-'App.2-BA_FA Cont 2014'!J57 -> 0 | S62: 0
B63: Total | C63: =SUM(C23:C62) -> 18384214.33 | D63: 63382.36 | E63: 18320831.97 | F63: 6736109.87 | G63: 0 | H63: 6736109.87 | I63: 2211960.2 | N63: =SUM(N23:N62) -> 907795.316 | O63: 497931.4358 | P63: 39226.29732 | Q63: 1444953.049 | R63: 1403222.83 | S63: -41730.21915
A66: General: | B66: Applicants are to complete this appendix to show the reasonability of the depreciation expense that is included in rate base via. Accumulated depreciation and the revenue requirement.
B67: Applicants must provide a breakdown of depreciation and amortization expense in the above format for all relevant accounts. Balances presented in the table should exclude asset retirement obligations (AROs) and the related depreciation and accretion expense. These should be disclosed separately consistent with the Notes of historical Audited Financial Statements.
A70: Notes:
A71: 1 | B71: This is the net book value of assets that existed as at the date of the utility's change in depreciation policies (i.e. as at Jan. 1, 2012 or Jan. 1, 2013). These assets are to be depreciated at the average remaining service life. This amount will not change in years subsequent to the date of the utility's change in depreciation policies. This column is expected to be used until the assets that existed as at the date of the utility's change in depreciation policies are fully depreciated.
A72: 2 | B72: This is the opening gross book value of assets that have been acquired after the date of the utilities change in depreciation policies (i.e. additions starting in 2012/2013 for those who changed policies Jan. 1, 2012/2013). These assets are to be depreciated at the revised service life. The amount is expected to be equal to the gross book value of the prior year plus the prior year's additions.
A73: 3 | B73: A recalculation should be performed to determine the average remaining life of opening balance of assets (i.e. excluding current year's additions) under the change in policies under CGAAP. For example, Asset A had a useful life of 20 years under CGAAP without the change in policies. On January 1 of the year of policy changes, Asset A was 3 years depreciated. As a result, Asset A would have a remaining service life of 17 years (20 years less 3 years) as at January 1 of the year of policy changes. Due to making the change in policies under CGAAP, management re-assessed the asset useful lives and concluded that the revised useful life of Asset A is now 30 years. Therefore, the average remaining useful life of the opening balance of Asset A is determined to be 27 years (30 years less 3 years) under the revised CGAAP as at January 1 of the year of policy changes.
A74: 4 | B74: The useful life used should be consistent with the OEB's regulatory accounting policies as set out in the Accounting Procedures Handbook for Electricity Distributors, effective Jan. 1, 2012 and also with the Report of the Board, Transition to International Financial Reporting Standards, EB-2008-0408, and the Kinectrics Report.
A75: 5 | B75: Board policy of the "half-year" rule - the applicant must ensure that additions in the year attract a half-year depreciation expense in the first year. Deviations from this standard practice must be supported in the application.
A76: 6 | B76: The applicant must provide an explanation of material variances in evidence.
A77: 7 | B77: This should include assets in column a (excel column C) that become fully depreciated since the date of the policy change. The amount input in b (excel column D) should equal the net book value of the asset as at the date of depreciation policy change
A78: 8 | B78: This should include assets in column d (excel column f) that have become fully depreciated. The amount input in e (excel column G) should equal the gross book value of the asset

Sheet App.2-C_DepExp2015
A9: Appendix 2-C | Y9: CGAAP
A10: Depreciation and Amortization Expense | Y10: Revised CGAAP
Y11: MIFRS
A12: This appendix is to be completed in conjunction with the accounting instructions in Appendix 2-B
A14: Scenario that applies | C14: Applicable Years and Accounting Standard | R14: Year Reflected in Schedule Below | S14: Accounting Standard Reflected in Schedule Below | Y14: 2012
A15: Rebasing for the first time with depreciation policy changes made in 2012. | C15: This appendix must be duplicated and completed for the years 2012 to 2018. The appendix for 2012 is to be completed under CGAAP (prior to changes in depreciation policies). The appendix for 2012 to 2014 must be completed under Revised CGAAP (after changes in depreciation policies). The appendix for 2014 to 2018 is to be completed under MIFRS (2014 if changes to MIFRS are material). | Y15: 2013
A16: Rebasing for the first time with depreciation policy changes made in 2013. | C16: This appendix must be duplicated and completed for the years 2013 to 2018. The appendix for 2013 is to be completed under CGAAP (prior to changes in depreciation policies). The appendix for 2013 to 2014 must be completed under Revised CGAAP (after changes in depreciation policies). The appendix for 2014 to 2018 is to be completed under MIFRS (2014 if changes to MIFRS are material). | Y16: 2014
A17: Already rebased with depreciation policy changes in a prior rate application | C17: This appendix must be completed for 2014 to 2018. The appendix for 2014 is to be completed under Revised CGAAP (after changes in depreciation policies). The appendix for 2014 to 2018 is to be completed under MIFRS (2014 if changes to MIFRS are material). | R17: 2015 | S17: MIFRS | Y17: 2015
Y18: 2016
Y19: 2017
C20: Book Values | J20: Service Lives | N20: Depreciation Expense | Y20: 2018
A21: Account | B21: Description | C21: Opening Net Book Value of Existing Assets as at Date of Policy Change (Jan. 1) 1 | D21: Less Fully Depreciated 7 | E21: Net Amount of Existing Assets Before Policy Change to be Depreciated | F21: Opening Gross Book Value of Assets Acquired After Policy Change 2 | G21: Less Fully Depreciated 8 | H21: Net Amount of Assets Acquired After Policy Change to be Depreciated | I21: Current Year Additions | J21: Average Remaining Life of Assets Existing Before Policy Change 3 | K21: Depreciation Rate Assets Acquired After Policy Change | L21: Life of Assets Acquired After Policy Change 4 | M21: Depreciation Rate on New Additions | N21: Depreciation Expense on Assets Existing Before Policy Change | O21: Depreciation Expense on Assets Acquired After Policy Change | P21: Depreciation Expense on Current Year Additions 5 | Q21: Total Current Year Depreciation Expense | R21: Depreciation Expense per Appendix 2-BA Fixed Assets, Column J | S21: Variance 6
D22: b | E22: c = a-b | F22: d | G22: e | H22: f = d- e | I22: g | J22: h | K22: i = 1/h | L22: j | M22: k = 1/j | N22: l = c/h | O22: m = f/j | P22: n = g*0.5/j | Q22: o = l+m+n | R22: p | S22: q = p-o
A23: 1611 | B23: Computer Software (Formally known as Account 1925) | C23: ='App.2-C_DepExp2014'!C23 -> 202058.09 | D23: ='App.2-C_DepExp2014'!D23+78010.96+16480.52+1872 -> 99261.44 | E23: =C23-D23 -> 102796.65 | F23: ='App.2-C_DepExp2014'!F23+'App.2-C_DepExp2014'!I23 -> 412102.37 | G23: ='App.2-C_DepExp2014'!G23 -> 0 | H23: =F23-G23 -> 412102.37 | I23: ='App.2-BA_FA Cont 2015'!E18 -> 22771.38 | J23: 4.04 | K23: =IF(J23=0,0,1/J23) -> 0.2475247525 | L23: 5 | M23: =IF(L23=0,0,1/L23) -> 0.2 | N23: =IF(J23=0,0,+E23/J23) -> 25444.71535 | O23: =IF(L23=0,0,+H23/L23) -> 82420.474 | P23: =IF(L23=0,0,+(I23*0.5)/L23) -> 2277.138 | Q23: =IF(ISERROR(+N23+O23+P23), 0, +N23+O23+P23) -> 110142.3273 | R23: =-'App.2-BA_FA Cont 2015'!J18 -> 85847.4 | S23: =IF(ISERROR(+R23-122), 0, +R23-Q23) -> -24294.92735 | T23: Only $21,011 for prior to policy change & Smart meteres were in the final year of depreciation so the half year rule applies $20,236.14 less depreciated
A24: 1612 | B24: Land Rights (Formally known as Account 1906) | C24: ='App.2-C_DepExp2014'!C24 -> 501177.48 | D24: ='App.2-C_DepExp2014'!D24 -> 0 | E24: =C24-D24 -> 501177.48 | F24: ='App.2-C_DepExp2014'!F24+'App.2-C_DepExp2014'!I24 -> 6257.84 | G24: ='App.2-C_DepExp2014'!G24 -> 0 | H24: =F24-G24 -> 6257.84 | I24: ='App.2-BA_FA Cont 2015'!E19 -> 18121.02 | J24: 17 | K24: =IF(J24=0,0,1/J24) -> 0.05882352941 | L24: 0 | M24: =IF(L24=0,0,1/L24) -> 0 | N24: =IF(J24=0,0,+E24/J24) -> 29481.02824 | O24: =IF(L24=0,0,+H24/L24) -> 0 | P24: =IF(L24=0,0,+(I24*0.5)/L24) -> 0 | Q24: =IF(ISERROR(+N24+O24+P24), 0, +N24+O24+P24) -> 29481.02824 | R24: =-'App.2-BA_FA Cont 2015'!J19 -> 20 | S24: =IF(ISERROR(+R24-122), 0, +R24-Q24) -> -29461.02824 | T24: No depreciation has been taken since 2003 on $516,004 LP amount since it's an intangible asset… reviewed annually ($500 is being depreciated over 25 years)
A25: 1805 | B25: Land | C25: ='App.2-C_DepExp2014'!C25 -> 74305 | D25: ='App.2-C_DepExp2014'!D25 -> 0 | E25: 74305 | F25: ='App.2-C_DepExp2014'!F25+'App.2-C_DepExp2014'!I25 -> 0 | G25: ='App.2-C_DepExp2014'!G25 -> 0 | H25: 0 | I25: ='App.2-BA_FA Cont 2015'!E20 -> 0 | K25: 0 | L25: 0 | M25: 0 | N25: 0 | O25: =IF(L25=0,0,+H25/L25) -> 0 | P25: 0 | Q25: 0 | R25: =-'App.2-BA_FA Cont 2015'!J20 -> 0 | S25: 0
A26: 1808 | B26: Buildings | C26: ='App.2-C_DepExp2014'!C26 -> 1664949.74 | D26: ='App.2-C_DepExp2014'!D26 -> 0 | E26: 1664949.74 | F26: ='App.2-C_DepExp2014'!F26+'App.2-C_DepExp2014'!I26 -> 5356.49 | G26: ='App.2-C_DepExp2014'!G26 -> 0 | H26: 5356.49 | I26: ='App.2-BA_FA Cont 2015'!E21 -> 341649.66 | J26: 24.86775236 | K26: 0.0402127215 | L26: 50 | M26: 0.02 | N26: 66952.1602 | O26: 107.1298 | P26: 3416.4966 | Q26: 70475.7866 | R26: =-'App.2-BA_FA Cont 2015'!J21 -> 92809.6 | S26: 22333.8134 | T26: $71,338 based on Dep Schedule - Not sure where the $92,810 comes from?
A27: 1810 | B27: Leasehold Improvements | C27: ='App.2-C_DepExp2014'!C27 -> 0 | D27: ='App.2-C_DepExp2014'!D27 -> 0 | E27: 0 | F27: ='App.2-C_DepExp2014'!F27+'App.2-C_DepExp2014'!I27 -> 0 | G27: ='App.2-C_DepExp2014'!G27 -> 0 | H27: 0 | I27: ='App.2-BA_FA Cont 2015'!E22 -> 0 | K27: 0 | M27: 0 | N27: 0 | O27: 0 | P27: 0 | Q27: 0 | R27: =-'App.2-BA_FA Cont 2015'!J22 -> 0 | S27: 0
A28: 1815 | B28: Transformer Station Equipment >50 kV | C28: ='App.2-C_DepExp2014'!C28 -> 0 | D28: ='App.2-C_DepExp2014'!D28 -> 0 | E28: 0 | F28: ='App.2-C_DepExp2014'!F28+'App.2-C_DepExp2014'!I28 -> 0 | G28: ='App.2-C_DepExp2014'!G28 -> 0 | H28: 0 | I28: ='App.2-BA_FA Cont 2015'!E23 -> 0 | K28: 0 | M28: 0 | N28: 0 | O28: 0 | P28: 0 | Q28: 0 | R28: =-'App.2-BA_FA Cont 2015'!J23 -> 0 | S28: 0
A29: 1820 | B29: Distribution Station Equipment <50 kV | C29: ='App.2-C_DepExp2014'!C29 -> 3027099.81 | D29: ='App.2-C_DepExp2014'!D29 -> 0 | E29: 3027099.81 | F29: ='App.2-C_DepExp2014'!F29+'App.2-C_DepExp2014'!I29 -> 623976.47 | G29: ='App.2-C_DepExp2014'!G29 -> 0 | H29: 623976.47 | I29: ='App.2-BA_FA Cont 2015'!E24 -> 642738.89 | J29: 33.53809484 | K29: 0.02981683977 | L29: 40 | M29: 0.025 | N29: =IF(J29=0,0,+E29/J29) -> 90258.55 | O29: =IF(L29=0,0,+H29/L29) -> 15599.41175 | P29: =IF(L29=0,0,+(I29*0.5)/L29) -> 8034.236125 | Q29: =IF(ISERROR(+N29+O29+P29), 0, +N29+O29+P29) -> 113892.1979 | R29: =-'App.2-BA_FA Cont 2015'!J24 -> 113892.19 | S29: -0.007874999981
A30: 1825 | B30: Storage Battery Equipment | C30: ='App.2-C_DepExp2014'!C30 -> 0 | D30: ='App.2-C_DepExp2014'!D30 -> 0 | E30: 0 | F30: ='App.2-C_DepExp2014'!F30+'App.2-C_DepExp2014'!I30 -> 0 | G30: ='App.2-C_DepExp2014'!G30 -> 0 | H30: 0 | I30: ='App.2-BA_FA Cont 2015'!E25 -> 0 | K30: 0 | M30: 0 | N30: 0 | O30: 0 | P30: 0 | Q30: 0 | R30: =-'App.2-BA_FA Cont 2015'!J25 -> 0 | S30: 0
A31: 1830 | B31: Poles, Towers & Fixtures | C31: ='App.2-C_DepExp2014'!C31 -> 3811041.8 | D31: ='App.2-C_DepExp2014'!D31 -> 0 | E31: 3811041.8 | F31: ='App.2-C_DepExp2014'!F31+'App.2-C_DepExp2014'!I31 -> 1088379.3 | G31: ='App.2-C_DepExp2014'!G31 -> 0 | H31: 1088379.3 | I31: ='App.2-BA_FA Cont 2015'!E26 -> 712111.39 | J31: 23.10308536 | K31: 0.043284262 | L31: 45 | M31: 0.02222222222 | N31: =IF(J31=0,0,+E31/J31) -> 164958.1318 | O31: =IF(L31=0,0,+H31/L31) -> 24186.20667 | P31: 7912.348778 | Q31: =IF(ISERROR(+N31+O31+P31), 0, +N31+O31+P31) -> 197056.6872 | R31: =-'App.2-BA_FA Cont 2015'!J26 -> 191510.64 | S31: -5546.047222
A32: 1835 | B32: Overhead Conductors & Devices | C32: ='App.2-C_DepExp2014'!C32 -> 3139922.86 | D32: ='App.2-C_DepExp2014'!D32 -> 0 | E32: 3139922.86 | F32: ='App.2-C_DepExp2014'!F32+'App.2-C_DepExp2014'!I32 -> 878358.79 | G32: ='App.2-C_DepExp2014'!G32 -> 0 | H32: 878358.79 | I32: ='App.2-BA_FA Cont 2015'!E27 -> 290371.22 | J32: 28.57250001 | K32: 0.03499868754 | L32: 60 | M32: 0.01666666667 | N32: 109893.1791 | O32: =IF(L32=0,0,+H32/L32) -> 14639.31317 | P32: 2419.760167 | Q32: 126952.2524 | R32: =-'App.2-BA_FA Cont 2015'!J27 -> 124341.77 | S32: -2610.482417
A33: 1840 | B33: Underground Conduit | C33: ='App.2-C_DepExp2014'!C33 -> 1819436.57 | D33: ='App.2-C_DepExp2014'!D33 -> 0 | E33: 1819436.57 | F33: ='App.2-C_DepExp2014'!F33+'App.2-C_DepExp2014'!I33 -> 654031.23 | G33: ='App.2-C_DepExp2014'!G33 -> 0 | H33: 654031.23 | I33: ='App.2-BA_FA Cont 2015'!E28 -> 230253.32 | J33: 26.18188986 | K33: 0.03819433988 | L33: 40 | M33: 0.025 | N33: 69492.17875 | O33: 16350.78075 | P33: 2878.1665 | Q33: 88721.126 | R33: =-'App.2-BA_FA Cont 2015'!J28 -> 87335.37 | S33: -1385.756
A34: 1845 | B34: Underground Conductors & Devices | C34: ='App.2-C_DepExp2014'!C34 -> 1638245.81 | D34: ='App.2-C_DepExp2014'!D34 -> 0 | E34: 1638245.81 | F34: ='App.2-C_DepExp2014'!F34+'App.2-C_DepExp2014'!I34 -> 804205.03 | G34: ='App.2-C_DepExp2014'!G34 -> 0 | H34: 804205.03 | I34: ='App.2-BA_FA Cont 2015'!E29 -> 192567.39 | J34: 23.63780279 | K34: 0.04230511646 | L34: 45 | M34: 0.02222222222 | N34: 69306.17978 | O34: 17871.22289 | P34: 2139.637667 | Q34: 89317.04033 | R34: =-'App.2-BA_FA Cont 2015'!J29 -> 90102.1 | S34: 785.0596667
A35: 1850 | B35: Line Transformers | C35: ='App.2-C_DepExp2014'!C35 -> 4450851.58 | D35: ='App.2-C_DepExp2014'!D35 -> 0 | E35: 4450851.58 | F35: ='App.2-C_DepExp2014'!F35+'App.2-C_DepExp2014'!I35 -> 1543240.72 | G35: ='App.2-C_DepExp2014'!G35 -> 0 | H35: 1543240.72 | I35: ='App.2-BA_FA Cont 2015'!E30 -> 279896.22 | J35: 25.24553519 | K35: 0.03961096457 | L35: 40 | M35: 0.025 | N35: 176302.5242 | O35: 38581.018 | P35: 3498.70275 | Q35: 218382.245 | R35: =-'App.2-BA_FA Cont 2015'!J30 -> 212464.07 | S35: -5918.175 | T35: $169,474 prior to policy change
A36: 1855 | B36: Services (Overhead & Underground) | C36: ='App.2-C_DepExp2014'!C36 -> 817072.83 | D36: ='App.2-C_DepExp2014'!D36 -> 0 | E36: 817072.83 | F36: ='App.2-C_DepExp2014'!F36+'App.2-C_DepExp2014'!I36 -> 289243.06 | G36: ='App.2-C_DepExp2014'!G36 -> 0 | H36: 289243.06 | I36: ='App.2-BA_FA Cont 2015'!E31 -> 17567.93 | J36: 40.095 | K36: 0.02494076568 | L36: 45 | M36: 0.02222222222 | N36: 20378.422 | O36: 6427.623556 | P36: 195.1992222 | Q36: 27001.24478 | R36: =-'App.2-BA_FA Cont 2015'!J31 -> 27796.86 | S36: 795.6152245
A37: 1860 | B37: Meters | C37: ='App.2-C_DepExp2014'!C37 -> 399178.01 | D37: ='App.2-C_DepExp2014'!D37+1517.47 -> 31726.17 | E37: 367451.84 | F37: ='App.2-C_DepExp2014'!F37+'App.2-C_DepExp2014'!I37 -> 2772332.16 | G37: ='App.2-C_DepExp2014'!G37 -> 0 | H37: 2772332.16 | I37: ='App.2-BA_FA Cont 2015'!E32 -> 100065.96 | J37: 13.7141 | K37: 0.07291765409 | L37: 15 | M37: 0.06666666667 | N37: 26793.72617 | O37: 184822.144 | P37: 3335.532 | Q37: 214951.4022 | R37: =-'App.2-BA_FA Cont 2015'!J32 -> 206685.33 | S37: -8266.072165
A38: 1860 | B38: Meters (Smart Meters) | C38: ='App.2-C_DepExp2014'!C38 -> 0 | D38: ='App.2-C_DepExp2014'!D38 -> 0 | E38: 0 | F38: ='App.2-C_DepExp2014'!F38+'App.2-C_DepExp2014'!I38 -> 0 | G38: ='App.2-C_DepExp2014'!G38 -> 0 | H38: 0 | I38: ='App.2-BA_FA Cont 2015'!E33 -> 0 | K38: 0 | L38: 0 | M38: 0 | N38: 0 | O38: 0 | P38: 0 | Q38: 0 | R38: =-'App.2-BA_FA Cont 2015'!J33 -> 0 | S38: 0
A39: 1905 | B39: Land | C39: ='App.2-C_DepExp2014'!C39 -> 278455 | D39: ='App.2-C_DepExp2014'!D39 -> 0 | E39: 278455 | F39: ='App.2-C_DepExp2014'!F39+'App.2-C_DepExp2014'!I39 -> 0 | G39: ='App.2-C_DepExp2014'!G39 -> 0 | H39: 0 | I39: ='App.2-BA_FA Cont 2015'!E34 -> 25345.56 | K39: 0 | L39: 0 | M39: 0 | N39: 0 | O39: 0 | P39: 0 | Q39: 0 | R39: =-'App.2-BA_FA Cont 2015'!J34 -> 0 | S39: 0
A40: 1908 | B40: Buildings & Fixtures | C40: ='App.2-C_DepExp2014'!C40 -> 123184 | D40: ='App.2-C_DepExp2014'!D40 -> 0 | E40: 123184 | F40: ='App.2-C_DepExp2014'!F40+'App.2-C_DepExp2014'!I40 -> 26264.93 | G40: ='App.2-C_DepExp2014'!G40 -> 0 | H40: 26264.93 | I40: ='App.2-BA_FA Cont 2015'!E35 -> 22118.52 | J40: 12.88373656 | K40: 0.07761723438 | L40: 50 | M40: 0.02 | N40: 9561.2014 | O40: 525.2986 | P40: 221.1852 | Q40: 10307.6852 | R40: =-'App.2-BA_FA Cont 2015'!J35 -> 10307.68 | S40: -0.005199999998
A41: 1910 | B41: Leasehold Improvements | C41: ='App.2-C_DepExp2014'!C41 -> 47252.17 | D41: 47252 | E41: 0.17 | F41: ='App.2-C_DepExp2014'!F41+'App.2-C_DepExp2014'!I41 -> 94287.82 | G41: 94288 | H41: -0.18 | I41: 0 | J41: 50 | K41: 0.02 | L41: 25 | M41: 0.04 | N41: 0.0034 | O41: -0.0072 | P41: 0 | Q41: -0.0038 | R41: =-'App.2-BA_FA Cont 2015'!J36 -> -14154.02 | S41: -14154.0162 | T41: 2015 - Reclassed the accumulated depreciation to 1808 Buildings - Negative addition in the 2015 continuity schedule ( manually entered it as fully depreciated in the correct columns)
A42: 1915 | B42: Office Furniture & Equipment (10 years) | C42: ='App.2-C_DepExp2014'!C42 -> 115599.38 | D42: ='App.2-C_DepExp2014'!D42+1720.72 -> 1782.71 | E42: 113816.67 | F42: ='App.2-C_DepExp2014'!F42+'App.2-C_DepExp2014'!I42 -> 3558 | G42: ='App.2-C_DepExp2014'!G42 -> 0 | H42: 3558 | I42: ='App.2-BA_FA Cont 2015'!E37 -> 21523.6 | J42: 7.0422 | K42: 0.1420010792 | L42: 10 | M42: 0.1 | N42: 16162.08997 | O42: 355.8 | P42: 1076.18 | Q42: 17594.06997 | R42: =-'App.2-BA_FA Cont 2015'!J37 -> 16323.3 | S42: -1270.769972
A43: 1915 | B43: Office Furniture & Equipment (5 years) | C43: ='App.2-C_DepExp2014'!C43 -> 0 | D43: ='App.2-C_DepExp2014'!D43 -> 0 | E43: 0 | F43: ='App.2-C_DepExp2014'!F43+'App.2-C_DepExp2014'!I43 -> 0 | G43: ='App.2-C_DepExp2014'!G43 -> 0 | H43: 0 | I43: ='App.2-BA_FA Cont 2015'!E38 -> 0 | K43: 0 | M43: 0 | N43: 0 | O43: 0 | P43: 0 | Q43: 0 | R43: =-'App.2-BA_FA Cont 2015'!J38 -> 0 | S43: 0
A44: 1920 | B44: Computer Equipment - Hardware | C44: ='App.2-C_DepExp2014'!C44 -> 44785.77 | D44: ='App.2-C_DepExp2014'!D44+9240.56+5002.23 -> 24799.57 | E44: 19986.2 | F44: ='App.2-C_DepExp2014'!F44+'App.2-C_DepExp2014'!I44 -> 154584.04 | G44: ='App.2-C_DepExp2014'!G44 -> 0 | H44: 154584.04 | I44: ='App.2-BA_FA Cont 2015'!E39 -> 4408.59 | J44: 3.8934 | K44: 0.256844917 | L44: 5 | M44: 0.2 | N44: 5133.353881 | O44: 30916.808 | P44: 440.859 | Q44: 36491.02088 | R44: =-'App.2-BA_FA Cont 2015'!J39 -> 31510.19 | S44: =IF(ISERROR(+R44-122), 0, +R44-Q44) -> -4980.830881 | T44: $4,616 half year rule on final year of dep
A45: 1920 | B45: Computer Equip.-Hardware(Post Mar. 22/04) | C45: ='App.2-C_DepExp2014'!C45 -> 0 | D45: ='App.2-C_DepExp2014'!D45 -> 0 | E45: 0 | F45: ='App.2-C_DepExp2014'!F45+'App.2-C_DepExp2014'!I45 -> 0 | G45: ='App.2-C_DepExp2014'!G45 -> 0 | H45: 0 | I45: ='App.2-BA_FA Cont 2015'!E40 -> 0 | K45: 0 | M45: 0 | N45: 0 | O45: 0 | P45: 0 | Q45: 0 | R45: =-'App.2-BA_FA Cont 2015'!J40 -> 0 | S45: 0
A46: 1920 | B46: Computer Equip.-Hardware(Post Mar. 19/07) | C46: ='App.2-C_DepExp2014'!C46 -> 0 | D46: ='App.2-C_DepExp2014'!D46 -> 0 | E46: 0 | F46: ='App.2-C_DepExp2014'!F46+'App.2-C_DepExp2014'!I46 -> 0 | G46: ='App.2-C_DepExp2014'!G46 -> 0 | H46: 0 | I46: ='App.2-BA_FA Cont 2015'!E41 -> 0 | K46: 0 | M46: 0 | N46: 0 | O46: 0 | P46: 0 | Q46: 0 | R46: =-'App.2-BA_FA Cont 2015'!J41 -> 0 | S46: 0
A47: 1930 | B47: Transportation Equipment | C47: ='App.2-C_DepExp2014'!C47 -> 594966.23 | D47: ='App.2-C_DepExp2014'!D47 -> 14693.44 | E47: 580272.79 | F47: ='App.2-C_DepExp2014'!F47+'App.2-C_DepExp2014'!I47 -> 556917.06 | G47: ='App.2-C_DepExp2014'!G47 -> 0 | H47: 556917.06 | I47: ='App.2-BA_FA Cont 2015'!E42 -> 360945.85 | J47: 5.68946174 | K47: 0.1757635512 | L47: 8 | M47: 0.125 | N47: 101990.8062 | O47: 69614.6325 | P47: 22559.11562 | Q47: 194164.5544 | R47: =-'App.2-BA_FA Cont 2015'!J42 -> 192561.37 | S47: -1603.184375 | T47: Blended rate between 8-10 years
A48: 1935 | B48: Stores Equipment | C48: ='App.2-C_DepExp2014'!C48 -> 2384.23 | D48: ='App.2-C_DepExp2014'!D48+1213.43 -> 1213.43 | E48: 1170.8 | F48: ='App.2-C_DepExp2014'!F48+'App.2-C_DepExp2014'!I48 -> 0 | G48: ='App.2-C_DepExp2014'!G48 -> 0 | H48: 0 | I48: ='App.2-BA_FA Cont 2015'!E43 -> 0 | J48: 4.1306 | K48: 0.2420955793 | L48: 10 | M48: 0.1 | N48: 283.4455043 | O48: 0 | P48: 0 | Q48: 283.4455043 | R48: =-'App.2-BA_FA Cont 2015'!J43 -> 167.26 | S48: -116.1855043
A49: 1940 | B49: Tools, Shop & Garage Equipment | C49: ='App.2-C_DepExp2014'!C49 -> 79296.61 | D49: ='App.2-C_DepExp2014'!D49+2170.79 -> 4699.06 | E49: 74597.55 | F49: ='App.2-C_DepExp2014'!F49+'App.2-C_DepExp2014'!I49 -> 29938.58 | G49: ='App.2-C_DepExp2014'!G49 -> 0 | H49: 29938.58 | I49: ='App.2-BA_FA Cont 2015'!E44 -> 15770.12 | J49: 6.5958 | K49: 0.1516116316 | L49: 10 | M49: 0.1 | N49: 11309.85627 | O49: 2993.858 | P49: 788.506 | Q49: 15092.22027 | R49: =-'App.2-BA_FA Cont 2015'!J44 -> 14489 | S49: -603.2202722
A50: 1945 | B50: Measurement & Testing Equipment | C50: ='App.2-C_DepExp2014'!C50 -> 0 | D50: ='App.2-C_DepExp2014'!D50 -> 0 | E50: 0 | F50: ='App.2-C_DepExp2014'!F50+'App.2-C_DepExp2014'!I50 -> 0 | G50: ='App.2-C_DepExp2014'!G50 -> 0 | H50: 0 | I50: ='App.2-BA_FA Cont 2015'!E45 -> 0 | K50: 0 | M50: 0 | N50: 0 | O50: 0 | P50: 0 | Q50: 0 | R50: =-'App.2-BA_FA Cont 2015'!J45 -> 0 | S50: 0
A51: 1950 | B51: Power Operated Equipment | C51: ='App.2-C_DepExp2014'!C51 -> 0 | D51: ='App.2-C_DepExp2014'!D51 -> 0 | E51: 0 | F51: ='App.2-C_DepExp2014'!F51+'App.2-C_DepExp2014'!I51 -> 0 | G51: ='App.2-C_DepExp2014'!G51 -> 0 | H51: 0 | I51: ='App.2-BA_FA Cont 2015'!E46 -> 0 | K51: 0 | M51: 0 | N51: 0 | O51: 0 | P51: 0 | Q51: 0 | R51: =-'App.2-BA_FA Cont 2015'!J46 -> 0 | S51: 0
A52: 1955 | B52: Communications Equipment | C52: ='App.2-C_DepExp2014'!C52 -> 59959.36 | D52: ='App.2-C_DepExp2014'!D52+5301.02 -> 7736.24 | E52: 52223.12 | F52: ='App.2-C_DepExp2014'!F52+'App.2-C_DepExp2014'!I52 -> 940.28 | G52: ='App.2-C_DepExp2014'!G52 -> 0 | H52: 940.28 | I52: ='App.2-BA_FA Cont 2015'!E47 -> 0 | J52: 5.7802 | K52: 0.1730043943 | L52: 10 | M52: 0.1 | N52: 9034.829245 | O52: =IF(L52=0,0,+H52/L52) -> 94.028 | P52: 0 | Q52: 9128.857245 | R52: =-'App.2-BA_FA Cont 2015'!J47 -> 8985.8 | S52: =IF(ISERROR(+R52-122), 0, +R52-Q52) -> -143.0572447
A53: 1955 | B53: Communication Equipment (Smart Meters) | C53: ='App.2-C_DepExp2014'!C53 -> 0 | D53: ='App.2-C_DepExp2014'!D53 -> 0 | E53: 0 | F53: ='App.2-C_DepExp2014'!F53+'App.2-C_DepExp2014'!I53 -> 410583 | G53: 0 | H53: 410583 | I53: ='App.2-BA_FA Cont 2015'!E48 -> 0 | J53: 0 | K53: 0 | L53: 5 | M53: 0.2 | N53: 0 | O53: 82116.6 | P53: 0 | Q53: 82116.6 | R53: =-'App.2-BA_FA Cont 2015'!J48 -> 41058.33 | S53: =IF(ISERROR(+R53-122), 0, +R53-Q53) -> -41058.27 | T53: Depreciated Smart meteres for 2.5 years in 2012 & the estimate depreciated it over 5 years - Half year rule in 2015 for the final year of Dep
A54: 1960 | B54: Miscellaneous Equipment | C54: ='App.2-C_DepExp2014'!C54 -> 0 | D54: ='App.2-C_DepExp2014'!D54 -> 0 | E54: 0 | F54: ='App.2-C_DepExp2014'!F54+'App.2-C_DepExp2014'!I54 -> 0 | G54: ='App.2-C_DepExp2014'!G54 -> 0 | H54: 0 | I54: ='App.2-BA_FA Cont 2015'!E49 -> 0 | K54: 0 | M54: 0 | N54: 0 | O54: 0 | P54: 0 | Q54: 0 | R54: =-'App.2-BA_FA Cont 2015'!J49 -> 0 | S54: 0
A55: 1970 | B55: Load Management Controls Customer Premises | C55: ='App.2-C_DepExp2014'!C55 -> 0 | D55: ='App.2-C_DepExp2014'!D55 -> 0 | E55: 0 | F55: ='App.2-C_DepExp2014'!F55+'App.2-C_DepExp2014'!I55 -> 0 | G55: ='App.2-C_DepExp2014'!G55 -> 0 | H55: 0 | I55: ='App.2-BA_FA Cont 2015'!E50 -> 0 | K55: 0 | M55: 0 | N55: 0 | O55: 0 | P55: 0 | Q55: 0 | R55: =-'App.2-BA_FA Cont 2015'!J50 -> 0 | S55: 0
A56: 1975 | B56: Load Management Controls Utility Premises | C56: ='App.2-C_DepExp2014'!C56 -> 0 | D56: ='App.2-C_DepExp2014'!D56 -> 0 | E56: 0 | F56: ='App.2-C_DepExp2014'!F56+'App.2-C_DepExp2014'!I56 -> 0 | G56: ='App.2-C_DepExp2014'!G56 -> 0 | H56: 0 | I56: ='App.2-BA_FA Cont 2015'!E51 -> 0 | K56: 0 | M56: 0 | N56: 0 | O56: 0 | P56: 0 | Q56: 0 | R56: =-'App.2-BA_FA Cont 2015'!J51 -> 0 | S56: 0
A57: 1980 | B57: System Supervisor Equipment | C57: ='App.2-C_DepExp2014'!C57 -> 0 | D57: ='App.2-C_DepExp2014'!D57 -> 0 | E57: 0 | F57: ='App.2-C_DepExp2014'!F57+'App.2-C_DepExp2014'!I57 -> 229015.2 | G57: ='App.2-C_DepExp2014'!G57 -> 0 | H57: 229015.2 | I57: ='App.2-BA_FA Cont 2015'!E52 -> 25433.71 | J57: 0 | K57: 0 | L57: 10 | M57: 0.1 | N57: 0 | O57: 22901.52 | P57: 1271.6855 | Q57: 24173.2055 | R57: =-'App.2-BA_FA Cont 2015'!J52 -> 24173.21 | S57: 0.004499999999
A58: 1985 | B58: Miscellaneous Fixed Assets | C58: ='App.2-C_DepExp2014'!C58 -> 0 | D58: ='App.2-C_DepExp2014'!D58 -> 0 | E58: 0 | F58: ='App.2-C_DepExp2014'!F58+'App.2-C_DepExp2014'!I58 -> 0 | G58: ='App.2-C_DepExp2014'!G58 -> 0 | H58: 0 | I58: ='App.2-BA_FA Cont 2015'!E53 -> 0 | K58: 0 | M58: 0 | N58: 0 | O58: 0 | P58: 0 | Q58: 0 | R58: =-'App.2-BA_FA Cont 2015'!J53 -> 0 | S58: 0
A59: 1990 | B59: Other Tangible Property | C59: ='App.2-C_DepExp2014'!C59 -> 0 | D59: ='App.2-C_DepExp2014'!D59 -> 0 | E59: 0 | F59: ='App.2-C_DepExp2014'!F59+'App.2-C_DepExp2014'!I59 -> 0 | G59: ='App.2-C_DepExp2014'!G59 -> 0 | H59: 0 | I59: ='App.2-BA_FA Cont 2015'!E54 -> 0 | K59: 0 | M59: 0 | N59: 0 | O59: 0 | P59: 0 | Q59: 0 | R59: =-'App.2-BA_FA Cont 2015'!J54 -> 0 | S59: 0
A60: 1995 | B60: Contributions & Grants | C60: ='App.2-C_DepExp2014'!C60 -> -4624478 | D60: ='App.2-C_DepExp2014'!D60 -> 0 | E60: -4624478 | F60: ='App.2-C_DepExp2014'!F60+'App.2-C_DepExp2014'!I60 -> -1611232.46 | G60: ='App.2-C_DepExp2014'!G60 -> 0 | H60: -1611232.46 | I60: ='App.2-BA_FA Cont 2015'!E55 -> -194049 | J60: 36.90971584 | K60: 0.02709313733 | L60: 42.5 | M60: 0.02352941176 | N60: -125291.6175 | O60: -37911.352 | P60: -2282.929412 | Q60: -165485.8989 | R60: =-'App.2-BA_FA Cont 2015'!J55 -> -165485.9 | S60: -0.001058823545
A61: 2055 | B61: Deferred Revenue | C61: ='App.2-C_DepExp2014'!C61 -> 0 | D61: ='App.2-C_DepExp2014'!D61 -> 0 | E61: 0 | F61: ='App.2-C_DepExp2014'!F61+'App.2-C_DepExp2014'!I61 -> 0 | G61: ='App.2-C_DepExp2014'!G61 -> 0 | H61: 0 | I61: ='App.2-BA_FA Cont 2015'!E56 -> 0 | K61: 0 | M61: 0 | N61: 0 | O61: 0 | P61: 0 | Q61: 0 | R61: =-'App.2-BA_FA Cont 2015'!J56 -> 0 | S61: 0
A62: 2055 | B62: Construction in Process | C62: ='App.2-C_DepExp2014'!C62 -> 117470 | D62: ='App.2-C_DepExp2014'!D62 -> 0 | E62: 117470 | F62: ='App.2-C_DepExp2014'!F62+'App.2-C_DepExp2014'!I62 -> -24269.84 | G62: ='App.2-C_DepExp2014'!G62 -> 0 | H62: -24269.84 | I62: ='App.2-BA_FA Cont 2015'!E57 -> -93200 | K62: 0 | L62: 0 | M62: 0 | N62: 0 | O62: 0 | P62: 0 | Q62: 0 | R62: =-'App.2-BA_FA Cont 2015'!J57 -> 0 | S62: 0
B63: Total | C63: =SUM(C23:C62) -> 18384214.33 | D63: 233164.06 | E63: 18151050.27 | F63: 8948070.07 | G63: 94288 | H63: 8853782.07 | I63: 3036411.33 | N63: =SUM(N23:N62) -> 877444.764 | O63: 572612.5105 | P63: 60181.81972 | Q63: 1510239.094 | R63: 1392741.55 | S63: -117497.5442
A66: General: | B66: Applicants are to complete this appendix to show the reasonability of the depreciation expense that is included in rate base via. Accumulated depreciation and the revenue requirement.
B67: Applicants must provide a breakdown of depreciation and amortization expense in the above format for all relevant accounts. Balances presented in the table should exclude asset retirement obligations (AROs) and the related depreciation and accretion expense. These should be disclosed separately consistent with the Notes of historical Audited Financial Statements.
A70: Notes:
A71: 1 | B71: This is the net book value of assets that existed as at the date of the utility's change in depreciation policies (i.e. as at Jan. 1, 2012 or Jan. 1, 2013). These assets are to be depreciated at the average remaining service life. This amount will not change in years subsequent to the date of the utility's change in depreciation policies. This column is expected to be used until the assets that existed as at the date of the utility's change in depreciation policies are fully depreciated.
A72: 2 | B72: This is the opening gross book value of assets that have been acquired after the date of the utilities change in depreciation policies (i.e. additions starting in 2012/2013 for those who changed policies Jan. 1, 2012/2013). These assets are to be depreciated at the revised service life. The amount is expected to be equal to the gross book value of the prior year plus the prior year's additions.
A73: 3 | B73: A recalculation should be performed to determine the average remaining life of opening balance of assets (i.e. excluding current year's additions) under the change in policies under CGAAP. For example, Asset A had a useful life of 20 years under CGAAP without the change in policies. On January 1 of the year of policy changes, Asset A was 3 years depreciated. As a result, Asset A would have a remaining service life of 17 years (20 years less 3 years) as at January 1 of the year of policy changes. Due to making the change in policies under CGAAP, management re-assessed the asset useful lives and concluded that the revised useful life of Asset A is now 30 years. Therefore, the average remaining useful life of the opening balance of Asset A is determined to be 27 years (30 years less 3 years) under the revised CGAAP as at January 1 of the year of policy changes.
A74: 4 | B74: The useful life used should be consistent with the OEB's regulatory accounting policies as set out in the Accounting Procedures Handbook for Electricity Distributors, effective Jan. 1, 2012 and also with the Report of the Board, Transition to International Financial Reporting Standards, EB-2008-0408, and the Kinectrics Report.
A75: 5 | B75: Board policy of the "half-year" rule - the applicant must ensure that additions in the year attract a half-year depreciation expense in the first year. Deviations from this standard practice must be supported in the application.
A76: 6 | B76: The applicant must provide an explanation of material variances in evidence.
A77: 7 | B77: This should include assets in column a (excel column C) that become fully depreciated since the date of the policy change. The amount input in b (excel column D) should equal the net book value of the asset as at the date of depreciation policy change
A78: 8 | B78: This should include assets in column d (excel column f) that have become fully depreciated. The amount input in e (excel column G) should equal the gross book value of the asset

Sheet App.2-C_DepExp2016
A9: Appendix 2-C | Y9: CGAAP
A10: Depreciation and Amortization Expense | Y10: Revised CGAAP
Y11: MIFRS
A12: This appendix is to be completed in conjunction with the accounting instructions in Appendix 2-B
A14: Scenario that applies | C14: Applicable Years and Accounting Standard | R14: Year Reflected in Schedule Below | S14: Accounting Standard Reflected in Schedule Below | Y14: 2012
A15: Rebasing for the first time with depreciation policy changes made in 2012. | C15: This appendix must be duplicated and completed for the years 2012 to 2018. The appendix for 2012 is to be completed under CGAAP (prior to changes in depreciation policies). The appendix for 2012 to 2014 must be completed under Revised CGAAP (after changes in depreciation policies). The appendix for 2014 to 2018 is to be completed under MIFRS (2014 if changes to MIFRS are material). | Y15: 2013
A16: Rebasing for the first time with depreciation policy changes made in 2013. | C16: This appendix must be duplicated and completed for the years 2013 to 2018. The appendix for 2013 is to be completed under CGAAP (prior to changes in depreciation policies). The appendix for 2013 to 2014 must be completed under Revised CGAAP (after changes in depreciation policies). The appendix for 2014 to 2018 is to be completed under MIFRS (2014 if changes to MIFRS are material). | Y16: 2014
A17: Already rebased with depreciation policy changes in a prior rate application | C17: This appendix must be completed for 2014 to 2018. The appendix for 2014 is to be completed under Revised CGAAP (after changes in depreciation policies). The appendix for 2014 to 2018 is to be completed under MIFRS (2014 if changes to MIFRS are material). | R17: 2016 | S17: MIFRS | Y17: 2015
Y18: 2016
Y19: 2017
C20: Book Values | J20: Service Lives | N20: Depreciation Expense | Y20: 2018
A21: Account | B21: Description | C21: Opening Net Book Value of Existing Assets as at Date of Policy Change (Jan. 1) 1 | D21: Less Fully Depreciated 7 | E21: Net Amount of Existing Assets Before Policy Change to be Depreciated | F21: Opening Gross Book Value of Assets Acquired After Policy Change 2 | G21: Less Fully Depreciated 8 | H21: Net Amount of Assets Acquired After Policy Change to be Depreciated | I21: Current Year Additions | J21: Average Remaining Life of Assets Existing Before Policy Change 3 | K21: Depreciation Rate Assets Acquired After Policy Change | L21: Life of Assets Acquired After Policy Change 4 | M21: Depreciation Rate on New Additions | N21: Depreciation Expense on Assets Existing Before Policy Change | O21: Depreciation Expense on Assets Acquired After Policy Change | P21: Depreciation Expense on Current Year Additions 5 | Q21: Total Current Year Depreciation Expense | R21: Depreciation Expense per Appendix 2-BA Fixed Assets, Column J | S21: Variance 6
D22: b | E22: c = a-b | F22: d | G22: e | H22: f = d- e | I22: g | J22: h | K22: i = 1/h | L22: j | M22: k = 1/j | N22: l = c/h | O22: m = f/j | P22: n = g*0.5/j | Q22: o = l+m+n | R22: p | S22: q = p-o
A23: 1611 | B23: Computer Software (Formally known as Account 1925) | C23: ='App.2-C_DepExp2014'!C23 -> 202058.09 | D23: ='App.2-C_DepExp2015'!D23+14275.1+23110.87 -> 136647.41 | E23: =C23-D23 -> 65410.68 | F23: ='App.2-C_DepExp2015'!F23+'App.2-C_DepExp2015'!I23 -> 434873.75 | G23: ='App.2-C_DepExp2015'!G23+202361.4 -> 202361.4 | H23: =F23-G23 -> 232512.35 | I23: ='App.2-BA_FA Cont 2016'!E18 -> 4625 | J23: 4.04 | K23: =IF(J23=0,0,1/J23) -> 0.2475247525 | L23: 5 | M23: =IF(L23=0,0,1/L23) -> 0.2 | N23: =IF(J23=0,0,+E23/J23) -> 16190.76238 | O23: =IF(L23=0,0,+H23/L23) -> 46502.47 | P23: =IF(L23=0,0,+(I23*0.5)/L23) -> 462.5 | Q23: =IF(ISERROR(+N23+O23+P23), 0, +N23+O23+P23) -> 63155.73238 | R23: =-'App.2-BA_FA Cont 2016'!J18 -> 54938.85 | S23: =IF(ISERROR(+R23-122), 0, +R23-Q23) -> -8216.882376
A24: 1612 | B24: Land Rights (Formally known as Account 1906) | C24: ='App.2-C_DepExp2014'!C24 -> 501177.48 | D24: ='App.2-C_DepExp2015'!D24 -> 0 | E24: =C24-D24 -> 501177.48 | F24: ='App.2-C_DepExp2015'!F24+'App.2-C_DepExp2015'!I24 -> 24378.86 | G24: ='App.2-C_DepExp2015'!G24 -> 0 | H24: =F24-G24 -> 24378.86 | I24: ='App.2-BA_FA Cont 2016'!E19 -> -7500 | J24: 17 | K24: =IF(J24=0,0,1/J24) -> 0.05882352941 | L24: 0 | M24: =IF(L24=0,0,1/L24) -> 0 | N24: =IF(J24=0,0,+E24/J24) -> 29481.02824 | O24: =IF(L24=0,0,+H24/L24) -> 0 | P24: =IF(L24=0,0,+(I24*0.5)/L24) -> 0 | Q24: =IF(ISERROR(+N24+O24+P24), 0, +N24+O24+P24) -> 29481.02824 | R24: =-'App.2-BA_FA Cont 2016'!J19 -> 20 | S24: =IF(ISERROR(+R24-122), 0, +R24-Q24) -> -29461.02824 | T24: No depreciation has been taken since 2003 on $516,004 LP amount since it's an intangible asset… reviewed annually ($500 is being depreciated over 25 years)
A25: 1805 | B25: Land | C25: ='App.2-C_DepExp2014'!C25 -> 74305 | D25: ='App.2-C_DepExp2015'!D25 -> 0 | E25: 74305 | F25: ='App.2-C_DepExp2015'!F25+'App.2-C_DepExp2015'!I25 -> 0 | G25: ='App.2-C_DepExp2015'!G25 -> 0 | H25: 0 | I25: ='App.2-BA_FA Cont 2016'!E20 -> 0 | K25: 0 | L25: 0 | M25: 0 | N25: 0 | O25: =IF(L25=0,0,+H25/L25) -> 0 | P25: 0 | Q25: 0 | R25: =-'App.2-BA_FA Cont 2016'!J20 -> 0 | S25: 0
A26: 1808 | B26: Buildings | C26: ='App.2-C_DepExp2014'!C26 -> 1664949.74 | D26: ='App.2-C_DepExp2015'!D26 -> 0 | E26: 1664949.74 | F26: ='App.2-C_DepExp2015'!F26+'App.2-C_DepExp2015'!I26 -> 347006.15 | G26: ='App.2-C_DepExp2015'!G26 -> 0 | H26: 347006.15 | I26: ='App.2-BA_FA Cont 2016'!E21 -> 0 | J26: 24.86775236 | K26: 0.0402127215 | L26: 50 | M26: 0.02 | N26: 66952.1602 | O26: 6940.123 | P26: 0 | Q26: 73892.2832 | R26: =-'App.2-BA_FA Cont 2016'!J21 -> 81625.89 | S26: 7733.6068
A27: 1810 | B27: Leasehold Improvements | C27: ='App.2-C_DepExp2014'!C27 -> 0 | D27: ='App.2-C_DepExp2015'!D27 -> 0 | E27: 0 | F27: ='App.2-C_DepExp2015'!F27+'App.2-C_DepExp2015'!I27 -> 0 | G27: ='App.2-C_DepExp2015'!G27 -> 0 | H27: 0 | I27: ='App.2-BA_FA Cont 2016'!E22 -> 0 | K27: 0 | M27: 0 | N27: 0 | O27: 0 | P27: 0 | Q27: 0 | R27: =-'App.2-BA_FA Cont 2016'!J22 -> 0 | S27: 0
A28: 1815 | B28: Transformer Station Equipment >50 kV | C28: ='App.2-C_DepExp2014'!C28 -> 0 | D28: ='App.2-C_DepExp2015'!D28 -> 0 | E28: 0 | F28: ='App.2-C_DepExp2015'!F28+'App.2-C_DepExp2015'!I28 -> 0 | G28: ='App.2-C_DepExp2015'!G28 -> 0 | H28: 0 | I28: ='App.2-BA_FA Cont 2016'!E23 -> 0 | K28: 0 | M28: 0 | N28: 0 | O28: 0 | P28: 0 | Q28: 0 | R28: =-'App.2-BA_FA Cont 2016'!J23 -> 0 | S28: 0
A29: 1820 | B29: Distribution Station Equipment <50 kV | C29: ='App.2-C_DepExp2014'!C29 -> 3027099.81 | D29: ='App.2-C_DepExp2015'!D29 -> 0 | E29: 3027099.81 | F29: ='App.2-C_DepExp2015'!F29+'App.2-C_DepExp2015'!I29 -> 1266715.36 | G29: ='App.2-C_DepExp2015'!G29 -> 0 | H29: 1266715.36 | I29: ='App.2-BA_FA Cont 2016'!E24 -> 85798.65 | J29: 33.53809484 | K29: 0.02981683977 | L29: 40 | M29: 0.025 | N29: =IF(J29=0,0,+E29/J29) -> 90258.55 | O29: =IF(L29=0,0,+H29/L29) -> 31667.884 | P29: =IF(L29=0,0,+(I29*0.5)/L29) -> 1072.483125 | Q29: =IF(ISERROR(+N29+O29+P29), 0, +N29+O29+P29) -> 122998.9171 | R29: =-'App.2-BA_FA Cont 2016'!J24 -> 122998.91 | S29: -0.007124999975
A30: 1825 | B30: Storage Battery Equipment | C30: ='App.2-C_DepExp2014'!C30 -> 0 | D30: ='App.2-C_DepExp2015'!D30 -> 0 | E30: 0 | F30: ='App.2-C_DepExp2015'!F30+'App.2-C_DepExp2015'!I30 -> 0 | G30: ='App.2-C_DepExp2015'!G30 -> 0 | H30: 0 | I30: ='App.2-BA_FA Cont 2016'!E25 -> 0 | K30: 0 | M30: 0 | N30: 0 | O30: 0 | P30: 0 | Q30: 0 | R30: =-'App.2-BA_FA Cont 2016'!J25 -> 0 | S30: 0
A31: 1830 | B31: Poles, Towers & Fixtures | C31: ='App.2-C_DepExp2014'!C31 -> 3811041.8 | D31: ='App.2-C_DepExp2015'!D31 -> 0 | E31: 3811041.8 | F31: ='App.2-C_DepExp2015'!F31+'App.2-C_DepExp2015'!I31 -> 1800490.69 | G31: ='App.2-C_DepExp2015'!G31 -> 0 | H31: 1800490.69 | I31: ='App.2-BA_FA Cont 2016'!E26 -> 627551.31 | J31: 23.10308536 | K31: 0.043284262 | L31: 45 | M31: 0.02222222222 | N31: =IF(J31=0,0,+E31/J31) -> 164958.1318 | O31: =IF(L31=0,0,+H31/L31) -> 40010.90422 | P31: 6972.792333 | Q31: =IF(ISERROR(+N31+O31+P31), 0, +N31+O31+P31) -> 211941.8283 | R31: =-'App.2-BA_FA Cont 2016'!J26 -> 206387.8 | S31: -5554.028333
A32: 1835 | B32: Overhead Conductors & Devices | C32: ='App.2-C_DepExp2014'!C32 -> 3139922.86 | D32: ='App.2-C_DepExp2015'!D32 -> 0 | E32: 3139922.86 | F32: ='App.2-C_DepExp2015'!F32+'App.2-C_DepExp2015'!I32 -> 1168730.01 | G32: ='App.2-C_DepExp2015'!G32 -> 0 | H32: 1168730.01 | I32: ='App.2-BA_FA Cont 2016'!E27 -> 510544.18 | J32: 28.57250001 | K32: 0.03499868754 | L32: 60 | M32: 0.01666666667 | N32: 109893.1791 | O32: =IF(L32=0,0,+H32/L32) -> 19478.8335 | P32: 4254.534833 | Q32: 133626.5474 | R32: =-'App.2-BA_FA Cont 2016'!J27 -> 126761.53 | S32: -6865.017417
A33: 1840 | B33: Underground Conduit | C33: ='App.2-C_DepExp2014'!C33 -> 1819436.57 | D33: ='App.2-C_DepExp2015'!D33 -> 0 | E33: 1819436.57 | F33: ='App.2-C_DepExp2015'!F33+'App.2-C_DepExp2015'!I33 -> 884284.55 | G33: ='App.2-C_DepExp2015'!G33 -> 0 | H33: 884284.55 | I33: ='App.2-BA_FA Cont 2016'!E28 -> 114259.98 | J33: 26.18188986 | K33: 0.03819433988 | L33: 40 | M33: 0.025 | N33: 69492.17875 | O33: 22107.11375 | P33: 1428.24975 | Q33: 93027.54225 | R33: =-'App.2-BA_FA Cont 2016'!J28 -> 91641.79 | S33: -1385.75225
A34: 1845 | B34: Underground Conductors & Devices | C34: ='App.2-C_DepExp2014'!C34 -> 1638245.81 | D34: ='App.2-C_DepExp2015'!D34 -> 0 | E34: 1638245.81 | F34: ='App.2-C_DepExp2015'!F34+'App.2-C_DepExp2015'!I34 -> 996772.42 | G34: ='App.2-C_DepExp2015'!G34 -> 0 | H34: 996772.42 | I34: ='App.2-BA_FA Cont 2016'!E29 -> 299403.74 | J34: 23.63780279 | K34: 0.04230511646 | L34: 45 | M34: 0.02222222222 | N34: 69306.17978 | O34: 22150.49822 | P34: 3326.708222 | Q34: 94783.38622 | R34: =-'App.2-BA_FA Cont 2016'!J29 -> 92241.74 | S34: -2541.646222
A35: 1850 | B35: Line Transformers | C35: ='App.2-C_DepExp2014'!C35 -> 4450851.58 | D35: ='App.2-C_DepExp2015'!D35 -> 0 | E35: 4450851.58 | F35: ='App.2-C_DepExp2015'!F35+'App.2-C_DepExp2015'!I35 -> 1823136.94 | G35: ='App.2-C_DepExp2015'!G35 -> 0 | H35: 1823136.94 | I35: ='App.2-BA_FA Cont 2016'!E30 -> 404170.9 | J35: 25.24553519 | K35: 0.03961096457 | L35: 40 | M35: 0.025 | N35: 176302.5242 | O35: 45578.4235 | P35: 5052.13625 | Q35: 226933.084 | R35: =-'App.2-BA_FA Cont 2016'!J30 -> 221014.92 | S35: -5918.164
A36: 1855 | B36: Services (Overhead & Underground) | C36: ='App.2-C_DepExp2014'!C36 -> 817072.83 | D36: ='App.2-C_DepExp2015'!D36 -> 0 | E36: 817072.83 | F36: ='App.2-C_DepExp2015'!F36+'App.2-C_DepExp2015'!I36 -> 306810.99 | G36: ='App.2-C_DepExp2015'!G36 -> 0 | H36: 306810.99 | I36: ='App.2-BA_FA Cont 2016'!E31 -> 48053 | J36: 40.095 | K36: 0.02494076568 | L36: 45 | M36: 0.02222222222 | N36: 20378.422 | O36: 6818.022 | P36: 533.9222222 | Q36: 27730.36622 | R36: =-'App.2-BA_FA Cont 2016'!J31 -> 28525.99 | S36: 795.62378
A37: 1860 | B37: Meters | C37: ='App.2-C_DepExp2014'!C37 -> 399178.01 | D37: ='App.2-C_DepExp2015'!D37+5731.11 -> 37457.28 | E37: 361720.73 | F37: ='App.2-C_DepExp2015'!F37+'App.2-C_DepExp2015'!I37 -> 2872398.12 | G37: ='App.2-C_DepExp2015'!G37 -> 0 | H37: 2872398.12 | I37: ='App.2-BA_FA Cont 2016'!E32 -> 304330 | J37: 13.7141 | K37: 0.07291765409 | L37: 15 | M37: 0.06666666667 | N37: 26375.82707 | O37: 191493.208 | P37: 10144.33333 | Q37: 228013.3684 | R37: =-'App.2-BA_FA Cont 2016'!J32 -> 218732.43 | S37: -9280.938402
A38: 1860 | B38: Meters (Smart Meters) | C38: ='App.2-C_DepExp2014'!C38 -> 0 | D38: ='App.2-C_DepExp2015'!D38 -> 0 | E38: 0 | F38: ='App.2-C_DepExp2015'!F38+'App.2-C_DepExp2015'!I38 -> 0 | G38: ='App.2-C_DepExp2015'!G38 -> 0 | H38: 0 | I38: ='App.2-BA_FA Cont 2016'!E33 -> 0 | K38: 0 | L38: 0 | M38: 0 | N38: 0 | O38: 0 | P38: 0 | Q38: 0 | R38: =-'App.2-BA_FA Cont 2016'!J33 -> 0 | S38: 0
A39: 1905 | B39: Land | C39: ='App.2-C_DepExp2014'!C39 -> 278455 | D39: ='App.2-C_DepExp2015'!D39 -> 0 | E39: 278455 | F39: ='App.2-C_DepExp2015'!F39+'App.2-C_DepExp2015'!I39 -> 25345.56 | G39: ='App.2-C_DepExp2015'!G39 -> 0 | H39: 25345.56 | I39: ='App.2-BA_FA Cont 2016'!E34 -> 0 | K39: 0 | L39: 0 | M39: 0 | N39: 0 | O39: 0 | P39: 0 | Q39: 0 | R39: =-'App.2-BA_FA Cont 2016'!J34 -> 0 | S39: 0
A40: 1908 | B40: Buildings & Fixtures | C40: ='App.2-C_DepExp2014'!C40 -> 123184 | D40: ='App.2-C_DepExp2015'!D40 -> 0 | E40: 123184 | F40: ='App.2-C_DepExp2015'!F40+'App.2-C_DepExp2015'!I40 -> 48383.45 | G40: ='App.2-C_DepExp2015'!G40 -> 0 | H40: 48383.45 | I40: ='App.2-BA_FA Cont 2016'!E35 -> 0 | J40: 12.88373656 | K40: 0.07761723438 | L40: 50 | M40: 0.02 | N40: 9561.2014 | O40: 967.669 | P40: 0 | Q40: 10528.8704 | R40: =-'App.2-BA_FA Cont 2016'!J35 -> 10528.87 | S40: -0.0003999999972
A41: 1910 | B41: Leasehold Improvements | C41: ='App.2-C_DepExp2014'!C41 -> 47252.17 | D41: ='App.2-C_DepExp2015'!D41 -> 47252 | E41: 0.17 | F41: ='App.2-C_DepExp2015'!F41+'App.2-C_DepExp2015'!I41 -> 94287.82 | G41: ='App.2-C_DepExp2015'!G41 -> 94288 | H41: -0.18 | I41: ='App.2-BA_FA Cont 2016'!E36 -> 0 | J41: 50 | K41: 0.02 | L41: 25 | M41: 0.04 | N41: 0.0034 | O41: -0.0072 | P41: 0 | Q41: -0.0038 | R41: =-'App.2-BA_FA Cont 2016'!J36 -> 0 | S41: 0.0038
A42: 1915 | B42: Office Furniture & Equipment (10 years) | C42: ='App.2-C_DepExp2014'!C42 -> 115599.38 | D42: ='App.2-C_DepExp2015'!D42+5030.88+1153.51 -> 7967.1 | E42: 107632.28 | F42: ='App.2-C_DepExp2015'!F42+'App.2-C_DepExp2015'!I42 -> 25081.6 | G42: ='App.2-C_DepExp2015'!G42 -> 0 | H42: 25081.6 | I42: ='App.2-BA_FA Cont 2016'!E37 -> 0 | J42: 7.0422 | K42: 0.1420010792 | L42: 10 | M42: 0.1 | N42: 15283.89992 | O42: 2508.16 | P42: 0 | Q42: 17792.05992 | R42: =-'App.2-BA_FA Cont 2016'!J37 -> 16023.97 | S42: -1768.089918
A43: 1915 | B43: Office Furniture & Equipment (5 years) | C43: ='App.2-C_DepExp2014'!C43 -> 0 | D43: ='App.2-C_DepExp2015'!D43 -> 0 | E43: 0 | F43: ='App.2-C_DepExp2015'!F43+'App.2-C_DepExp2015'!I43 -> 0 | G43: ='App.2-C_DepExp2015'!G43 -> 0 | H43: 0 | I43: ='App.2-BA_FA Cont 2016'!E38 -> 0 | K43: 0 | M43: 0 | N43: 0 | O43: 0 | P43: 0 | Q43: 0 | R43: =-'App.2-BA_FA Cont 2016'!J38 -> 0 | S43: 0
A44: 1920 | B44: Computer Equipment - Hardware | C44: ='App.2-C_DepExp2014'!C44 -> 44785.77 | D44: ='App.2-C_DepExp2015'!D44+2036.9+1080 -> 27916.47 | E44: 16869.3 | F44: ='App.2-C_DepExp2015'!F44+'App.2-C_DepExp2015'!I44 -> 158992.63 | G44: ='App.2-C_DepExp2015'!G44+46163.99 -> 46163.99 | H44: 112828.64 | I44: ='App.2-BA_FA Cont 2016'!E39 -> 6104.71 | J44: 3.8934 | K44: 0.256844917 | L44: 5 | M44: 0.2 | N44: 4332.793959 | O44: 22565.728 | P44: 610.471 | Q44: 27508.99296 | R44: =-'App.2-BA_FA Cont 2016'!J39 -> 25827.88 | S44: =IF(ISERROR(+R44-122), 0, +R44-Q44) -> -1681.112959
A45: 1920 | B45: Computer Equip.-Hardware(Post Mar. 22/04) | C45: ='App.2-C_DepExp2014'!C45 -> 0 | D45: ='App.2-C_DepExp2015'!D45 -> 0 | E45: 0 | F45: ='App.2-C_DepExp2015'!F45+'App.2-C_DepExp2015'!I45 -> 0 | G45: ='App.2-C_DepExp2015'!G45 -> 0 | H45: 0 | I45: ='App.2-BA_FA Cont 2016'!E40 -> 0 | K45: 0 | M45: 0 | N45: 0 | O45: 0 | P45: 0 | Q45: 0 | R45: =-'App.2-BA_FA Cont 2016'!J40 -> 0 | S45: 0
A46: 1920 | B46: Computer Equip.-Hardware(Post Mar. 19/07) | C46: ='App.2-C_DepExp2014'!C46 -> 0 | D46: ='App.2-C_DepExp2015'!D46 -> 0 | E46: 0 | F46: ='App.2-C_DepExp2015'!F46+'App.2-C_DepExp2015'!I46 -> 0 | G46: ='App.2-C_DepExp2015'!G46 -> 0 | H46: 0 | I46: ='App.2-BA_FA Cont 2016'!E41 -> 0 | K46: 0 | M46: 0 | N46: 0 | O46: 0 | P46: 0 | Q46: 0 | R46: =-'App.2-BA_FA Cont 2016'!J41 -> 0 | S46: 0
A47: 1930 | B47: Transportation Equipment | C47: ='App.2-C_DepExp2014'!C47 -> 594966.23 | D47: ='App.2-C_DepExp2015'!D47+98223.65+6883.33 -> 119800.42 | E47: 475165.81 | F47: ='App.2-C_DepExp2015'!F47+'App.2-C_DepExp2015'!I47 -> 917862.91 | G47: ='App.2-C_DepExp2015'!G47 -> 0 | H47: 917862.91 | I47: ='App.2-BA_FA Cont 2016'!E42 -> 26237.8 | J47: 5.68946174 | K47: 0.1757635512 | L47: 8 | M47: 0.125 | N47: 83516.83019 | O47: 114732.8637 | P47: 1639.8625 | Q47: 199889.5564 | R47: =-'App.2-BA_FA Cont 2016'!J42 -> 183649.26 | S47: -16240.29644 | T47: Only $69,077 prior to policy change accoridng to depreciation schedule for assets prior to policy change
A48: 1935 | B48: Stores Equipment | C48: ='App.2-C_DepExp2014'!C48 -> 2384.23 | D48: ='App.2-C_DepExp2015'!D48+1170.8 -> 2384.23 | E48: 0 | F48: ='App.2-C_DepExp2015'!F48+'App.2-C_DepExp2015'!I48 -> 0 | G48: ='App.2-C_DepExp2015'!G48 -> 0 | H48: 0 | I48: ='App.2-BA_FA Cont 2016'!E43 -> 0 | J48: 4.1306 | K48: 0.2420955793 | L48: 10 | M48: 0.1 | N48: 0 | O48: 0 | P48: 0 | Q48: 0 | R48: =-'App.2-BA_FA Cont 2016'!J43 -> 0 | S48: 0
A49: 1940 | B49: Tools, Shop & Garage Equipment | C49: ='App.2-C_DepExp2014'!C49 -> 79296.61 | D49: ='App.2-C_DepExp2015'!D49+2119.3+977.29 -> 7795.65 | E49: 71500.96 | F49: ='App.2-C_DepExp2015'!F49+'App.2-C_DepExp2015'!I49 -> 45708.7 | G49: ='App.2-C_DepExp2015'!G49 -> 0 | H49: 45708.7 | I49: ='App.2-BA_FA Cont 2016'!E44 -> 0 | J49: 6.5958 | K49: 0.1516116316 | L49: 10 | M49: 0.1 | N49: 10840.37721 | O49: 4570.87 | P49: 0 | Q49: 15411.24721 | R49: =-'App.2-BA_FA Cont 2016'!J44 -> 14362.97 | S49: -1048.27721
A50: 1945 | B50: Measurement & Testing Equipment | C50: ='App.2-C_DepExp2014'!C50 -> 0 | D50: ='App.2-C_DepExp2015'!D50 -> 0 | E50: 0 | F50: ='App.2-C_DepExp2015'!F50+'App.2-C_DepExp2015'!I50 -> 0 | G50: ='App.2-C_DepExp2015'!G50 -> 0 | H50: 0 | I50: ='App.2-BA_FA Cont 2016'!E45 -> 0 | K50: 0 | M50: 0 | N50: 0 | O50: 0 | P50: 0 | Q50: 0 | R50: =-'App.2-BA_FA Cont 2016'!J45 -> 0 | S50: 0
A51: 1950 | B51: Power Operated Equipment | C51: ='App.2-C_DepExp2014'!C51 -> 0 | D51: ='App.2-C_DepExp2015'!D51 -> 0 | E51: 0 | F51: ='App.2-C_DepExp2015'!F51+'App.2-C_DepExp2015'!I51 -> 0 | G51: ='App.2-C_DepExp2015'!G51 -> 0 | H51: 0 | I51: ='App.2-BA_FA Cont 2016'!E46 -> 0 | K51: 0 | M51: 0 | N51: 0 | O51: 0 | P51: 0 | Q51: 0 | R51: =-'App.2-BA_FA Cont 2016'!J46 -> 0 | S51: 0
A52: 1955 | B52: Communications Equipment | C52: ='App.2-C_DepExp2014'!C52 -> 59959.36 | D52: ='App.2-C_DepExp2015'!D52 -> 7736.24 | E52: 52223.12 | F52: ='App.2-C_DepExp2015'!F52+'App.2-C_DepExp2015'!I52 -> 940.28 | G52: ='App.2-C_DepExp2015'!G52 -> 0 | H52: 940.28 | I52: ='App.2-BA_FA Cont 2016'!E47 -> 0 | J52: 5.7802 | K52: 0.1730043943 | L52: 10 | M52: 0.1 | N52: 9034.829245 | O52: =IF(L52=0,0,+H52/L52) -> 94.028 | P52: 0 | Q52: 9128.857245 | R52: =-'App.2-BA_FA Cont 2016'!J47 -> 8985.8 | S52: =IF(ISERROR(+R52-122), 0, +R52-Q52) -> -143.0572447
A53: 1955 | B53: Communication Equipment (Smart Meters) | C53: ='App.2-C_DepExp2014'!C53 -> 0 | D53: ='App.2-C_DepExp2015'!D53 -> 0 | E53: 0 | F53: ='App.2-C_DepExp2015'!F53+'App.2-C_DepExp2015'!I53 -> 410583 | G53: 410583 | H53: 0 | I53: ='App.2-BA_FA Cont 2016'!E48 -> 0 | J53: 0 | K53: 0 | L53: 5 | M53: 0.2 | N53: 0 | O53: 0 | P53: 0 | Q53: 0 | R53: =-'App.2-BA_FA Cont 2016'!J48 -> 0 | S53: =IF(ISERROR(+R53-122), 0, +R53-Q53) -> 0
